Workbook

Sheet 星取り表108
B1: =+データ１!$B$2 -> 2020/2/22 | C1: =+データ１!$B$4 -> 2020年
B2: =+データ１!B6 -> スーパーリ－グ 第１４回大会 Aブロック ２０２０ | C2: =+IF(B3="","",+B3) -> 葛飾アニマルズ | F2: =+IF(B5="","",+B5) -> 桃五少年野球クラブ | I2: =+IF(B7="","",+B7) -> 山野Ｒイーグルス | L2: =+IF(B9="","",+B9) -> 港南メッツ | O2: =+IF(B11="","",+B11) -> ゴッドイーグルス | R2: =+IF(B13="","",+B13) -> 南篠崎ランチャーズ | U2: =+IF(B15="","",+B15) -> 西千タイガース | X2: =+IF(B17="","",+B17) -> 堤若草 | AA2: =+IF(B19="","",+B19) -> 晴海アポローズ | AD2: 勝 | AE2: 負 | AF2: 分 | AG2: 勝点 | AH2: 失点 | AI2: 得点 | AJ2: 順位決定要素 | AK2: 順位
A3: 1 | B3: =IF(データ２!B2="","",VLOOKUP(A3,データ２!$A$2:$B$216,2)) -> 葛飾アニマルズ | C3: ＊ | F3: A | G3: - | H3: 1 | I3: A | J3: - | K3: 2 | L3: A | M3: - | N3: 3 | O3: A | P3: - | Q3: 4 | R3: A | S3: - | T3: 5 | U3: A | V3: - | W3: 6 | X3: A | Y3: - | Z3: 7 | AA3: A | AB3: - | AC3: 8 | AD3: =COUNTIF(C3:AC4,"○") -> 0 | AE3: =COUNTIF(C3:AC4,"●") -> 0 | AF3: =COUNTIF(C3:AC4,"△") -> 0 | AG3: =+AD3*3+AF3*1 -> 0 | AH3: =+E4+H4+K4+N4+Q4+T4+W4+Z4+AC4 -> 0 | AI3: =C4+F4+I4+L4+O4+R4+U4+X4+AA4 -> 0 | AJ3: =+RANK(AG3,$AG$3:$AG$20,0)*100+RANK(AH3,$AH$3:$AH$20,1)*10+RANK(AI3,$AI$3:$AI$20,0) -> 417 | AK3: =+RANK(AJ3,$AJ$3:$AJ$20,1) -> 4
G4: - | J4: - | M4: - | P4: - | S4: - | V4: - | Y4: - | AB4: -
A5: 2 | B5: =IF(データ２!B4="","",VLOOKUP(A5,データ２!$A$2:$B$216,2)) -> 桃五少年野球クラブ | C5: A | D5: - | E5: 1 | F5: ＊ | L5: A | M5: - | N5: 10 | O5: A | P5: - | Q5: 11 | R5: A | S5: - | T5: 12 | X5: A | Y5: - | Z5: 14 | AD5: =COUNTIF(C5:AC6,"○") -> 3 | AE5: =COUNTIF(C5:AC6,"●") -> 0 | AF5: =COUNTIF(C5:AC6,"△") -> 0 | AG5: =+AD5*3+AF5*1 -> 9 | AH5: =+E6+H6+K6+N6+Q6+T6+W6+Z6+AC6 -> 12 | AI5: =C6+F6+I6+L6+O6+R6+U6+X6+AA6 -> 18 | AJ5: =+RANK(AG5,$AG$3:$AG$20,0)*100+RANK(AH5,$AH$3:$AH$20,1)*10+RANK(AI5,$AI$3:$AI$20,0) -> 162 | AK5: =+RANK(AJ5,$AJ$3:$AJ$20,1) -> 2
D6: - | I6: 1 | J6: ○ | K6: 0 | M6: - | P6: - | S6: - | U6: 10 | V6: ○ | W6: 6 | Y6: - | AA6: 7 | AB6: ○ | AC6: 6
A7: 3 | B7: =IF(データ２!B6="","",VLOOKUP(A7,データ２!$A$2:$B$216,2)) -> 山野Ｒイーグルス | C7: A | D7: - | E7: 2 | I7: ＊ | O7: A | P7: - | Q7: 17 | R7: A | S7: - | T7: 18 | U7: A | V7: - | W7: 19 | X7: A | Y7: - | Z7: 20 | AA7: A | AB7: - | AC7: 21 | AD7: =COUNTIF(C7:AC8,"○") -> 0 | AE7: =COUNTIF(C7:AC8,"●") -> 2 | AF7: =COUNTIF(C7:AC8,"△") -> 0 | AG7: =+AD7*3+AF7*1 -> 0 | AH7: =+E8+H8+K8+N8+Q8+T8+W8+Z8+AC8 -> 8 | AI7: =C8+F8+I8+L8+O8+R8+U8+X8+AA8 -> 2 | AJ7: =+RANK(AG7,$AG$3:$AG$20,0)*100+RANK(AH7,$AH$3:$AH$20,1)*10+RANK(AI7,$AI$3:$AI$20,0) -> 456 | AK7: =+RANK(AJ7,$AJ$3:$AJ$20,1) -> 7
D8: - | F8: 0 | G8: ● | H8: 1 | L8: 2 | M8: ● | N8: 7 | P8: - | S8: - | V8: - | Y8: - | AB8: -
A9: 4 | B9: =IF(データ２!B8="","",VLOOKUP(A9,データ２!$A$2:$B$216,2)) -> 港南メッツ | C9: A | D9: - | E9: 3 | F9: A | G9: - | H9: 10 | L9: ＊ | O9: A | P9: - | Q9: 22 | R9: A | S9: - | T9: 23 | X9: A | Y9: - | Z9: 25 | AA9: A | AB9: - | AC9: 26 | AD9: =COUNTIF(C9:AC10,"○") -> 2 | AE9: =COUNTIF(C9:AC10,"●") -> 0 | AF9: =COUNTIF(C9:AC10,"△") -> 0 | AG9: =+AD9*3+AF9*1 -> 6 | AH9: =+E10+H10+K10+N10+Q10+T10+W10+Z10+AC10 -> 4 | AI9: =C10+F10+I10+L10+O10+R10+U10+X10+AA10 -> 12 | AJ9: =+RANK(AG9,$AG$3:$AG$20,0)*100+RANK(AH9,$AH$3:$AH$20,1)*10+RANK(AI9,$AI$3:$AI$20,0) -> 333 | AK9: =+RANK(AJ9,$AJ$3:$AJ$20,1) -> 3
D10: - | G10: - | I10: 7 | J10: ○ | K10: 2 | P10: - | S10: - | U10: 5 | V10: ○ | W10: 2 | Y10: - | AB10: -
A11: 5 | B11: =IF(データ２!B10="","",VLOOKUP(A11,データ２!$A$2:$B$216,2)) -> ゴッドイーグルス | C11: A | D11: - | E11: 4 | F11: A | G11: - | H11: 11 | I11: A | J11: - | K11: 17 | L11: A | M11: - | N11: 22 | O11: ＊ | R11: A | S11: - | T11: 27 | U11: A | V11: - | W11: 28 | X11: A | Y11: - | Z11: 29 | AD11: =COUNTIF(C11:AC12,"○") -> 0 | AE11: =COUNTIF(C11:AC12,"●") -> 1 | AF11: =COUNTIF(C11:AC12,"△") -> 0 | AG11: =+AD11*3+AF11*1 -> 0 | AH11: =+E12+H12+K12+N12+Q12+T12+W12+Z12+AC12 -> 13 | AI11: =C12+F12+I12+L12+O12+R12+U12+X12+AA12 -> 0 | AJ11: =+RANK(AG11,$AG$3:$AG$20,0)*100+RANK(AH11,$AH$3:$AH$20,1)*10+RANK(AI11,$AI$3:$AI$20,0) -> 487 | AK11: =+RANK(AJ11,$AJ$3:$AJ$20,1) -> 8
D12: - | G12: - | J12: - | M12: - | S12: - | V12: - | Y12: - | AA12: 0 | AB12: ● | AC12: 13
A13: 6 | B13: =IF(データ２!B12="","",VLOOKUP(A13,データ２!$A$2:$B$216,2)) -> 南篠崎ランチャーズ | C13: A | D13: - | E13: 5 | F13: A | G13: - | H13: 12 | I13: A | J13: - | K13: 18 | L13: A | M13: - | N13: 23 | O13: A | P13: - | Q13: 27 | R13: ＊ | U13: A | V13: - | W13: 31 | X13: A | Y13: - | Z13: 32 | AA13: A | AB13: - | AC13: 33 | AD13: =COUNTIF(C13:AC14,"○") -> 0 | AE13: =COUNTIF(C13:AC14,"●") -> 0 | AF13: =COUNTIF(C13:AC14,"△") -> 0 | AG13: =+AD13*3+AF13*1 -> 0 | AH13: =+E14+H14+K14+N14+Q14+T14+W14+Z14+AC14 -> 0 | AI13: =C14+F14+I14+L14+O14+R14+U14+X14+AA14 -> 0 | AJ13: =+RANK(AG13,$AG$3:$AG$20,0)*100+RANK(AH13,$AH$3:$AH$20,1)*10+RANK(AI13,$AI$3:$AI$20,0) -> 417 | AK13: =+RANK(AJ13,$AJ$3:$AJ$20,1) -> 4
D14: - | G14: - | J14: - | M14: - | P14: - | V14: - | Y14: - | AB14: -
A15: 7 | B15: =IF(データ２!B14="","",VLOOKUP(A15,データ２!$A$2:$B$216,2)) -> 西千タイガース | C15: A | D15: - | E15: 6 | I15: A | J15: - | K15: 19 | O15: A | P15: - | Q15: 28 | R15: A | S15: - | T15: 31 | U15: ＊ | X15: A | Y15: - | Z15: 34 | AD15: =COUNTIF(C15:AC16,"○") -> 0 | AE15: =COUNTIF(C15:AC16,"●") -> 3 | AF15: =COUNTIF(C15:AC16,"△") -> 0 | AG15: =+AD15*3+AF15*1 -> 0 | AH15: =+E16+H16+K16+N16+Q16+T16+W16+Z16+AC16 -> 25 | AI15: =C16+F16+I16+L16+O16+R16+U16+X16+AA16 -> 8 | AJ15: =+RANK(AG15,$AG$3:$AG$20,0)*100+RANK(AH15,$AH$3:$AH$20,1)*10+RANK(AI15,$AI$3:$AI$20,0) -> 494 | AK15: =+RANK(AJ15,$AJ$3:$AJ$20,1) -> 9
D16: - | F16: 6 | G16: ● | H16: 10 | J16: - | L16: 2 | M16: ● | N16: 5 | P16: - | S16: - | Y16: - | AA16: 0 | AB16: ● | AC16: 10
A17: 8 | B17: =IF(データ２!B16="","",VLOOKUP(A17,データ２!$A$2:$B$216,2)) -> 堤若草 | C17: A | D17: - | E17: 7 | F17: A | G17: - | H17: 14 | I17: A | J17: - | K17: 20 | L17: A | M17: - | N17: 25 | O17: A | P17: - | Q17: 29 | R17: A | S17: - | T17: 32 | U17: A | V17: - | W17: 34 | X17: ＊ | AD17: =COUNTIF(C17:AC18,"○") -> 0 | AE17: =COUNTIF(C17:AC18,"●") -> 1 | AF17: =COUNTIF(C17:AC18,"△") -> 0 | AG17: =+AD17*3+AF17*1 -> 0 | AH17: =+E18+H18+K18+N18+Q18+T18+W18+Z18+AC18 -> 6 | AI17: =C18+F18+I18+L18+O18+R18+U18+X18+AA18 -> 5 | AJ17: =+RANK(AG17,$AG$3:$AG$20,0)*100+RANK(AH17,$AH$3:$AH$20,1)*10+RANK(AI17,$AI$3:$AI$20,0) -> 445 | AK17: =+RANK(AJ17,$AJ$3:$AJ$20,1) -> 6
D18: - | G18: - | J18: - | M18: - | P18: - | S18: - | V18: - | AA18: 5 | AB18: ● | AC18: 6
A19: 9 | B19: =IF(データ２!B18="","",VLOOKUP(A19,データ２!$A$2:$B$216,2)) -> 晴海アポローズ | C19: A | D19: - | E19: 8 | I19: A | J19: - | K19: 21 | L19: A | M19: - | N19: 26 | R19: A | S19: - | T19: 33 | AA19: ＊ | AD19: =COUNTIF(C19:AC20,"○") -> 3 | AE19: =COUNTIF(C19:AC20,"●") -> 1 | AF19: =COUNTIF(C19:AC20,"△") -> 0 | AG19: =+AD19*3+AF19*1 -> 9 | AH19: =+E20+H20+K20+N20+Q20+T20+W20+Z20+AC20 -> 12 | AI19: =C20+F20+I20+L20+O20+R20+U20+X20+AA20 -> 35 | AJ19: =+RANK(AG19,$AG$3:$AG$20,0)*100+RANK(AH19,$AH$3:$AH$20,1)*10+RANK(AI19,$AI$3:$AI$20,0) -> 161 | AK19: =+RANK(AJ19,$AJ$3:$AJ$20,1) -> 1
D20: - | F20: 6 | G20: ● | H20: 7 | J20: - | M20: - | O20: 13 | P20: ○ | Q20: 0 | S20: - | U20: 10 | V20: ○ | W20: 0 | X20: 6 | Y20: ○ | Z20: 5
B22: =+データ１!$B$2 -> 2020/2/22 | C22: =+データ１!$B$4 -> 2020年
B23: =+データ１!B8 -> スーパーリ－グ 第１４回大会 Ｂブロック ２０２０ | C23: =+IF(B24="","",+B24) -> カバラホークス | F23: =+IF(B26="","",+B26) -> 潮見パワーズ | I23: =+IF(B28="","",+B28) -> 目黒ペガサス | L23: =+IF(B30="","",+B30) -> 高輪台ファイターズ | O23: =+IF(B32="","",+B32) -> 礫川 | R23: =+IF(B34="","",+B34) -> 金町ジャイアンツ | U23: =+IF(B36="","",+B36) -> 馬込ジャガーズ | X23: =+IF(B38="","",+B38) -> 淀四ライオンズ | AA23: =+IF(B40="","",+B40) -> 上篠崎ムスタングクラブ | AD23: 勝 | AE23: 負 | AF23: 分 | AG23: 勝点 | AH23: 失点 | AI23: 得点 | AJ23: 順位決定要素 | AK23: 順位
A24: 10 | B24: =IF(データ２!B20="","",VLOOKUP(A24,データ２!$A$2:$B$216,2)) -> カバラホークス | C24: ＊ | L24: B | M24: - | N24: 3 | O24: B | P24: - | Q24: 4 | U24: B | V24: - | W24: 6 | X24: B | Y24: - | Z24: 7 | AA24: B | AB24: - | AC24: 8 | AD24: =COUNTIF(C24:AC25,"○") -> 1 | AE24: =COUNTIF(C24:AC25,"●") -> 2 | AF24: =COUNTIF(C24:AC25,"△") -> 0 | AG24: =+AD24*3+AF24*1 -> 3 | AH24: =+E25+H25+K25+N25+Q25+T25+W25+Z25+AC25 -> 18 | AI24: =C25+F25+I25+L25+O25+R25+U25+X25+AA25 -> 6 | AJ24: =+RANK(AG24,$AG$24:$AG$41,0)*100+RANK(AH24,$AH$24:$AH$41,1)*10+RANK(AI24,$AI$24:$AI$41,0) -> 576 | AK24: =+RANK(AJ24,$AJ$24:$AJ$41,1) -> 5
F25: 3 | G25: ● | H25: 5 | I25: 2 | J25: ○ | K25: 0 | M25: - | P25: - | R25: 1 | S25: ● | T25: 13 | V25: - | Y25: - | AB25: -
A26: 11 | B26: =IF(データ２!B22="","",VLOOKUP(A26,データ２!$A$2:$B$216,2)) -> 潮見パワーズ | F26: ＊ | O26: B | P26: - | Q26: 11 | U26: B | V26: - | W26: 13 | AA26: B | AB26: - | AC26: 15 | AD26: =COUNTIF(C26:AC27,"○") -> 3 | AE26: =COUNTIF(C26:AC27,"●") -> 1 | AF26: =COUNTIF(C26:AC27,"△") -> 1 | AG26: =+AD26*3+AF26*1 -> 10 | AH26: =+E27+H27+K27+N27+Q27+T27+W27+Z27+AC27 -> 17 | AI26: =C27+F27+I27+L27+O27+R27+U27+X27+AA27 -> 35 | AJ26: =+RANK(AG26,$AG$24:$AG$41,0)*100+RANK(AH26,$AH$24:$AH$41,1)*10+RANK(AI26,$AI$24:$AI$41,0) -> 262 | AK26: =+RANK(AJ26,$AJ$24:$AJ$41,1) -> 2
C27: 5 | D27: ○ | E27: 3 | I27: 2 | J27: △ | K27: 2 | L27: 7 | M27: ○ | N27: 5 | P27: - | R27: 4 | S27: ● | T27: 5 | V27: - | X27: 17 | Y27: ○ | Z27: 2 | AB27: -
A28: 12 | B28: =IF(データ２!B24="","",VLOOKUP(A28,データ２!$A$2:$B$216,2)) -> 目黒ペガサス | I28: ＊ | O28: B | P28: - | Q28: 17 | R28: B | S28: - | T28: 18 | AD28: =COUNTIF(C28:AC29,"○") -> 4 | AE28: =COUNTIF(C28:AC29,"●") -> 1 | AF28: =COUNTIF(C28:AC29,"△") -> 1 | AG28: =+AD28*3+AF28*1 -> 13 | AH28: =+E29+H29+K29+N29+Q29+T29+W29+Z29+AC29 -> 12 | AI28: =C29+F29+I29+L29+O29+R29+U29+X29+AA29 -> 40 | AJ28: =+RANK(AG28,$AG$24:$AG$41,0)*100+RANK(AH28,$AH$24:$AH$41,1)*10+RANK(AI28,$AI$24:$AI$41,0) -> 141 | AK28: =+RANK(AJ28,$AJ$24:$AJ$41,1) -> 1
C29: 0 | D29: ● | E29: 2 | F29: 2 | G29: △ | H29: 2 | L29: 4 | M29: ○ | N29: 3 | P29: - | S29: - | U29: 16 | V29: ○ | W29: 2 | X29: 7 | Y29: ○ | Z29: 3 | AA29: 11 | AB29: ○ | AC29: 0
A30: 13 | B30: =IF(データ２!B26="","",VLOOKUP(A30,データ２!$A$2:$B$216,2)) -> 高輪台ファイターズ | C30: B | D30: - | E30: 3 | L30: ＊ | O30: B | P30: - | Q30: 22 | R30: B | S30: - | T30: 23 | U30: B | V30: - | W30: 24 | AA30: B | AB30: - | AC30: 26 | AD30: =COUNTIF(C30:AC31,"○") -> 0 | AE30: =COUNTIF(C30:AC31,"●") -> 3 | AF30: =COUNTIF(C30:AC31,"△") -> 0 | AG30: =+AD30*3+AF30*1 -> 0 | AH30: =+E31+H31+K31+N31+Q31+T31+W31+Z31+AC31 -> 15 | AI30: =C31+F31+I31+L31+O31+R31+U31+X31+AA31 -> 11 | AJ30: =+RANK(AG30,$AG$24:$AG$41,0)*100+RANK(AH30,$AH$24:$AH$41,1)*10+RANK(AI30,$AI$24:$AI$41,0) -> 655 | AK30: =+RANK(AJ30,$AJ$24:$AJ$41,1) -> 8
D31: - | F31: 5 | G31: ● | H31: 7 | I31: 3 | J31: ● | K31: 4 | P31: - | S31: - | V31: - | X31: 3 | Y31: ● | Z31: 4 | AB31: -
A32: 14 | B32: =IF(データ２!B28="","",VLOOKUP(A32,データ２!$A$2:$B$216,2)) -> 礫川 | C32: B | D32: - | E32: 4 | F32: B | G32: - | H32: 11 | I32: B | J32: - | K32: 17 | L32: B | M32: - | N32: 22 | O32: ＊ | R32: B | S32: - | T32: 27 | U32: B | V32: - | W32: 28 | X32: B | Y32: - | Z32: 29 | AA32: B | AB32: - | AC32: 30 | AD32: =COUNTIF(C32:AC33,"○") -> 0 | AE32: =COUNTIF(C32:AC33,"●") -> 0 | AF32: =COUNTIF(C32:AC33,"△") -> 0 | AG32: =+AD32*3+AF32*1 -> 0 | AH32: =+E33+H33+K33+N33+Q33+T33+W33+Z33+AC33 -> 0 | AI32: =C33+F33+I33+L33+O33+R33+U33+X33+AA33 -> 0 | AJ32: =+RANK(AG32,$AG$24:$AG$41,0)*100+RANK(AH32,$AH$24:$AH$41,1)*10+RANK(AI32,$AI$24:$AI$41,0) -> 618 | AK32: =+RANK(AJ32,$AJ$24:$AJ$41,1) -> 6
D33: - | G33: - | J33: - | M33: - | S33: - | V33: - | Y33: - | AB33: -
A34: 15 | B34: =IF(データ２!B30="","",VLOOKUP(A34,データ２!$A$2:$B$216,2)) -> 金町ジャイアンツ | I34: B | J34: - | K34: 18 | L34: B | M34: - | N34: 23 | O34: B | P34: - | Q34: 27 | R34: ＊ | U34: B | V34: - | W34: 31 | X34: B | Y34: - | Z34: 32 | AA34: B | AB34: - | AC34: 33 | AD34: =COUNTIF(C34:AC35,"○") -> 2 | AE34: =COUNTIF(C34:AC35,"●") -> 0 | AF34: =COUNTIF(C34:AC35,"△") -> 0 | AG34: =+AD34*3+AF34*1 -> 6 | AH34: =+E35+H35+K35+N35+Q35+T35+W35+Z35+AC35 -> 5 | AI34: =C35+F35+I35+L35+O35+R35+U35+X35+AA35 -> 18 | AJ34: =+RANK(AG34,$AG$24:$AG$41,0)*100+RANK(AH34,$AH$24:$AH$41,1)*10+RANK(AI34,$AI$24:$AI$41,0) -> 324 | AK34: =+RANK(AJ34,$AJ$24:$AJ$41,1) -> 3
C35: 13 | D35: ○ | E35: 1 | F35: 5 | G35: ○ | H35: 4 | J35: - | M35: - | P35: - | V35: - | Y35: - | AB35: -
A36: 16 | B36: =IF(データ２!B32="","",VLOOKUP(A36,データ２!$A$2:$B$216,2)) -> 馬込ジャガーズ | C36: B | D36: - | E36: 6 | F36: B | G36: - | H36: 13 | L36: B | M36: - | N36: 24 | O36: B | P36: - | Q36: 28 | R36: B | S36: - | T36: 31 | U36: ＊ | AA36: B | AB36: - | AC36: 35 | AD36: =COUNTIF(C36:AC37,"○") -> 0 | AE36: =COUNTIF(C36:AC37,"●") -> 2 | AF36: =COUNTIF(C36:AC37,"△") -> 0 | AG36: =+AD36*3+AF36*1 -> 0 | AH36: =+E37+H37+K37+N37+Q37+T37+W37+Z37+AC37 -> 29 | AI36: =C37+F37+I37+L37+O37+R37+U37+X37+AA37 -> 6 | AJ36: =+RANK(AG36,$AG$24:$AG$41,0)*100+RANK(AH36,$AH$24:$AH$41,1)*10+RANK(AI36,$AI$24:$AI$41,0) -> 686 | AK36: =+RANK(AJ36,$AJ$24:$AJ$41,1) -> 9
D37: - | G37: - | I37: 2 | J37: ● | K37: 16 | M37: - | P37: - | S37: - | X37: 4 | Y37: ● | Z37: 13 | AB37: -
A38: 17 | B38: =IF(データ２!B34="","",VLOOKUP(A38,データ２!$A$2:$B$216,2)) -> 淀四ライオンズ | C38: B | D38: - | E38: 7 | O38: B | P38: - | Q38: 29 | R38: B | S38: - | T38: 32 | X38: ＊ | AA38: B | AB38: - | AC38: 36 | AD38: =COUNTIF(C38:AC39,"○") -> 2 | AE38: =COUNTIF(C38:AC39,"●") -> 2 | AF38: =COUNTIF(C38:AC39,"△") -> 0 | AG38: =+AD38*3+AF38*1 -> 6 | AH38: =+E39+H39+K39+N39+Q39+T39+W39+Z39+AC39 -> 31 | AI38: =C39+F39+I39+L39+O39+R39+U39+X39+AA39 -> 22 | AJ38: =+RANK(AG38,$AG$24:$AG$41,0)*100+RANK(AH38,$AH$24:$AH$41,1)*10+RANK(AI38,$AI$24:$AI$41,0) -> 393 | AK38: =+RANK(AJ38,$AJ$24:$AJ$41,1) -> 4
D39: - | F39: 2 | G39: ● | H39: 17 | I39: 3 | J39: ● | K39: 7 | L39: 4 | M39: ○ | N39: 3 | P39: - | S39: - | U39: 13 | V39: ○ | W39: 4 | AB39: -
A40: 18 | B40: =IF(データ２!B36="","",VLOOKUP(A40,データ２!$A$2:$B$216,2)) -> 上篠崎ムスタングクラブ | C40: B | D40: - | E40: 8 | F40: B | G40: - | H40: 15 | L40: B | M40: - | N40: 26 | O40: B | P40: - | Q40: 30 | R40: B | S40: - | T40: 33 | U40: B | V40: - | W40: 35 | X40: B | Y40: - | Z40: 36 | AA40: ＊ | AD40: =COUNTIF(C40:AC41,"○") -> 0 | AE40: =COUNTIF(C40:AC41,"●") -> 1 | AF40: =COUNTIF(C40:AC41,"△") -> 0 | AG40: =+AD40*3+AF40*1 -> 0 | AH40: =+E41+H41+K41+N41+Q41+T41+W41+Z41+AC41 -> 11 | AI40: =C41+F41+I41+L41+O41+R41+U41+X41+AA41 -> 0 | AJ40: =+RANK(AG40,$AG$24:$AG$41,0)*100+RANK(AH40,$AH$24:$AH$41,1)*10+RANK(AI40,$AI$24:$AI$41,0) -> 638 | AK40: =+RANK(AJ40,$AJ$24:$AJ$41,1) -> 7
D41: - | G41: - | I41: 0 | J41: ● | K41: 11 | M41: - | P41: - | S41: - | V41: - | Y41: -
B43: =+データ１!$B$2 -> 2020/2/22 | C43: =+データ１!$B$4 -> 2020年
B44: =+データ１!B10 -> スーパーリ－グ 第１４回大会 Ｃブロック ２０２０ | C44: =+IF(B45="","",+B45) -> 八潮ドリームキッズ | F44: =+IF(B47="","",+B47) -> オール麻布 | I44: =+IF(B49="","",+B49) -> 出雲ライオンズ | L44: =+IF(B51="","",+B51) -> マッハブレーブス | O44: =+IF(B53="","",+B53) -> フェニックス | R44: =+IF(B55="","",+B55) -> 江東ジョーズ | U44: =+IF(B57="","",+B57) -> 目黒インパルス | X44: =+IF(B59="","",+B59) -> しらさぎ | AA44: =+IF(B61="","",+B61) -> トゥールスジュニア | AD44: 勝 | AE44: 負 | AF44: 分 | AG44: 勝点 | AH44: 失点 | AI44: 得点 | AJ44: 順位決定要素 | AK44: 順位
A45: 19 | B45: =IF(データ２!B38="","",VLOOKUP(A45,データ２!$A$2:$B$216,2)) -> 八潮ドリームキッズ | C45: ＊ | F45: C | G45: - | H45: 1 | I45: C | J45: - | K45: 2 | L45: C | M45: - | N45: 3 | O45: C | P45: - | Q45: 4 | R45: C | S45: - | T45: 5 | U45: C | V45: - | W45: 6 | X45: C | Y45: - | Z45: 7 | AA45: C | AB45: - | AC45: 8 | AD45: =COUNTIF(C45:AC46,"○") -> 0 | AE45: =COUNTIF(C45:AC46,"●") -> 0 | AF45: =COUNTIF(C45:AC46,"△") -> 0 | AG45: =+AD45*3+AF45*1 -> 0 | AH45: =+E46+H46+K46+N46+Q46+T46+W46+Z46+AC46 -> 0 | AI45: =C46+F46+I46+L46+O46+R46+U46+X46+AA46 -> 0 | AJ45: =+RANK(AG45,$AG$45:$AG$62,0)*100+RANK(AH45,$AH$45:$AH$62,1)*10+RANK(AI45,$AI$45:$AI$62,0) -> 315 | AK45: =+RANK(AJ45,$AJ$45:$AJ$62,1) -> 3
G46: - | J46: - | M46: - | P46: - | S46: - | V46: - | Y46: - | AB46: -
A47: 20 | B47: =IF(データ２!B40="","",VLOOKUP(A47,データ２!$A$2:$B$216,2)) -> オール麻布 | C47: C | D47: - | E47: 1 | F47: ＊ | I47: C | J47: - | K47: 9 | L47: C | M47: - | N47: 10 | R47: C | S47: - | T47: 12 | AD47: =COUNTIF(C47:AC48,"○") -> 3 | AE47: =COUNTIF(C47:AC48,"●") -> 1 | AF47: =COUNTIF(C47:AC48,"△") -> 0 | AG47: =+AD47*3+AF47*1 -> 9 | AH47: =+E48+H48+K48+N48+Q48+T48+W48+Z48+AC48 -> 14 | AI47: =C48+F48+I48+L48+O48+R48+U48+X48+AA48 -> 46 | AJ47: =+RANK(AG47,$AG$45:$AG$62,0)*100+RANK(AH47,$AH$45:$AH$62,1)*10+RANK(AI47,$AI$45:$AI$62,0) -> 161 | AK47: =+RANK(AJ47,$AJ$45:$AJ$62,1) -> 2
D48: - | J48: - | M48: - | O48: 8 | P48: ○ | Q48: 7 | S48: - | U48: 20 | V48: ○ | W48: 0 | X48: 1 | Y48: ● | Z48: 6 | AA48: 17 | AB48: ○ | AC48: 1
A49: 21 | B49: =IF(データ２!B42="","",VLOOKUP(A49,データ２!$A$2:$B$216,2)) -> 出雲ライオンズ | C49: C | D49: - | E49: 2 | F49: C | G49: - | H49: 9 | I49: ＊ | L49: C | M49: - | N49: 16 | O49: C | P49: - | Q49: 17 | R49: C | S49: - | T49: 18 | U49: C | V49: - | W49: 19 | X49: C | Y49: - | Z49: 20 | AA49: C | AB49: - | AC49: 21 | AD49: =COUNTIF(C49:AC50,"○") -> 0 | AE49: =COUNTIF(C49:AC50,"●") -> 0 | AF49: =COUNTIF(C49:AC50,"△") -> 0 | AG49: =+AD49*3+AF49*1 -> 0 | AH49: =+E50+H50+K50+N50+Q50+T50+W50+Z50+AC50 -> 0 | AI49: =C50+F50+I50+L50+O50+R50+U50+X50+AA50 -> 0 | AJ49: =+RANK(AG49,$AG$45:$AG$62,0)*100+RANK(AH49,$AH$45:$AH$62,1)*10+RANK(AI49,$AI$45:$AI$62,0) -> 315 | AK49: =+RANK(AJ49,$AJ$45:$AJ$62,1) -> 3
D50: - | G50: - | M50: - | P50: - | S50: - | V50: - | Y50: - | AB50: -
A51: 22 | B51: =IF(データ２!B44="","",VLOOKUP(A51,データ２!$A$2:$B$216,2)) -> マッハブレーブス | C51: C | D51: - | E51: 3 | F51: C | G51: - | H51: 10 | I51: C | J51: - | K51: 16 | L51: ＊ | O51: C | P51: - | Q51: 22 | R51: C | S51: - | T51: 23 | U51: C | V51: - | W51: 24 | X51: C | Y51: - | Z51: 25 | AA51: C | AB51: - | AC51: 26 | AD51: =COUNTIF(C51:AC52,"○") -> 0 | AE51: =COUNTIF(C51:AC52,"●") -> 0 | AF51: =COUNTIF(C51:AC52,"△") -> 0 | AG51: =+AD51*3+AF51*1 -> 0 | AH51: =+E52+H52+K52+N52+Q52+T52+W52+Z52+AC52 -> 0 | AI51: =C52+F52+I52+L52+O52+R52+U52+X52+AA52 -> 0 | AJ51: =+RANK(AG51,$AG$45:$AG$62,0)*100+RANK(AH51,$AH$45:$AH$62,1)*10+RANK(AI51,$AI$45:$AI$62,0) -> 315 | AK51: =+RANK(AJ51,$AJ$45:$AJ$62,1) -> 3
D52: - | G52: - | J52: - | P52: - | S52: - | V52: - | Y52: - | AB52: -
A53: 23 | B53: =IF(データ２!B46="","",VLOOKUP(A53,データ２!$A$2:$B$216,2)) -> フェニックス | C53: C | D53: - | E53: 4 | I53: C | J53: - | K53: 17 | L53: C | M53: - | N53: 22 | O53: ＊ | R53: C | S53: - | T53: 27 | U53: C | V53: - | W53: 28 | AA53: C | AB53: - | AC53: 30 | AD53: =COUNTIF(C53:AC54,"○") -> 0 | AE53: =COUNTIF(C53:AC54,"●") -> 2 | AF53: =COUNTIF(C53:AC54,"△") -> 0 | AG53: =+AD53*3+AF53*1 -> 0 | AH53: =+E54+H54+K54+N54+Q54+T54+W54+Z54+AC54 -> 14 | AI53: =C54+F54+I54+L54+O54+R54+U54+X54+AA54 -> 11 | AJ53: =+RANK(AG53,$AG$45:$AG$62,0)*100+RANK(AH53,$AH$45:$AH$62,1)*10+RANK(AI53,$AI$45:$AI$62,0) -> 363 | AK53: =+RANK(AJ53,$AJ$45:$AJ$62,1) -> 7
D54: - | F54: 7 | G54: ● | H54: 8 | J54: - | M54: - | S54: - | V54: - | X54: 4 | Y54: ● | Z54: 6 | AB54: -
A55: 24 | B55: =IF(データ２!B48="","",VLOOKUP(A55,データ２!$A$2:$B$216,2)) -> 江東ジョーズ | C55: C | D55: - | E55: 5 | F55: C | G55: - | H55: 12 | I55: C | J55: - | K55: 18 | L55: C | M55: - | N55: 23 | O55: C | P55: - | Q55: 27 | R55: ＊ | U55: C | V55: - | W55: 31 | X55: C | Y55: - | Z55: 32 | AA55: C | AB55: - | AC55: 33 | AD55: =COUNTIF(C55:AC56,"○") -> 0 | AE55: =COUNTIF(C55:AC56,"●") -> 0 | AF55: =COUNTIF(C55:AC56,"△") -> 0 | AG55: =+AD55*3+AF55*1 -> 0 | AH55: =+E56+H56+K56+N56+Q56+T56+W56+Z56+AC56 -> 0 | AI55: =C56+F56+I56+L56+O56+R56+U56+X56+AA56 -> 0 | AJ55: =+RANK(AG55,$AG$45:$AG$62,0)*100+RANK(AH55,$AH$45:$AH$62,1)*10+RANK(AI55,$AI$45:$AI$62,0) -> 315 | AK55: =+RANK(AJ55,$AJ$45:$AJ$62,1) -> 3
D56: - | G56: - | J56: - | M56: - | P56: - | V56: - | Y56: - | AB56: -
A57: 25 | B57: =IF(データ２!B50="","",VLOOKUP(A57,データ２!$A$2:$B$216,2)) -> 目黒インパルス | C57: C | D57: - | E57: 6 | I57: C | J57: - | K57: 19 | L57: C | M57: - | N57: 24 | O57: C | P57: - | Q57: 28 | R57: C | S57: - | T57: 31 | U57: ＊ | AA57: C | AB57: - | AC57: 35 | AD57: =COUNTIF(C57:AC58,"○") -> 0 | AE57: =COUNTIF(C57:AC58,"●") -> 2 | AF57: =COUNTIF(C57:AC58,"△") -> 0 | AG57: =+AD57*3+AF57*1 -> 0 | AH57: =+E58+H58+K58+N58+Q58+T58+W58+Z58+AC58 -> 53 | AI57: =C58+F58+I58+L58+O58+R58+U58+X58+AA58 -> 0 | AJ57: =+RANK(AG57,$AG$45:$AG$62,0)*100+RANK(AH57,$AH$45:$AH$62,1)*10+RANK(AI57,$AI$45:$AI$62,0) -> 395 | AK57: =+RANK(AJ57,$AJ$45:$AJ$62,1) -> 9
D58: - | F58: 0 | G58: ● | H58: 20 | J58: - | M58: - | P58: - | S58: - | X58: 0 | Y58: ● | Z58: 33 | AB58: -
A59: 26 | B59: =IF(データ２!B52="","",VLOOKUP(A59,データ２!$A$2:$B$216,2)) -> しらさぎ | C59: C | D59: - | E59: 7 | I59: C | J59: - | K59: 20 | L59: C | M59: - | N59: 25 | R59: C | S59: - | T59: 32 | X59: ＊ | AA59: C | AB59: - | AC59: 36 | AD59: =COUNTIF(C59:AC60,"○") -> 3 | AE59: =COUNTIF(C59:AC60,"●") -> 0 | AF59: =COUNTIF(C59:AC60,"△") -> 0 | AG59: =+AD59*3+AF59*1 -> 9 | AH59: =+E60+H60+K60+N60+Q60+T60+W60+Z60+AC60 -> 5 | AI59: =C60+F60+I60+L60+O60+R60+U60+X60+AA60 -> 45 | AJ59: =+RANK(AG59,$AG$45:$AG$62,0)*100+RANK(AH59,$AH$45:$AH$62,1)*10+RANK(AI59,$AI$45:$AI$62,0) -> 152 | AK59: =+RANK(AJ59,$AJ$45:$AJ$62,1) -> 1
D60: - | F60: 6 | G60: ○ | H60: 1 | J60: - | M60: - | O60: 6 | P60: ○ | Q60: 4 | S60: - | U60: 33 | V60: ○ | W60: 0 | AB60: -
A61: 27 | B61: =IF(データ２!B54="","",VLOOKUP(A61,データ２!$A$2:$B$216,2)) -> トゥールスジュニア | C61: C | D61: - | E61: 8 | I61: C | J61: - | K61: 21 | L61: C | M61: - | N61: 26 | O61: C | P61: - | Q61: 30 | R61: C | S61: - | T61: 33 | U61: C | V61: - | W61: 35 | X61: C | Y61: - | Z61: 36 | AA61: ＊ | AD61: =COUNTIF(C61:AC62,"○") -> 0 | AE61: =COUNTIF(C61:AC62,"●") -> 1 | AF61: =COUNTIF(C61:AC62,"△") -> 0 | AG61: =+AD61*3+AF61*1 -> 0 | AH61: =+E62+H62+K62+N62+Q62+T62+W62+Z62+AC62 -> 17 | AI61: =C62+F62+I62+L62+O62+R62+U62+X62+AA62 -> 1 | AJ61: =+RANK(AG61,$AG$45:$AG$62,0)*100+RANK(AH61,$AH$45:$AH$62,1)*10+RANK(AI61,$AI$45:$AI$62,0) -> 384 | AK61: =+RANK(AJ61,$AJ$45:$AJ$62,1) -> 8
D62: - | F62: 1 | G62: ● | H62: 17 | J62: - | M62: - | P62: - | S62: - | V62: - | Y62: -
B64: =+データ１!$B$2 -> 2020/2/22 | C64: =+データ１!$B$4 -> 2020年
B65: =+データ１!B12 -> スーパーリ－グ 第１４回大会 Ｄブロック ２０２０ | C65: =+IF(B66="","",+B66) -> ゼットタイガー | F65: =+IF(B68="","",+B68) -> 東山エイターズ | I65: =+IF(B70="","",+B70) -> 落一アポロ | L65: =+IF(B72="","",+B72) -> 本一色イーグルス | O65: =+IF(B74="","",+B74) -> 元加賀 | R65: =+IF(B76="","",+B76) -> 番町エンジェルス | U65: =+IF(B78="","",+B78) -> 本村クラブ | X65: =+IF(B80="","",+B80) -> 烏山ウイング | AA65: =+IF(B82="","",+B82) -> 品川Ｂレーシング | AD65: 勝 | AE65: 負 | AF65: 分 | AG65: 勝点 | AH65: 失点 | AI65: 得点 | AJ65: 順位決定要素 | AK65: 順位
A66: 28 | B66: =IF(データ２!B56="","",VLOOKUP(A66,データ２!$A$2:$B$216,2)) -> ゼットタイガー | C66: ＊ | AD66: =COUNTIF(C66:AC67,"○") -> 3 | AE66: =COUNTIF(C66:AC67,"●") -> 5 | AF66: =COUNTIF(C66:AC67,"△") -> 0 | AG66: =+AD66*3+AF66*1 -> 9 | AH66: =+E67+H67+K67+N67+Q67+T67+W67+Z67+AC67 -> 67 | AI66: =C67+F67+I67+L67+O67+R67+U67+X67+AA67 -> 26 | AJ66: =+RANK(AG66,$AG$66:$AG$83,0)*100+RANK(AH66,$AH$66:$AH$83,1)*10+RANK(AI66,$AI$66:$AI$83,0) -> 498 | AK66: =+RANK(AJ66,$AJ$66:$AJ$83,1) -> 7
F67: 9 | G67: ○ | H67: 8 | I67: 8 | J67: ○ | K67: 5 | L67: 1 | M67: ● | N67: 6 | O67: 1 | P67: ● | Q67: 11 | R67: 2 | S67: ● | T67: 16 | U67: 0 | V67: ● | W67: 11 | X67: 4 | Y67: ○ | Z67: 3 | AA67: 1 | AB67: ● | AC67: 7
A68: 29 | B68: =IF(データ２!B58="","",VLOOKUP(A68,データ２!$A$2:$B$216,2)) -> 東山エイターズ | F68: ＊ | O68: D | P68: - | Q68: 11 | U68: D | V68: - | W68: 13 | AD68: =COUNTIF(C68:AC69,"○") -> 3 | AE68: =COUNTIF(C68:AC69,"●") -> 3 | AF68: =COUNTIF(C68:AC69,"△") -> 0 | AG68: =+AD68*3+AF68*1 -> 9 | AH68: =+E69+H69+K69+N69+Q69+T69+W69+Z69+AC69 -> 44 | AI68: =C69+F69+I69+L69+O69+R69+U69+X69+AA69 -> 42 | AJ68: =+RANK(AG68,$AG$66:$AG$83,0)*100+RANK(AH68,$AH$66:$AH$83,1)*10+RANK(AI68,$AI$66:$AI$83,0) -> 454 | AK68: =+RANK(AJ68,$AJ$66:$AJ$83,1) -> 5
C69: 8 | D69: ● | E69: 9 | I69: 9 | J69: ○ | K69: 2 | L69: 5 | M69: ● | N69: 11 | P69: - | R69: 9 | S69: ○ | T69: 8 | V69: - | X69: 10 | Y69: ○ | Z69: 5 | AA69: 1 | AB69: ● | AC69: 9
A70: 30 | B70: =IF(データ２!B60="","",VLOOKUP(A70,データ２!$A$2:$B$216,2)) -> 落一アポロ | I70: ＊ | L70: D | M70: - | N70: 16 | U70: D | V70: - | W70: 19 | AA70: D | AB70: - | AC70: 21 | AD70: =COUNTIF(C70:AC71,"○") -> 0 | AE70: =COUNTIF(C70:AC71,"●") -> 5 | AF70: =COUNTIF(C70:AC71,"△") -> 0 | AG70: =+AD70*3+AF70*1 -> 0 | AH70: =+E71+H71+K71+N71+Q71+T71+W71+Z71+AC71 -> 53 | AI70: =C71+F71+I71+L71+O71+R71+U71+X71+AA71 -> 12 | AJ70: =+RANK(AG70,$AG$66:$AG$83,0)*100+RANK(AH70,$AH$66:$AH$83,1)*10+RANK(AI70,$AI$66:$AI$83,0) -> 979 | AK70: =+RANK(AJ70,$AJ$66:$AJ$83,1) -> 9
C71: 5 | D71: ● | E71: 8 | F71: 2 | G71: ● | H71: 9 | M71: - | O71: 3 | P71: ● | Q71: 14 | R71: 1 | S71: ● | T71: 14 | V71: - | X71: 1 | Y71: ● | Z71: 8 | AB71: -
A72: 31 | B72: =IF(データ２!B62="","",VLOOKUP(A72,データ２!$A$2:$B$216,2)) -> 本一色イーグルス | I72: D | J72: - | K72: 16 | L72: ＊ | AD72: =COUNTIF(C72:AC73,"○") -> 3 | AE72: =COUNTIF(C72:AC73,"●") -> 4 | AF72: =COUNTIF(C72:AC73,"△") -> 0 | AG72: =+AD72*3+AF72*1 -> 9 | AH72: =+E73+H73+K73+N73+Q73+T73+W73+Z73+AC73 -> 47 | AI72: =C73+F73+I73+L73+O73+R73+U73+X73+AA73 -> 42 | AJ72: =+RANK(AG72,$AG$66:$AG$83,0)*100+RANK(AH72,$AH$66:$AH$83,1)*10+RANK(AI72,$AI$66:$AI$83,0) -> 464 | AK72: =+RANK(AJ72,$AJ$66:$AJ$83,1) -> 6
C73: 6 | D73: ○ | E73: 1 | F73: 11 | G73: ○ | H73: 5 | J73: - | O73: 6 | P73: ● | Q73: 7 | R73: 8 | S73: ○ | T73: 4 | U73: 3 | V73: ● | W73: 15 | X73: 5 | Y73: ● | Z73: 7 | AA73: 3 | AB73: ● | AC73: 8
A74: 32 | B74: =IF(データ２!B64="","",VLOOKUP(A74,データ２!$A$2:$B$216,2)) -> 元加賀 | F74: D | G74: - | H74: 11 | O74: ＊ | X74: D | Y74: - | Z74: 29 | AA74: D | AB74: - | AC74: 30 | AD74: =COUNTIF(C74:AC75,"○") -> 3 | AE74: =COUNTIF(C74:AC75,"●") -> 2 | AF74: =COUNTIF(C74:AC75,"△") -> 0 | AG74: =+AD74*3+AF74*1 -> 9 | AH74: =+E75+H75+K75+N75+Q75+T75+W75+Z75+AC75 -> 33 | AI74: =C75+F75+I75+L75+O75+R75+U75+X75+AA75 -> 42 | AJ74: =+RANK(AG74,$AG$66:$AG$83,0)*100+RANK(AH74,$AH$66:$AH$83,1)*10+RANK(AI74,$AI$66:$AI$83,0) -> 434 | AK74: =+RANK(AJ74,$AJ$66:$AJ$83,1) -> 4
C75: 11 | D75: ○ | E75: 1 | G75: - | I75: 14 | J75: ○ | K75: 3 | L75: 7 | M75: ○ | N75: 6 | R75: 6 | S75: ● | T75: 7 | U75: 4 | V75: ● | W75: 16 | Y75: - | AB75: -
A76: 33 | B76: =IF(データ２!B66="","",VLOOKUP(A76,データ２!$A$2:$B$216,2)) -> 番町エンジェルス | R76: ＊ | AD76: =COUNTIF(C76:AC77,"○") -> 4 | AE76: =COUNTIF(C76:AC77,"●") -> 4 | AF76: =COUNTIF(C76:AC77,"△") -> 0 | AG76: =+AD76*3+AF76*1 -> 12 | AH76: =+E77+H77+K77+N77+Q77+T77+W77+Z77+AC77 -> 63 | AI76: =C77+F77+I77+L77+O77+R77+U77+X77+AA77 -> 65 | AJ76: =+RANK(AG76,$AG$66:$AG$83,0)*100+RANK(AH76,$AH$66:$AH$83,1)*10+RANK(AI76,$AI$66:$AI$83,0) -> 281 | AK76: =+RANK(AJ76,$AJ$66:$AJ$83,1) -> 3
C77: 16 | D77: ○ | E77: 2 | F77: 8 | G77: ● | H77: 9 | I77: 14 | J77: ○ | K77: 1 | L77: 4 | M77: ● | N77: 8 | O77: 7 | P77: ○ | Q77: 6 | U77: 2 | V77: ● | W77: 9 | X77: 13 | Y77: ○ | Z77: 11 | AA77: 1 | AB77: ● | AC77: 17
A78: 34 | B78: =IF(データ２!B68="","",VLOOKUP(A78,データ２!$A$2:$B$216,2)) -> 本村クラブ | F78: D | G78: - | H78: 13 | I78: D | J78: - | K78: 19 | U78: ＊ | X78: D | Y78: - | Z78: 34 | AD78: =COUNTIF(C78:AC79,"○") -> 4 | AE78: =COUNTIF(C78:AC79,"●") -> 1 | AF78: =COUNTIF(C78:AC79,"△") -> 0 | AG78: =+AD78*3+AF78*1 -> 12 | AH78: =+E79+H79+K79+N79+Q79+T79+W79+Z79+AC79 -> 18 | AI78: =C79+F79+I79+L79+O79+R79+U79+X79+AA79 -> 59 | AJ78: =+RANK(AG78,$AG$66:$AG$83,0)*100+RANK(AH78,$AH$66:$AH$83,1)*10+RANK(AI78,$AI$66:$AI$83,0) -> 222 | AK78: =+RANK(AJ78,$AJ$66:$AJ$83,1) -> 2
C79: 11 | D79: ○ | E79: 0 | G79: - | J79: - | L79: 15 | M79: ○ | N79: 3 | O79: 16 | P79: ○ | Q79: 4 | R79: 9 | S79: ○ | T79: 2 | Y79: - | AA79: 8 | AB79: ● | AC79: 9
A80: 35 | B80: =IF(データ２!B70="","",VLOOKUP(A80,データ２!$A$2:$B$216,2)) -> 烏山ウイング | O80: D | P80: - | Q80: 29 | U80: D | V80: - | W80: 34 | X80: ＊ | AA80: D | AB80: - | AC80: 36 | AD80: =COUNTIF(C80:AC81,"○") -> 2 | AE80: =COUNTIF(C80:AC81,"●") -> 3 | AF80: =COUNTIF(C80:AC81,"△") -> 0 | AG80: =+AD80*3+AF80*1 -> 6 | AH80: =+E81+H81+K81+N81+Q81+T81+W81+Z81+AC81 -> 33 | AI80: =C81+F81+I81+L81+O81+R81+U81+X81+AA81 -> 34 | AJ80: =+RANK(AG80,$AG$66:$AG$83,0)*100+RANK(AH80,$AH$66:$AH$83,1)*10+RANK(AI80,$AI$66:$AI$83,0) -> 837 | AK80: =+RANK(AJ80,$AJ$66:$AJ$83,1) -> 8
C81: 3 | D81: ● | E81: 4 | F81: 5 | G81: ● | H81: 10 | I81: 8 | J81: ○ | K81: 1 | L81: 7 | M81: ○ | N81: 5 | P81: - | R81: 11 | S81: ● | T81: 13 | V81: - | AB81: -
A82: 36 | B82: =IF(データ２!B72="","",VLOOKUP(A82,データ２!$A$2:$B$216,2)) -> 品川Ｂレーシング | I82: D | J82: - | K82: 21 | O82: D | P82: - | Q82: 30 | X82: D | Y82: - | Z82: 36 | AA82: ＊ | AD82: =COUNTIF(C82:AC83,"○") -> 5 | AE82: =COUNTIF(C82:AC83,"●") -> 0 | AF82: =COUNTIF(C82:AC83,"△") -> 0 | AG82: =+AD82*3+AF82*1 -> 15 | AH82: =+E83+H83+K83+N83+Q83+T83+W83+Z83+AC83 -> 14 | AI82: =C83+F83+I83+L83+O83+R83+U83+X83+AA83 -> 50 | AJ82: =+RANK(AG82,$AG$66:$AG$83,0)*100+RANK(AH82,$AH$66:$AH$83,1)*10+RANK(AI82,$AI$66:$AI$83,0) -> 113 | AK82: =+RANK(AJ82,$AJ$66:$AJ$83,1) -> 1
C83: 7 | D83: ○ | E83: 1 | F83: 9 | G83: ○ | H83: 1 | J83: - | L83: 8 | M83: ○ | N83: 3 | P83: - | R83: 17 | S83: ○ | T83: 1 | U83: 9 | V83: ○ | W83: 8 | Y83: -
B85: =+データ１!$B$2 -> 2020/2/22 | C85: =+データ１!$B$4 -> 2020年
B86: =+データ１!B14 -> スーパーリ－グ 第１４回大会 Ｅブロック ２０２０ | C86: =+IF(B87="","",+B87) -> レッドサンズ | F86: =+IF(B89="","",+B89) -> 月島ライオンズ | I86: =+IF(B91="","",+B91) -> 松島ファルコンズ | L86: =+IF(B93="","",+B93) -> ブラザースクラブ | O86: =+IF(B95="","",+B95) -> コンバッツ | R86: =+IF(B97="","",+B97) -> メガドリームス | U86: =+IF(B99="","",+B99) -> 七北クラブ | X86: =+IF(B101="","",+B101) -> レッドファイヤーズ | AA86: =+IF(B103="","",+B103) -> サンジュニア | AD86: 勝 | AE86: 負 | AF86: 分 | AG86: 勝点 | AH86: 失点 | AI86: 得点 | AJ86: 順位決定要素 | AK86: 順位
A87: 37 | B87: =IF(データ２!B74="","",VLOOKUP(A87,データ２!$A$2:$B$216,2)) -> レッドサンズ | C87: ＊ | F87: E | G87: - | H87: 1 | I87: E | J87: - | K87: 2 | O87: E | P87: - | Q87: 4 | R87: E | S87: - | T87: 5 | U87: E | V87: - | W87: 6 | X87: E | Y87: - | Z87: 7 | AD87: =COUNTIF(C87:AC88,"○") -> 2 | AE87: =COUNTIF(C87:AC88,"●") -> 0 | AF87: =COUNTIF(C87:AC88,"△") -> 0 | AG87: =+AD87*3+AF87*1 -> 6 | AH87: =+E88+H88+K88+N88+Q88+T88+W88+Z88+AC88 -> 9 | AI87: =C88+F88+I88+L88+O88+R88+U88+X88+AA88 -> 32 | AJ87: =+RANK(AG87,$AG$87:$AG$104,0)*100+RANK(AH87,$AH$87:$AH$104,1)*10+RANK(AI87,$AI$87:$AI$104,0) -> 243 | AK87: =+RANK(AJ87,$AJ$87:$AJ$104,1) -> 3
G88: - | J88: - | L88: 19 | M88: ○ | N88: 1 | P88: - | S88: - | V88: - | Y88: - | AA88: 13 | AB88: ○ | AC88: 8
A89: 38 | B89: =IF(データ２!B76="","",VLOOKUP(A89,データ２!$A$2:$B$216,2)) -> 月島ライオンズ | C89: E | D89: - | E89: 1 | F89: ＊ | I89: E | J89: - | K89: 9 | L89: E | M89: - | N89: 10 | R89: E | S89: - | T89: 12 | X89: E | Y89: - | Z89: 14 | AA89: E | AB89: - | AC89: 15 | AD89: =COUNTIF(C89:AC90,"○") -> 2 | AE89: =COUNTIF(C89:AC90,"●") -> 0 | AF89: =COUNTIF(C89:AC90,"△") -> 0 | AG89: =+AD89*3+AF89*1 -> 6 | AH89: =+E90+H90+K90+N90+Q90+T90+W90+Z90+AC90 -> 8 | AI89: =C90+F90+I90+L90+O90+R90+U90+X90+AA90 -> 15 | AJ89: =+RANK(AG89,$AG$87:$AG$104,0)*100+RANK(AH89,$AH$87:$AH$104,1)*10+RANK(AI89,$AI$87:$AI$104,0) -> 234 | AK89: =+RANK(AJ89,$AJ$87:$AJ$104,1) -> 2
D90: - | J90: - | M90: - | O90: 4 | P90: ○ | Q90: 0 | S90: - | U90: 11 | V90: ○ | W90: 8 | Y90: - | AB90: -
A91: 39 | B91: =IF(データ２!B78="","",VLOOKUP(A91,データ２!$A$2:$B$216,2)) -> 松島ファルコンズ | C91: E | D91: - | E91: 2 | F91: E | G91: - | H91: 9 | I91: ＊ | L91: E | M91: - | N91: 16 | O91: E | P91: - | Q91: 17 | U91: E | V91: - | W91: 19 | X91: E | Y91: - | Z91: 20 | AA91: E | AB91: - | AC91: 21 | AD91: =COUNTIF(C91:AC92,"○") -> 0 | AE91: =COUNTIF(C91:AC92,"●") -> 1 | AF91: =COUNTIF(C91:AC92,"△") -> 0 | AG91: =+AD91*3+AF91*1 -> 0 | AH91: =+E92+H92+K92+N92+Q92+T92+W92+Z92+AC92 -> 7 | AI91: =C92+F92+I92+L92+O92+R92+U92+X92+AA92 -> 5 | AJ91: =+RANK(AG91,$AG$87:$AG$104,0)*100+RANK(AH91,$AH$87:$AH$104,1)*10+RANK(AI91,$AI$87:$AI$104,0) -> 729 | AK91: =+RANK(AJ91,$AJ$87:$AJ$104,1) -> 7
D92: - | G92: - | M92: - | P92: - | R92: 5 | S92: ● | T92: 7 | V92: - | Y92: - | AB92: -
A93: 40 | B93: =IF(データ２!B80="","",VLOOKUP(A93,データ２!$A$2:$B$216,2)) -> ブラザースクラブ | F93: E | G93: - | H93: 10 | I93: E | J93: - | K93: 16 | L93: ＊ | R93: E | S93: - | T93: 23 | U93: E | V93: - | W93: 24 | X93: E | Y93: - | Z93: 25 | AD93: =COUNTIF(C93:AC94,"○") -> 1 | AE93: =COUNTIF(C93:AC94,"●") -> 2 | AF93: =COUNTIF(C93:AC94,"△") -> 0 | AG93: =+AD93*3+AF93*1 -> 3 | AH93: =+E94+H94+K94+N94+Q94+T94+W94+Z94+AC94 -> 37 | AI93: =C94+F94+I94+L94+O94+R94+U94+X94+AA94 -> 13 | AJ93: =+RANK(AG93,$AG$87:$AG$104,0)*100+RANK(AH93,$AH$87:$AH$104,1)*10+RANK(AI93,$AI$87:$AI$104,0) -> 585 | AK93: =+RANK(AJ93,$AJ$87:$AJ$104,1) -> 6
C94: 1 | D94: ● | E94: 19 | G94: - | J94: - | O94: 10 | P94: ○ | Q94: 9 | S94: - | V94: - | Y94: - | AA94: 2 | AB94: ● | AC94: 9
A95: 41 | B95: =IF(データ２!B82="","",VLOOKUP(A95,データ２!$A$2:$B$216,2)) -> コンバッツ | C95: E | D95: - | E95: 4 | I95: E | J95: - | K95: 17 | O95: ＊ | R95: E | S95: - | T95: 27 | U95: E | V95: - | W95: 28 | AA95: E | AB95: - | AC95: 30 | AD95: =COUNTIF(C95:AC96,"○") -> 0 | AE95: =COUNTIF(C95:AC96,"●") -> 3 | AF95: =COUNTIF(C95:AC96,"△") -> 0 | AG95: =+AD95*3+AF95*1 -> 0 | AH95: =+E96+H96+K96+N96+Q96+T96+W96+Z96+AC96 -> 30 | AI95: =C96+F96+I96+L96+O96+R96+U96+X96+AA96 -> 13 | AJ95: =+RANK(AG95,$AG$87:$AG$104,0)*100+RANK(AH95,$AH$87:$AH$104,1)*10+RANK(AI95,$AI$87:$AI$104,0) -> 775 | AK95: =+RANK(AJ95,$AJ$87:$AJ$104,1) -> 8
D96: - | F96: 0 | G96: ● | H96: 4 | J96: - | L96: 9 | M96: ● | N96: 10 | S96: - | V96: - | X96: 4 | Y96: ● | Z96: 16 | AB96: -
A97: 42 | B97: =IF(データ２!B84="","",VLOOKUP(A97,データ２!$A$2:$B$216,2)) -> メガドリームス | C97: E | D97: - | E97: 5 | F97: E | G97: - | H97: 12 | L97: E | M97: - | N97: 23 | O97: E | P97: - | Q97: 27 | R97: ＊ | U97: E | V97: - | W97: 31 | X97: E | Y97: - | Z97: 32 | AA97: E | AB97: - | AC97: 33 | AD97: =COUNTIF(C97:AC98,"○") -> 1 | AE97: =COUNTIF(C97:AC98,"●") -> 0 | AF97: =COUNTIF(C97:AC98,"△") -> 0 | AG97: =+AD97*3+AF97*1 -> 3 | AH97: =+E98+H98+K98+N98+Q98+T98+W98+Z98+AC98 -> 5 | AI97: =C98+F98+I98+L98+O98+R98+U98+X98+AA98 -> 7 | AJ97: =+RANK(AG97,$AG$87:$AG$104,0)*100+RANK(AH97,$AH$87:$AH$104,1)*10+RANK(AI97,$AI$87:$AI$104,0) -> 518 | AK97: =+RANK(AJ97,$AJ$87:$AJ$104,1) -> 5
D98: - | G98: - | I98: 7 | J98: ○ | K98: 5 | M98: - | P98: - | V98: - | Y98: - | AB98: -
A99: 43 | B99: =IF(データ２!B86="","",VLOOKUP(A99,データ２!$A$2:$B$216,2)) -> 七北クラブ | C99: E | D99: - | E99: 6 | I99: E | J99: - | K99: 19 | L99: E | M99: - | N99: 24 | O99: E | P99: - | Q99: 28 | R99: E | S99: - | T99: 31 | U99: ＊ | AD99: =COUNTIF(C99:AC100,"○") -> 0 | AE99: =COUNTIF(C99:AC100,"●") -> 3 | AF99: =COUNTIF(C99:AC100,"△") -> 0 | AG99: =+AD99*3+AF99*1 -> 0 | AH99: =+E100+H100+K100+N100+Q100+T100+W100+Z100+AC100 -> 38 | AI99: =C100+F100+I100+L100+O100+R100+U100+X100+AA100 -> 8 | AJ99: =+RANK(AG99,$AG$87:$AG$104,0)*100+RANK(AH99,$AH$87:$AH$104,1)*10+RANK(AI99,$AI$87:$AI$104,0) -> 797 | AK99: =+RANK(AJ99,$AJ$87:$AJ$104,1) -> 9
D100: - | F100: 8 | G100: ● | H100: 11 | J100: - | M100: - | P100: - | S100: - | X100: 0 | Y100: ● | Z100: 10 | AA100: 0 | AB100: ● | AC100: 17
A101: 44 | B101: =IF(データ２!B88="","",VLOOKUP(A101,データ２!$A$2:$B$216,2)) -> レッドファイヤーズ | C101: E | D101: - | E101: 7 | F101: E | G101: - | H101: 14 | I101: E | J101: - | K101: 20 | L101: E | M101: - | N101: 25 | R101: E | S101: - | T101: 32 | X101: ＊ | AD101: =COUNTIF(C101:AC102,"○") -> 3 | AE101: =COUNTIF(C101:AC102,"●") -> 0 | AF101: =COUNTIF(C101:AC102,"△") -> 0 | AG101: =+AD101*3+AF101*1 -> 9 | AH101: =+E102+H102+K102+N102+Q102+T102+W102+Z102+AC102 -> 12 | AI101: =C102+F102+I102+L102+O102+R102+U102+X102+AA102 -> 35 | AJ101: =+RANK(AG101,$AG$87:$AG$104,0)*100+RANK(AH101,$AH$87:$AH$104,1)*10+RANK(AI101,$AI$87:$AI$104,0) -> 152 | AK101: =+RANK(AJ101,$AJ$87:$AJ$104,1) -> 1
D102: - | G102: - | J102: - | M102: - | O102: 16 | P102: ○ | Q102: 4 | S102: - | U102: 10 | V102: ○ | W102: 0 | AA102: 9 | AB102: ○ | AC102: 8
A103: 45 | B103: =IF(データ２!B90="","",VLOOKUP(A103,データ２!$A$2:$B$216,2)) -> サンジュニア | F103: E | G103: - | H103: 15 | I103: E | J103: - | K103: 21 | O103: E | P103: - | Q103: 30 | R103: E | S103: - | T103: 33 | AA103: ＊ | AD103: =COUNTIF(C103:AC104,"○") -> 2 | AE103: =COUNTIF(C103:AC104,"●") -> 2 | AF103: =COUNTIF(C103:AC104,"△") -> 0 | AG103: =+AD103*3+AF103*1 -> 6 | AH103: =+E104+H104+K104+N104+Q104+T104+W104+Z104+AC104 -> 24 | AI103: =C104+F104+I104+L104+O104+R104+U104+X104+AA104 -> 42 | AJ103: =+RANK(AG103,$AG$87:$AG$104,0)*100+RANK(AH103,$AH$87:$AH$104,1)*10+RANK(AI103,$AI$87:$AI$104,0) -> 261 | AK103: =+RANK(AJ103,$AJ$87:$AJ$104,1) -> 4
C104: 8 | D104: ● | E104: 13 | G104: - | J104: - | L104: 9 | M104: ○ | N104: 2 | P104: - | S104: - | U104: 17 | V104: ○ | W104: 0 | X104: 8 | Y104: ● | Z104: 9
B106: =+データ１!$B$2 -> 2020/2/22 | C106: =+データ１!$B$4 -> 2020年
B107: =+データ１!B16 -> スーパーリ－グ 第１４回大会 Ｆブロック ２０２０ | C107: =+IF(B108="","",+B108) -> ブルースカイズ | F107: =+IF(B110="","",+B110) -> 高輪クラブ | I107: =+IF(B112="","",+B112) -> 球友ジュニアーズ | L107: =+IF(B114="","",+B114) -> 麹町ドリームス | O107: =+IF(B116="","",+B116) -> 東陽フェニックス | R107: =+IF(B118="","",+B118) -> 荒川コンドル | U107: =+IF(B120="","",+B120) -> 御殿山ファイターズ | X107: =+IF(B122="","",+B122) -> 駒込ベアーズ | AA107: =+IF(B124="","",+B124) -> 勝どきDナインホープ | AD107: 勝 | AE107: 負 | AF107: 分 | AG107: 勝点 | AH107: 失点 | AI107: 得点 | AJ107: 順位決定要素 | AK107: 順位
A108: 46 | B108: =IF(データ２!B92="","",VLOOKUP(A108,データ２!$A$2:$B$216,2)) -> ブルースカイズ | C108: ＊ | I108: F | J108: - | K108: 2 | R108: F | S108: - | T108: 5 | U108: F | V108: - | W108: 6 | X108: F | Y108: - | Z108: 7 | AD108: =COUNTIF(C108:AC109,"○") -> 2 | AE108: =COUNTIF(C108:AC109,"●") -> 2 | AF108: =COUNTIF(C108:AC109,"△") -> 0 | AG108: =+AD108*3+AF108*1 -> 6 | AH108: =+E109+H109+K109+N109+Q109+T109+W109+Z109+AC109 -> 30 | AI108: =C109+F109+I109+L109+O109+R109+U109+X109+AA109 -> 15 | AJ108: =+RANK(AG108,$AG$108:$AG$125,0)*100+RANK(AH108,$AH$108:$AH$125,1)*10+RANK(AI108,$AI$108:$AI$125,0) -> 384 | AK108: =+RANK(AJ108,$AJ$108:$AJ$125,1) -> 4
F109: 2 | G109: ○ | H109: 1 | J109: - | L109: 0 | M109: ● | N109: 9 | O109: 13 | P109: ○ | Q109: 3 | S109: - | V109: - | Y109: - | AA109: 0 | AB109: ● | AC109: 17
A110: 47 | B110: =IF(データ２!B94="","",VLOOKUP(A110,データ２!$A$2:$B$216,2)) -> 高輪クラブ | F110: ＊ | I110: F | J110: - | K110: 9 | AD110: =COUNTIF(C110:AC111,"○") -> 6 | AE110: =COUNTIF(C110:AC111,"●") -> 1 | AF110: =COUNTIF(C110:AC111,"△") -> 0 | AG110: =+AD110*3+AF110*1 -> 18 | AH110: =+E111+H111+K111+N111+Q111+T111+W111+Z111+AC111 -> 11 | AI110: =C111+F111+I111+L111+O111+R111+U111+X111+AA111 -> 62 | AJ110: =+RANK(AG110,$AG$108:$AG$125,0)*100+RANK(AH110,$AH$108:$AH$125,1)*10+RANK(AI110,$AI$108:$AI$125,0) -> 131 | AK110: =+RANK(AJ110,$AJ$108:$AJ$125,1) -> 1
C111: 1 | D111: ● | E111: 2 | J111: - | L111: 7 | M111: ○ | N111: 5 | O111: 14 | P111: ○ | Q111: 0 | R111: 3 | S111: ○ | T111: 0 | U111: 13 | V111: ○ | W111: 0 | X111: 13 | Y111: ○ | Z111: 3 | AA111: 11 | AB111: ○ | AC111: 1
A112: 48 | B112: =IF(データ２!B96="","",VLOOKUP(A112,データ２!$A$2:$B$216,2)) -> 球友ジュニアーズ | C112: F | D112: - | E112: 2 | F112: F | G112: - | H112: 9 | I112: ＊ | L112: F | M112: - | N112: 16 | O112: F | P112: - | Q112: 17 | R112: F | S112: - | T112: 18 | U112: F | V112: - | W112: 19 | X112: F | Y112: - | Z112: 20 | AA112: F | AB112: - | AC112: 21 | AD112: =COUNTIF(C112:AC113,"○") -> 0 | AE112: =COUNTIF(C112:AC113,"●") -> 0 | AF112: =COUNTIF(C112:AC113,"△") -> 0 | AG112: =+AD112*3+AF112*1 -> 0 | AH112: =+E113+H113+K113+N113+Q113+T113+W113+Z113+AC113 -> 0 | AI112: =C113+F113+I113+L113+O113+R113+U113+X113+AA113 -> 0 | AJ112: =+RANK(AG112,$AG$108:$AG$125,0)*100+RANK(AH112,$AH$108:$AH$125,1)*10+RANK(AI112,$AI$108:$AI$125,0) -> 517 | AK112: =+RANK(AJ112,$AJ$108:$AJ$125,1) -> 5
D113: - | G113: - | M113: - | P113: - | S113: - | V113: - | Y113: - | AB113: -
A114: 49 | B114: =IF(データ２!B98="","",VLOOKUP(A114,データ２!$A$2:$B$216,2)) -> 麹町ドリームス | I114: F | J114: - | K114: 16 | L114: ＊ | R114: F | S114: - | T114: 23 | U114: F | V114: - | W114: 24 | X114: F | Y114: - | Z114: 25 | AD114: =COUNTIF(C114:AC115,"○") -> 2 | AE114: =COUNTIF(C114:AC115,"●") -> 2 | AF114: =COUNTIF(C114:AC115,"△") -> 0 | AG114: =+AD114*3+AF114*1 -> 6 | AH114: =+E115+H115+K115+N115+Q115+T115+W115+Z115+AC115 -> 16 | AI114: =C115+F115+I115+L115+O115+R115+U115+X115+AA115 -> 21 | AJ114: =+RANK(AG114,$AG$108:$AG$125,0)*100+RANK(AH114,$AH$108:$AH$125,1)*10+RANK(AI114,$AI$108:$AI$125,0) -> 363 | AK114: =+RANK(AJ114,$AJ$108:$AJ$125,1) -> 3
C115: 9 | D115: ○ | E115: 0 | F115: 5 | G115: ● | H115: 7 | J115: - | O115: 6 | P115: ○ | Q115: 3 | S115: - | V115: - | Y115: - | AA115: 1 | AB115: ● | AC115: 6
A116: 50 | B116: =IF(データ２!B100="","",VLOOKUP(A116,データ２!$A$2:$B$216,2)) -> 東陽フェニックス | I116: F | J116: - | K116: 17 | O116: ＊ | R116: F | S116: - | T116: 27 | U116: F | V116: - | W116: 28 | X116: F | Y116: - | Z116: 29 | AD116: =COUNTIF(C116:AC117,"○") -> 0 | AE116: =COUNTIF(C116:AC117,"●") -> 4 | AF116: =COUNTIF(C116:AC117,"△") -> 0 | AG116: =+AD116*3+AF116*1 -> 0 | AH116: =+E117+H117+K117+N117+Q117+T117+W117+Z117+AC117 -> 34 | AI116: =C117+F117+I117+L117+O117+R117+U117+X117+AA117 -> 6 | AJ116: =+RANK(AG116,$AG$108:$AG$125,0)*100+RANK(AH116,$AH$108:$AH$125,1)*10+RANK(AI116,$AI$108:$AI$125,0) -> 595 | AK116: =+RANK(AJ116,$AJ$108:$AJ$125,1) -> 9
C117: 3 | D117: ● | E117: 13 | F117: 0 | G117: ● | H117: 14 | J117: - | L117: 3 | M117: ● | N117: 6 | S117: - | V117: - | Y117: - | AA117: 0 | AB117: ● | AC117: 1
A118: 51 | B118: =IF(データ２!B102="","",VLOOKUP(A118,データ２!$A$2:$B$216,2)) -> 荒川コンドル | C118: F | D118: - | E118: 5 | I118: F | J118: - | K118: 18 | L118: F | M118: - | N118: 23 | O118: F | P118: - | Q118: 27 | R118: ＊ | U118: F | V118: - | W118: 31 | X118: F | Y118: - | Z118: 32 | AA118: F | AB118: - | AC118: 33 | AD118: =COUNTIF(C118:AC119,"○") -> 0 | AE118: =COUNTIF(C118:AC119,"●") -> 1 | AF118: =COUNTIF(C118:AC119,"△") -> 0 | AG118: =+AD118*3+AF118*1 -> 0 | AH118: =+E119+H119+K119+N119+Q119+T119+W119+Z119+AC119 -> 3 | AI118: =C119+F119+I119+L119+O119+R119+U119+X119+AA119 -> 0 | AJ118: =+RANK(AG118,$AG$108:$AG$125,0)*100+RANK(AH118,$AH$108:$AH$125,1)*10+RANK(AI118,$AI$108:$AI$125,0) -> 527 | AK118: =+RANK(AJ118,$AJ$108:$AJ$125,1) -> 6
D119: - | F119: 0 | G119: ● | H119: 3 | J119: - | M119: - | P119: - | V119: - | Y119: - | AB119: -
A120: 52 | B120: =IF(データ２!B104="","",VLOOKUP(A120,データ２!$A$2:$B$216,2)) -> 御殿山ファイターズ | C120: F | D120: - | E120: 6 | I120: F | J120: - | K120: 19 | L120: F | M120: - | N120: 24 | O120: F | P120: - | Q120: 28 | R120: F | S120: - | T120: 31 | U120: ＊ | X120: F | Y120: - | Z120: 34 | AA120: F | AB120: - | AC120: 35 | AD120: =COUNTIF(C120:AC121,"○") -> 0 | AE120: =COUNTIF(C120:AC121,"●") -> 1 | AF120: =COUNTIF(C120:AC121,"△") -> 0 | AG120: =+AD120*3+AF120*1 -> 0 | AH120: =+E121+H121+K121+N121+Q121+T121+W121+Z121+AC121 -> 13 | AI120: =C121+F121+I121+L121+O121+R121+U121+X121+AA121 -> 0 | AJ120: =+RANK(AG120,$AG$108:$AG$125,0)*100+RANK(AH120,$AH$108:$AH$125,1)*10+RANK(AI120,$AI$108:$AI$125,0) -> 547 | AK120: =+RANK(AJ120,$AJ$108:$AJ$125,1) -> 7
D121: - | F121: 0 | G121: ● | H121: 13 | J121: - | M121: - | P121: - | S121: - | Y121: - | AB121: -
A122: 53 | B122: =IF(データ２!B106="","",VLOOKUP(A122,データ２!$A$2:$B$216,2)) -> 駒込ベアーズ | C122: F | D122: - | E122: 7 | I122: F | J122: - | K122: 20 | L122: F | M122: - | N122: 25 | O122: F | P122: - | Q122: 29 | R122: F | S122: - | T122: 32 | U122: F | V122: - | W122: 34 | X122: ＊ | AD122: =COUNTIF(C122:AC123,"○") -> 0 | AE122: =COUNTIF(C122:AC123,"●") -> 2 | AF122: =COUNTIF(C122:AC123,"△") -> 0 | AG122: =+AD122*3+AF122*1 -> 0 | AH122: =+E123+H123+K123+N123+Q123+T123+W123+Z123+AC123 -> 21 | AI122: =C123+F123+I123+L123+O123+R123+U123+X123+AA123 -> 6 | AJ122: =+RANK(AG122,$AG$108:$AG$125,0)*100+RANK(AH122,$AH$108:$AH$125,1)*10+RANK(AI122,$AI$108:$AI$125,0) -> 575 | AK122: =+RANK(AJ122,$AJ$108:$AJ$125,1) -> 8
D123: - | F123: 3 | G123: ● | H123: 13 | J123: - | M123: - | P123: - | S123: - | V123: - | AA123: 3 | AB123: ● | AC123: 8
A124: 54 | B124: =IF(データ２!B108="","",VLOOKUP(A124,データ２!$A$2:$B$216,2)) -> 勝どきDナインホープ | I124: F | J124: - | K124: 21 | R124: F | S124: - | T124: 33 | U124: F | V124: - | W124: 35 | AA124: ＊ | AD124: =COUNTIF(C124:AC125,"○") -> 4 | AE124: =COUNTIF(C124:AC125,"●") -> 1 | AF124: =COUNTIF(C124:AC125,"△") -> 0 | AG124: =+AD124*3+AF124*1 -> 12 | AH124: =+E125+H125+K125+N125+Q125+T125+W125+Z125+AC125 -> 15 | AI124: =C125+F125+I125+L125+O125+R125+U125+X125+AA125 -> 33 | AJ124: =+RANK(AG124,$AG$108:$AG$125,0)*100+RANK(AH124,$AH$108:$AH$125,1)*10+RANK(AI124,$AI$108:$AI$125,0) -> 252 | AK124: =+RANK(AJ124,$AJ$108:$AJ$125,1) -> 2
C125: 17 | D125: ○ | E125: 0 | F125: 1 | G125: ● | H125: 11 | J125: - | L125: 6 | M125: ○ | N125: 1 | O125: 1 | P125: ○ | Q125: 0 | S125: - | V125: - | X125: 8 | Y125: ○ | Z125: 3
B127: =+データ１!$B$2 -> 2020/2/22 | C127: =+データ１!$B$4 -> 2020年
B128: =+データ１!B18 -> スーパーリ－グ 第１４回大会 Ｇブロック ２０２０ | C128: =+IF(B129="","",+B129) -> 高島エイト | F128: =+IF(B131="","",+B131) -> 渋谷レッドソックス | I128: =+IF(B133="","",+B133) -> 北原少年野球クラブ | L128: =+IF(B135="","",+B135) -> 興宮ファイターズ | O128: =+IF(B137="","",+B137) -> フレール | R128: =+IF(B139="","",+B139) -> 東伊興シャインズ | U128: =+IF(B141="","",+B141) -> 中目黒イーグルス | X128: =+IF(B143="","",+B143) -> 大島タイガース | AA128: =+IF(B145="","",+B145) -> 市ヶ谷チーターズ | AD128: 勝 | AE128: 負 | AF128: 分 | AG128: 勝点 | AH128: 失点 | AI128: 得点 | AJ128: 順位決定要素 | AK128: 順位
A129: 55 | B129: =IF(データ２!B110="","",VLOOKUP(A129,データ２!$A$2:$B$216,2)) -> 高島エイト | C129: ＊ | F129: G | G129: - | H129: 1 | I129: G | J129: - | K129: 2 | L129: G | M129: - | N129: 3 | O129: G | P129: - | Q129: 4 | R129: G | S129: - | T129: 5 | U129: G | V129: - | W129: 6 | X129: G | Y129: - | Z129: 7 | AD129: =COUNTIF(C129:AC130,"○") -> 0 | AE129: =COUNTIF(C129:AC130,"●") -> 1 | AF129: =COUNTIF(C129:AC130,"△") -> 0 | AG129: =+AD129*3+AF129*1 -> 0 | AH129: =+E130+H130+K130+N130+Q130+T130+W130+Z130+AC130 -> 10 | AI129: =C130+F130+I130+L130+O130+R130+U130+X130+AA130 -> 4 | AJ129: =+RANK(AG129,$AG$129:$AG$146,0)*100+RANK(AH129,$AH$129:$AH$146,1)*10+RANK(AI129,$AI$129:$AI$146,0) -> 819 | AK129: =+RANK(AJ129,$AJ$129:$AJ$146,1) -> 8
G130: - | J130: - | M130: - | P130: - | S130: - | V130: - | Y130: - | AA130: 4 | AB130: ● | AC130: 10
A131: 56 | B131: =IF(データ２!B112="","",VLOOKUP(A131,データ２!$A$2:$B$216,2)) -> 渋谷レッドソックス | C131: G | D131: - | E131: 1 | F131: ＊ | I131: G | J131: - | K131: 9 | O131: G | P131: - | Q131: 11 | R131: G | S131: - | T131: 12 | AD131: =COUNTIF(C131:AC132,"○") -> 1 | AE131: =COUNTIF(C131:AC132,"●") -> 3 | AF131: =COUNTIF(C131:AC132,"△") -> 0 | AG131: =+AD131*3+AF131*1 -> 3 | AH131: =+E132+H132+K132+N132+Q132+T132+W132+Z132+AC132 -> 27 | AI131: =C132+F132+I132+L132+O132+R132+U132+X132+AA132 -> 15 | AJ131: =+RANK(AG131,$AG$129:$AG$146,0)*100+RANK(AH131,$AH$129:$AH$146,1)*10+RANK(AI131,$AI$129:$AI$146,0) -> 647 | AK131: =+RANK(AJ131,$AJ$129:$AJ$146,1) -> 6
D132: - | J132: - | L132: 1 | M132: ● | N132: 7 | P132: - | S132: - | U132: 2 | V132: ● | W132: 5 | X132: 2 | Y132: ● | Z132: 10 | AA132: 10 | AB132: ○ | AC132: 5
A133: 57 | B133: =IF(データ２!B114="","",VLOOKUP(A133,データ２!$A$2:$B$216,2)) -> 北原少年野球クラブ | C133: G | D133: - | E133: 2 | F133: G | G133: - | H133: 9 | I133: ＊ | O133: G | P133: - | Q133: 17 | X133: G | Y133: - | Z133: 20 | AD133: =COUNTIF(C133:AC134,"○") -> 3 | AE133: =COUNTIF(C133:AC134,"●") -> 1 | AF133: =COUNTIF(C133:AC134,"△") -> 0 | AG133: =+AD133*3+AF133*1 -> 9 | AH133: =+E134+H134+K134+N134+Q134+T134+W134+Z134+AC134 -> 13 | AI133: =C134+F134+I134+L134+O134+R134+U134+X134+AA134 -> 34 | AJ133: =+RANK(AG133,$AG$129:$AG$146,0)*100+RANK(AH133,$AH$129:$AH$146,1)*10+RANK(AI133,$AI$129:$AI$146,0) -> 324 | AK133: =+RANK(AJ133,$AJ$129:$AJ$146,1) -> 3
D134: - | G134: - | L134: 13 | M134: ○ | N134: 0 | P134: - | R134: 5 | S134: ○ | T134: 4 | U134: 14 | V134: ○ | W134: 1 | Y134: - | AA134: 2 | AB134: ● | AC134: 8
A135: 58 | B135: =IF(データ２!B116="","",VLOOKUP(A135,データ２!$A$2:$B$216,2)) -> 興宮ファイターズ | C135: G | D135: - | E135: 3 | L135: ＊ | O135: G | P135: - | Q135: 22 | AD135: =COUNTIF(C135:AC136,"○") -> 1 | AE135: =COUNTIF(C135:AC136,"●") -> 5 | AF135: =COUNTIF(C135:AC136,"△") -> 0 | AG135: =+AD135*3+AF135*1 -> 3 | AH135: =+E136+H136+K136+N136+Q136+T136+W136+Z136+AC136 -> 61 | AI135: =C136+F136+I136+L136+O136+R136+U136+X136+AA136 -> 31 | AJ135: =+RANK(AG135,$AG$129:$AG$146,0)*100+RANK(AH135,$AH$129:$AH$146,1)*10+RANK(AI135,$AI$129:$AI$146,0) -> 696 | AK135: =+RANK(AJ135,$AJ$129:$AJ$146,1) -> 7
D136: - | F136: 7 | G136: ○ | H136: 1 | I136: 0 | J136: ● | K136: 13 | P136: - | R136: 3 | S136: ● | T136: 4 | U136: 10 | V136: ● | W136: 11 | X136: 8 | Y136: ● | Z136: 12 | AA136: 3 | AB136: ● | AC136: 20
A137: 59 | B137: =IF(データ２!B118="","",VLOOKUP(A137,データ２!$A$2:$B$216,2)) -> フレール | C137: G | D137: - | E137: 4 | F137: G | G137: - | H137: 11 | I137: G | J137: - | K137: 17 | L137: G | M137: - | N137: 22 | O137: ＊ | R137: G | S137: - | T137: 27 | AD137: =COUNTIF(C137:AC138,"○") -> 0 | AE137: =COUNTIF(C137:AC138,"●") -> 3 | AF137: =COUNTIF(C137:AC138,"△") -> 0 | AG137: =+AD137*3+AF137*1 -> 0 | AH137: =+E138+H138+K138+N138+Q138+T138+W138+Z138+AC138 -> 28 | AI137: =C138+F138+I138+L138+O138+R138+U138+X138+AA138 -> 7 | AJ137: =+RANK(AG137,$AG$129:$AG$146,0)*100+RANK(AH137,$AH$129:$AH$146,1)*10+RANK(AI137,$AI$129:$AI$146,0) -> 858 | AK137: =+RANK(AJ137,$AJ$129:$AJ$146,1) -> 9
D138: - | G138: - | J138: - | M138: - | S138: - | U138: 1 | V138: ● | W138: 6 | X138: 6 | Y138: ● | Z138: 11 | AA138: 0 | AB138: ● | AC138: 11
A139: 60 | B139: =IF(データ２!B120="","",VLOOKUP(A139,データ２!$A$2:$B$216,2)) -> 東伊興シャインズ | C139: G | D139: - | E139: 5 | F139: G | G139: - | H139: 12 | O139: G | P139: - | Q139: 27 | R139: ＊ | AD139: =COUNTIF(C139:AC140,"○") -> 3 | AE139: =COUNTIF(C139:AC140,"●") -> 2 | AF139: =COUNTIF(C139:AC140,"△") -> 0 | AG139: =+AD139*3+AF139*1 -> 9 | AH139: =+E140+H140+K140+N140+Q140+T140+W140+Z140+AC140 -> 24 | AI139: =C140+F140+I140+L140+O140+R140+U140+X140+AA140 -> 32 | AJ139: =+RANK(AG139,$AG$129:$AG$146,0)*100+RANK(AH139,$AH$129:$AH$146,1)*10+RANK(AI139,$AI$129:$AI$146,0) -> 335 | AK139: =+RANK(AJ139,$AJ$129:$AJ$146,1) -> 4
D140: - | G140: - | I140: 4 | J140: ● | K140: 5 | L140: 4 | M140: ○ | N140: 3 | P140: - | U140: 5 | V140: ● | W140: 8 | X140: 12 | Y140: ○ | Z140: 2 | AA140: 7 | AB140: ○ | AC140: 6
A141: 61 | B141: =IF(データ２!B122="","",VLOOKUP(A141,データ２!$A$2:$B$216,2)) -> 中目黒イーグルス | C141: G | D141: - | E141: 6 | U141: ＊ | AD141: =COUNTIF(C141:AC142,"○") -> 6 | AE141: =COUNTIF(C141:AC142,"●") -> 1 | AF141: =COUNTIF(C141:AC142,"△") -> 0 | AG141: =+AD141*3+AF141*1 -> 18 | AH141: =+E142+H142+K142+N142+Q142+T142+W142+Z142+AC142 -> 37 | AI141: =C142+F142+I142+L142+O142+R142+U142+X142+AA142 -> 47 | AJ141: =+RANK(AG141,$AG$129:$AG$146,0)*100+RANK(AH141,$AH$129:$AH$146,1)*10+RANK(AI141,$AI$129:$AI$146,0) -> 172 | AK141: =+RANK(AJ141,$AJ$129:$AJ$146,1) -> 1
D142: - | F142: 5 | G142: ○ | H142: 2 | I142: 1 | J142: ● | K142: 14 | L142: 11 | M142: ○ | N142: 10 | O142: 6 | P142: ○ | Q142: 1 | R142: 8 | S142: ○ | T142: 5 | X142: 12 | Y142: ○ | Z142: 3 | AA142: 4 | AB142: ○ | AC142: 2
A143: 62 | B143: =IF(データ２!B124="","",VLOOKUP(A143,データ２!$A$2:$B$216,2)) -> 大島タイガース | C143: G | D143: - | E143: 7 | I143: G | J143: - | K143: 20 | X143: ＊ | AD143: =COUNTIF(C143:AC144,"○") -> 3 | AE143: =COUNTIF(C143:AC144,"●") -> 3 | AF143: =COUNTIF(C143:AC144,"△") -> 0 | AG143: =+AD143*3+AF143*1 -> 9 | AH143: =+E144+H144+K144+N144+Q144+T144+W144+Z144+AC144 -> 53 | AI143: =C144+F144+I144+L144+O144+R144+U144+X144+AA144 -> 39 | AJ143: =+RANK(AG143,$AG$129:$AG$146,0)*100+RANK(AH143,$AH$129:$AH$146,1)*10+RANK(AI143,$AI$129:$AI$146,0) -> 383 | AK143: =+RANK(AJ143,$AJ$129:$AJ$146,1) -> 5
D144: - | F144: 10 | G144: ○ | H144: 2 | J144: - | L144: 12 | M144: ○ | N144: 8 | O144: 11 | P144: ○ | Q144: 6 | R144: 2 | S144: ● | T144: 12 | U144: 3 | V144: ● | W144: 12 | AA144: 1 | AB144: ● | AC144: 13
A145: 63 | B145: =IF(データ２!B126="","",VLOOKUP(A145,データ２!$A$2:$B$216,2)) -> 市ヶ谷チーターズ | AA145: ＊ | AD145: =COUNTIF(C145:AC146,"○") -> 5 | AE145: =COUNTIF(C145:AC146,"●") -> 3 | AF145: =COUNTIF(C145:AC146,"△") -> 0 | AG145: =+AD145*3+AF145*1 -> 15 | AH145: =+E146+H146+K146+N146+Q146+T146+W146+Z146+AC146 -> 31 | AI145: =C146+F146+I146+L146+O146+R146+U146+X146+AA146 -> 75 | AJ145: =+RANK(AG145,$AG$129:$AG$146,0)*100+RANK(AH145,$AH$129:$AH$146,1)*10+RANK(AI145,$AI$129:$AI$146,0) -> 261 | AK145: =+RANK(AJ145,$AJ$129:$AJ$146,1) -> 2
C146: 10 | D146: ○ | E146: 4 | F146: 5 | G146: ● | H146: 10 | I146: 8 | J146: ○ | K146: 2 | L146: 20 | M146: ○ | N146: 3 | O146: 11 | P146: ○ | Q146: 0 | R146: 6 | S146: ● | T146: 7 | U146: 2 | V146: ● | W146: 4 | X146: 13 | Y146: ○ | Z146: 1
B148: =+データ１!$B$2 -> 2020/2/22 | C148: =+データ１!$B$4 -> 2020年
B149: =+データ１!B20 -> スーパーリ－グ 第１４回大会 Ｈブロック ２０２０ | C149: =+IF(B150="","",+B150) -> 有馬スワローズ | F149: =+IF(B152="","",+B152) -> 越中島ブレーブス | I149: =+IF(B154="","",+B154) -> 高井戸東少年野球 | L149: =+IF(B156="","",+B156) -> レッドシャークス | O149: =+IF(B158="","",+B158) -> 不動パイレーツ | R149: =+IF(B160="","",+B160) -> ナインスターズ | U149: =+IF(B162="","",+B162) -> 墨田スターズ | X149: =+IF(B164="","",+B164) -> 新田ファイヤーズ | AA149: =+IF(B166="","",+B166) -> 品川レインボーズ | AD149: 勝 | AE149: 負 | AF149: 分 | AG149: 勝点 | AH149: 失点 | AI149: 得点 | AJ149: 順位決定要素 | AK149: 順位
A150: 64 | B150: =IF(データ２!B128="","",VLOOKUP(A150,データ２!$A$2:$B$216,2)) -> 有馬スワローズ | C150: ＊ | I150: H | J150: - | K150: 2 | L150: H | M150: - | N150: 3 | R150: H | S150: - | T150: 5 | U150: H | V150: - | W150: 6 | X150: H | Y150: - | Z150: 7 | AD150: =COUNTIF(C150:AC151,"○") -> 0 | AE150: =COUNTIF(C150:AC151,"●") -> 3 | AF150: =COUNTIF(C150:AC151,"△") -> 0 | AG150: =+AD150*3+AF150*1 -> 0 | AH150: =+E151+H151+K151+N151+Q151+T151+W151+Z151+AC151 -> 36 | AI150: =C151+F151+I151+L151+O151+R151+U151+X151+AA151 -> 7 | AJ150: =+RANK(AG150,$AG$150:$AG$167,0)*100+RANK(AH150,$AH$150:$AH$167,1)*10+RANK(AI150,$AI$150:$AI$167,0) -> 595 | AK150: =+RANK(AJ150,$AJ$150:$AJ$167,1) -> 9
F151: 3 | G151: ● | H151: 9 | J151: - | M151: - | O151: 1 | P151: ● | Q151: 16 | S151: - | V151: - | Y151: - | AA151: 3 | AB151: ● | AC151: 11
A152: 65 | B152: =IF(データ２!B130="","",VLOOKUP(A152,データ２!$A$2:$B$216,2)) -> 越中島ブレーブス | F152: ＊ | I152: H | J152: - | K152: 9 | AD152: =COUNTIF(C152:AC153,"○") -> 4 | AE152: =COUNTIF(C152:AC153,"●") -> 2 | AF152: =COUNTIF(C152:AC153,"△") -> 1 | AG152: =+AD152*3+AF152*1 -> 13 | AH152: =+E153+H153+K153+N153+Q153+T153+W153+Z153+AC153 -> 34 | AI152: =C153+F153+I153+L153+O153+R153+U153+X153+AA153 -> 43 | AJ152: =+RANK(AG152,$AG$150:$AG$167,0)*100+RANK(AH152,$AH$150:$AH$167,1)*10+RANK(AI152,$AI$150:$AI$167,0) -> 383 | AK152: =+RANK(AJ152,$AJ$150:$AJ$167,1) -> 3
C153: 9 | D153: ○ | E153: 3 | J153: - | L153: 6 | M153: ○ | N153: 2 | O153: 5 | P153: △ | Q153: 5 | R153: 2 | S153: ● | T153: 6 | U153: 8 | V153: ○ | W153: 4 | X153: 6 | Y153: ○ | Z153: 1 | AA153: 7 | AB153: ● | AC153: 13
A154: 66 | B154: =IF(データ２!B132="","",VLOOKUP(A154,データ２!$A$2:$B$216,2)) -> 高井戸東少年野球 | C154: H | D154: - | E154: 2 | F154: H | G154: - | H154: 9 | I154: ＊ | L154: H | M154: - | N154: 16 | R154: H | S154: - | T154: 18 | U154: H | V154: - | W154: 19 | X154: H | Y154: - | Z154: 20 | AA154: H | AB154: - | AC154: 21 | AD154: =COUNTIF(C154:AC155,"○") -> 0 | AE154: =COUNTIF(C154:AC155,"●") -> 1 | AF154: =COUNTIF(C154:AC155,"△") -> 0 | AG154: =+AD154*3+AF154*1 -> 0 | AH154: =+E155+H155+K155+N155+Q155+T155+W155+Z155+AC155 -> 6 | AI154: =C155+F155+I155+L155+O155+R155+U155+X155+AA155 -> 5 | AJ154: =+RANK(AG154,$AG$150:$AG$167,0)*100+RANK(AH154,$AH$150:$AH$167,1)*10+RANK(AI154,$AI$150:$AI$167,0) -> 516 | AK154: =+RANK(AJ154,$AJ$150:$AJ$167,1) -> 5
D155: - | G155: - | M155: - | O155: 5 | P155: ● | Q155: 6 | S155: - | V155: - | Y155: - | AB155: -
A156: 67 | B156: =IF(データ２!B134="","",VLOOKUP(A156,データ２!$A$2:$B$216,2)) -> レッドシャークス | C156: H | D156: - | E156: 3 | I156: H | J156: - | K156: 16 | L156: ＊ | R156: H | S156: - | T156: 23 | U156: H | V156: - | W156: 24 | X156: H | Y156: - | Z156: 25 | AA156: H | AB156: - | AC156: 26 | AD156: =COUNTIF(C156:AC157,"○") -> 0 | AE156: =COUNTIF(C156:AC157,"●") -> 2 | AF156: =COUNTIF(C156:AC157,"△") -> 0 | AG156: =+AD156*3+AF156*1 -> 0 | AH156: =+E157+H157+K157+N157+Q157+T157+W157+Z157+AC157 -> 23 | AI156: =C157+F157+I157+L157+O157+R157+U157+X157+AA157 -> 2 | AJ156: =+RANK(AG156,$AG$150:$AG$167,0)*100+RANK(AH156,$AH$150:$AH$167,1)*10+RANK(AI156,$AI$150:$AI$167,0) -> 568 | AK156: =+RANK(AJ156,$AJ$150:$AJ$167,1) -> 7
D157: - | F157: 2 | G157: ● | H157: 6 | J157: - | O157: 0 | P157: ● | Q157: 17 | S157: - | V157: - | Y157: - | AB157: -
A158: 68 | B158: =IF(データ２!B136="","",VLOOKUP(A158,データ２!$A$2:$B$216,2)) -> 不動パイレーツ | O158: ＊ | U158: H | V158: - | W158: 28 | AD158: =COUNTIF(C158:AC159,"○") -> 6 | AE158: =COUNTIF(C158:AC159,"●") -> 0 | AF158: =COUNTIF(C158:AC159,"△") -> 1 | AG158: =+AD158*3+AF158*1 -> 19 | AH158: =+E159+H159+K159+N159+Q159+T159+W159+Z159+AC159 -> 18 | AI158: =C159+F159+I159+L159+O159+R159+U159+X159+AA159 -> 55 | AJ158: =+RANK(AG158,$AG$150:$AG$167,0)*100+RANK(AH158,$AH$150:$AH$167,1)*10+RANK(AI158,$AI$150:$AI$167,0) -> 142 | AK158: =+RANK(AJ158,$AJ$150:$AJ$167,1) -> 1
C159: 16 | D159: ○ | E159: 1 | F159: 5 | G159: △ | H159: 5 | I159: 6 | J159: ○ | K159: 5 | L159: 17 | M159: ○ | N159: 0 | R159: 4 | S159: ○ | T159: 3 | V159: - | X159: 2 | Y159: ○ | Z159: 0 | AA159: 5 | AB159: ○ | AC159: 4
A160: 69 | B160: =IF(データ２!B138="","",VLOOKUP(A160,データ２!$A$2:$B$216,2)) -> ナインスターズ | C160: H | D160: - | E160: 5 | I160: H | J160: - | K160: 18 | L160: H | M160: - | N160: 23 | R160: ＊ | U160: H | V160: - | W160: 31 | X160: H | Y160: - | Z160: 32 | AD160: =COUNTIF(C160:AC161,"○") -> 1 | AE160: =COUNTIF(C160:AC161,"●") -> 2 | AF160: =COUNTIF(C160:AC161,"△") -> 0 | AG160: =+AD160*3+AF160*1 -> 3 | AH160: =+E161+H161+K161+N161+Q161+T161+W161+Z161+AC161 -> 14 | AI160: =C161+F161+I161+L161+O161+R161+U161+X161+AA161 -> 14 | AJ160: =+RANK(AG160,$AG$150:$AG$167,0)*100+RANK(AH160,$AH$150:$AH$167,1)*10+RANK(AI160,$AI$150:$AI$167,0) -> 424 | AK160: =+RANK(AJ160,$AJ$150:$AJ$167,1) -> 4
D161: - | F161: 6 | G161: ○ | H161: 2 | J161: - | M161: - | O161: 3 | P161: ● | Q161: 4 | V161: - | Y161: - | AA161: 5 | AB161: ● | AC161: 8
A162: 70 | B162: =IF(データ２!B140="","",VLOOKUP(A162,データ２!$A$2:$B$216,2)) -> 墨田スターズ | C162: H | D162: - | E162: 6 | I162: H | J162: - | K162: 19 | L162: H | M162: - | N162: 24 | O162: H | P162: - | Q162: 28 | R162: H | S162: - | T162: 31 | U162: ＊ | X162: H | Y162: - | Z162: 34 | AD162: =COUNTIF(C162:AC163,"○") -> 0 | AE162: =COUNTIF(C162:AC163,"●") -> 2 | AF162: =COUNTIF(C162:AC163,"△") -> 0 | AG162: =+AD162*3+AF162*1 -> 0 | AH162: =+E163+H163+K163+N163+Q163+T163+W163+Z163+AC163 -> 15 | AI162: =C163+F163+I163+L163+O163+R163+U163+X163+AA163 -> 5 | AJ162: =+RANK(AG162,$AG$150:$AG$167,0)*100+RANK(AH162,$AH$150:$AH$167,1)*10+RANK(AI162,$AI$150:$AI$167,0) -> 536 | AK162: =+RANK(AJ162,$AJ$150:$AJ$167,1) -> 6
D163: - | F163: 4 | G163: ● | H163: 8 | J163: - | M163: - | P163: - | S163: - | Y163: - | AA163: 1 | AB163: ● | AC163: 7
A164: 71 | B164: =IF(データ２!B142="","",VLOOKUP(A164,データ２!$A$2:$B$216,2)) -> 新田ファイヤーズ | C164: H | D164: - | E164: 7 | I164: H | J164: - | K164: 20 | L164: H | M164: - | N164: 25 | R164: H | S164: - | T164: 32 | U164: H | V164: - | W164: 34 | X164: ＊ | AD164: =COUNTIF(C164:AC165,"○") -> 0 | AE164: =COUNTIF(C164:AC165,"●") -> 3 | AF164: =COUNTIF(C164:AC165,"△") -> 0 | AG164: =+AD164*3+AF164*1 -> 0 | AH164: =+E165+H165+K165+N165+Q165+T165+W165+Z165+AC165 -> 23 | AI164: =C165+F165+I165+L165+O165+R165+U165+X165+AA165 -> 1 | AJ164: =+RANK(AG164,$AG$150:$AG$167,0)*100+RANK(AH164,$AH$150:$AH$167,1)*10+RANK(AI164,$AI$150:$AI$167,0) -> 569 | AK164: =+RANK(AJ164,$AJ$150:$AJ$167,1) -> 8
D165: - | F165: 1 | G165: ● | H165: 6 | J165: - | M165: - | O165: 0 | P165: ● | Q165: 2 | S165: - | V165: - | AA165: 0 | AB165: ● | AC165: 15
A166: 72 | B166: =IF(データ２!B144="","",VLOOKUP(A166,データ２!$A$2:$B$216,2)) -> 品川レインボーズ | I166: H | J166: - | K166: 21 | L166: H | M166: - | N166: 26 | AA166: ＊ | AD166: =COUNTIF(C166:AC167,"○") -> 5 | AE166: =COUNTIF(C166:AC167,"●") -> 1 | AF166: =COUNTIF(C166:AC167,"△") -> 0 | AG166: =+AD166*3+AF166*1 -> 15 | AH166: =+E167+H167+K167+N167+Q167+T167+W167+Z167+AC167 -> 21 | AI166: =C167+F167+I167+L167+O167+R167+U167+X167+AA167 -> 58 | AJ166: =+RANK(AG166,$AG$150:$AG$167,0)*100+RANK(AH166,$AH$150:$AH$167,1)*10+RANK(AI166,$AI$150:$AI$167,0) -> 251 | AK166: =+RANK(AJ166,$AJ$150:$AJ$167,1) -> 2
C167: 11 | D167: ○ | E167: 3 | F167: 13 | G167: ○ | H167: 7 | J167: - | M167: - | O167: 4 | P167: ● | Q167: 5 | R167: 8 | S167: ○ | T167: 5 | U167: 7 | V167: ○ | W167: 1 | X167: 15 | Y167: ○ | Z167: 0
B169: =+データ１!$B$2 -> 2020/2/22 | C169: =+データ１!$B$4 -> 2020年
B170: =+データ１!B22 -> スーパーリ－グ 第１４回大会 Ｉブロック ２０２０ | C170: =+IF(B171="","",+B171) -> 大雲寺スターズ | F170: =+IF(B173="","",+B173) -> 東雲メッツ | I170: =+IF(B175="","",+B175) -> 亀戸連合 | L170: =+IF(B177="","",+B177) -> 池雪ジュニアＳ | O170: =+IF(B179="","",+B179) -> エンジェルス | R170: =+IF(B181="","",+B181) -> ヤングホークス | U170: =+IF(B183="","",+B183) -> 西伊興若潮ジュニア | X170: =+IF(B185="","",+B185) -> 旗の台クラブ | AA170: =+IF(B187="","",+B187) -> 城北メッツ | AD170: 勝 | AE170: 負 | AF170: 分 | AG170: 勝点 | AH170: 失点 | AI170: 得点 | AJ170: 順位決定要素 | AK170: 順位
A171: 73 | B171: =IF(データ２!B146="","",VLOOKUP(A171,データ２!$A$2:$B$216,2)) -> 大雲寺スターズ | C171: ＊ | F171: I | G171: - | H171: 1 | L171: I | M171: - | N171: 3 | O171: I | P171: - | Q171: 4 | R171: I | S171: - | T171: 5 | X171: I | Y171: - | Z171: 7 | AA171: I | AB171: - | AC171: 8 | AD171: =COUNTIF(C171:AC172,"○") -> 0 | AE171: =COUNTIF(C171:AC172,"●") -> 2 | AF171: =COUNTIF(C171:AC172,"△") -> 0 | AG171: =+AD171*3+AF171*1 -> 0 | AH171: =+E172+H172+K172+N172+Q172+T172+W172+Z172+AC172 -> 15 | AI171: =C172+F172+I172+L172+O172+R172+U172+X172+AA172 -> 5 | AJ171: =+RANK(AG171,$AG$171:$AG$188,0)*100+RANK(AH171,$AH$171:$AH$188,1)*10+RANK(AI171,$AI$171:$AI$188,0) -> 676 | AK171: =+RANK(AJ171,$AJ$171:$AJ$188,1) -> 7
G172: - | I172: 4 | J172: ● | K172: 5 | M172: - | P172: - | S172: - | U172: 1 | V172: ● | W172: 10 | Y172: - | AB172: -
A173: 74 | B173: =IF(データ２!B148="","",VLOOKUP(A173,データ２!$A$2:$B$216,2)) -> 東雲メッツ | C173: I | D173: - | E173: 1 | F173: ＊ | I173: I | J173: - | K173: 9 | L173: I | M173: - | N173: 10 | O173: I | P173: - | Q173: 11 | R173: I | S173: - | T173: 12 | U173: I | V173: - | W173: 13 | AD173: =COUNTIF(C173:AC174,"○") -> 0 | AE173: =COUNTIF(C173:AC174,"●") -> 2 | AF173: =COUNTIF(C173:AC174,"△") -> 0 | AG173: =+AD173*3+AF173*1 -> 0 | AH173: =+E174+H174+K174+N174+Q174+T174+W174+Z174+AC174 -> 21 | AI173: =C174+F174+I174+L174+O174+R174+U174+X174+AA174 -> 2 | AJ173: =+RANK(AG173,$AG$171:$AG$188,0)*100+RANK(AH173,$AH$171:$AH$188,1)*10+RANK(AI173,$AI$171:$AI$188,0) -> 699 | AK173: =+RANK(AJ173,$AJ$171:$AJ$188,1) -> 9
D174: - | J174: - | M174: - | P174: - | S174: - | V174: - | X174: 0 | Y174: ● | Z174: 9 | AA174: 2 | AB174: ● | AC174: 12
A175: 75 | B175: =IF(データ２!B150="","",VLOOKUP(A175,データ２!$A$2:$B$216,2)) -> 亀戸連合 | F175: I | G175: - | H175: 9 | I175: ＊ | O175: I | P175: - | Q175: 17 | R175: I | S175: - | T175: 18 | U175: I | V175: - | W175: 19 | X175: I | Y175: - | Z175: 20 | AA175: I | AB175: - | AC175: 21 | AD175: =COUNTIF(C175:AC176,"○") -> 1 | AE175: =COUNTIF(C175:AC176,"●") -> 1 | AF175: =COUNTIF(C175:AC176,"△") -> 0 | AG175: =+AD175*3+AF175*1 -> 3 | AH175: =+E176+H176+K176+N176+Q176+T176+W176+Z176+AC176 -> 10 | AI175: =C176+F176+I176+L176+O176+R176+U176+X176+AA176 -> 6 | AJ175: =+RANK(AG175,$AG$171:$AG$188,0)*100+RANK(AH175,$AH$171:$AH$188,1)*10+RANK(AI175,$AI$171:$AI$188,0) -> 425 | AK175: =+RANK(AJ175,$AJ$171:$AJ$188,1) -> 4
C176: 5 | D176: ○ | E176: 4 | G176: - | L176: 1 | M176: ● | N176: 6 | P176: - | S176: - | V176: - | Y176: - | AB176: -
A177: 76 | B177: =IF(データ２!B152="","",VLOOKUP(A177,データ２!$A$2:$B$216,2)) -> 池雪ジュニアＳ | C177: I | D177: - | E177: 3 | F177: I | G177: - | H177: 10 | L177: ＊ | O177: I | P177: - | Q177: 22 | R177: I | S177: - | T177: 23 | U177: I | V177: - | W177: 24 | AA177: I | AB177: - | AC177: 26 | AD177: =COUNTIF(C177:AC178,"○") -> 1 | AE177: =COUNTIF(C177:AC178,"●") -> 1 | AF177: =COUNTIF(C177:AC178,"△") -> 0 | AG177: =+AD177*3+AF177*1 -> 3 | AH177: =+E178+H178+K178+N178+Q178+T178+W178+Z178+AC178 -> 14 | AI177: =C178+F178+I178+L178+O178+R178+U178+X178+AA178 -> 9 | AJ177: =+RANK(AG177,$AG$171:$AG$188,0)*100+RANK(AH177,$AH$171:$AH$188,1)*10+RANK(AI177,$AI$171:$AI$188,0) -> 464 | AK177: =+RANK(AJ177,$AJ$171:$AJ$188,1) -> 5
D178: - | G178: - | I178: 6 | J178: ○ | K178: 1 | P178: - | S178: - | V178: - | X178: 3 | Y178: ● | Z178: 13 | AB178: -
A179: 77 | B179: =IF(データ２!B154="","",VLOOKUP(A179,データ２!$A$2:$B$216,2)) -> エンジェルス | C179: I | D179: - | E179: 4 | F179: I | G179: - | H179: 11 | I179: I | J179: - | K179: 17 | L179: I | M179: - | N179: 22 | O179: ＊ | R179: I | S179: - | T179: 27 | U179: I | V179: - | W179: 28 | X179: I | Y179: - | Z179: 29 | AD179: =COUNTIF(C179:AC180,"○") -> 0 | AE179: =COUNTIF(C179:AC180,"●") -> 1 | AF179: =COUNTIF(C179:AC180,"△") -> 0 | AG179: =+AD179*3+AF179*1 -> 0 | AH179: =+E180+H180+K180+N180+Q180+T180+W180+Z180+AC180 -> 9 | AI179: =C180+F180+I180+L180+O180+R180+U180+X180+AA180 -> 3 | AJ179: =+RANK(AG179,$AG$171:$AG$188,0)*100+RANK(AH179,$AH$171:$AH$188,1)*10+RANK(AI179,$AI$171:$AI$188,0) -> 618 | AK179: =+RANK(AJ179,$AJ$171:$AJ$188,1) -> 6
D180: - | G180: - | J180: - | M180: - | S180: - | V180: - | Y180: - | AA180: 3 | AB180: ● | AC180: 9
A181: 78 | B181: =IF(データ２!B156="","",VLOOKUP(A181,データ２!$A$2:$B$216,2)) -> ヤングホークス | C181: I | D181: - | E181: 5 | F181: I | G181: - | H181: 12 | I181: I | J181: - | K181: 18 | L181: I | M181: - | N181: 23 | O181: I | P181: - | Q181: 27 | R181: ＊ | X181: I | Y181: - | Z181: 32 | AA181: I | AB181: - | AC181: 33 | AD181: =COUNTIF(C181:AC182,"○") -> 0 | AE181: =COUNTIF(C181:AC182,"●") -> 1 | AF181: =COUNTIF(C181:AC182,"△") -> 0 | AG181: =+AD181*3+AF181*1 -> 0 | AH181: =+E182+H182+K182+N182+Q182+T182+W182+Z182+AC182 -> 20 | AI181: =C182+F182+I182+L182+O182+R182+U182+X182+AA182 -> 4 | AJ181: =+RANK(AG181,$AG$171:$AG$188,0)*100+RANK(AH181,$AH$171:$AH$188,1)*10+RANK(AI181,$AI$171:$AI$188,0) -> 687 | AK181: =+RANK(AJ181,$AJ$171:$AJ$188,1) -> 8
D182: - | G182: - | J182: - | M182: - | P182: - | U182: 4 | V182: ● | W182: 20 | Y182: - | AB182: -
A183: 79 | B183: =IF(データ２!B158="","",VLOOKUP(A183,データ２!$A$2:$B$216,2)) -> 西伊興若潮ジュニア | F183: I | G183: - | H183: 13 | I183: I | J183: - | K183: 19 | L183: I | M183: - | N183: 24 | O183: I | P183: - | Q183: 28 | U183: ＊ | AA183: I | AB183: - | AC183: 35 | AD183: =COUNTIF(C183:AC184,"○") -> 2 | AE183: =COUNTIF(C183:AC184,"●") -> 1 | AF183: =COUNTIF(C183:AC184,"△") -> 0 | AG183: =+AD183*3+AF183*1 -> 6 | AH183: =+E184+H184+K184+N184+Q184+T184+W184+Z184+AC184 -> 11 | AI183: =C184+F184+I184+L184+O184+R184+U184+X184+AA184 -> 35 | AJ183: =+RANK(AG183,$AG$171:$AG$188,0)*100+RANK(AH183,$AH$171:$AH$188,1)*10+RANK(AI183,$AI$171:$AI$188,0) -> 241 | AK183: =+RANK(AJ183,$AJ$171:$AJ$188,1) -> 2
C184: 10 | D184: ○ | E184: 1 | G184: - | J184: - | M184: - | P184: - | R184: 20 | S184: ○ | T184: 4 | X184: 5 | Y184: ● | Z184: 6 | AB184: -
A185: 80 | B185: =IF(データ２!B160="","",VLOOKUP(A185,データ２!$A$2:$B$216,2)) -> 旗の台クラブ | C185: I | D185: - | E185: 7 | I185: I | J185: - | K185: 20 | O185: I | P185: - | Q185: 29 | R185: I | S185: - | T185: 32 | X185: ＊ | AD185: =COUNTIF(C185:AC186,"○") -> 4 | AE185: =COUNTIF(C185:AC186,"●") -> 0 | AF185: =COUNTIF(C185:AC186,"△") -> 0 | AG185: =+AD185*3+AF185*1 -> 12 | AH185: =+E186+H186+K186+N186+Q186+T186+W186+Z186+AC186 -> 10 | AI185: =C186+F186+I186+L186+O186+R186+U186+X186+AA186 -> 34 | AJ185: =+RANK(AG185,$AG$171:$AG$188,0)*100+RANK(AH185,$AH$171:$AH$188,1)*10+RANK(AI185,$AI$171:$AI$188,0) -> 122 | AK185: =+RANK(AJ185,$AJ$171:$AJ$188,1) -> 1
D186: - | F186: 9 | G186: ○ | H186: 0 | J186: - | L186: 13 | M186: ○ | N186: 3 | P186: - | S186: - | U186: 6 | V186: ○ | W186: 5 | AA186: 6 | AB186: ○ | AC186: 2
A187: 81 | B187: =IF(データ２!B162="","",VLOOKUP(A187,データ２!$A$2:$B$216,2)) -> 城北メッツ | C187: I | D187: - | E187: 8 | I187: I | J187: - | K187: 21 | L187: I | M187: - | N187: 26 | R187: I | S187: - | T187: 33 | U187: I | V187: - | W187: 35 | AA187: ＊ | AD187: =COUNTIF(C187:AC188,"○") -> 2 | AE187: =COUNTIF(C187:AC188,"●") -> 1 | AF187: =COUNTIF(C187:AC188,"△") -> 0 | AG187: =+AD187*3+AF187*1 -> 6 | AH187: =+E188+H188+K188+N188+Q188+T188+W188+Z188+AC188 -> 11 | AI187: =C188+F188+I188+L188+O188+R188+U188+X188+AA188 -> 23 | AJ187: =+RANK(AG187,$AG$171:$AG$188,0)*100+RANK(AH187,$AH$171:$AH$188,1)*10+RANK(AI187,$AI$171:$AI$188,0) -> 243 | AK187: =+RANK(AJ187,$AJ$171:$AJ$188,1) -> 3
D188: - | F188: 12 | G188: ○ | H188: 2 | J188: - | M188: - | O188: 9 | P188: ○ | Q188: 3 | S188: - | V188: - | X188: 2 | Y188: ● | Z188: 6
B190: =+データ１!$B$2 -> 2020/2/22 | C190: =+データ１!$B$4 -> 2020年
B191: =+データ１!B24 -> スーパーリ－グ 第１４回大会 Ｊブロック ２０２０ | C191: =+IF(B192="","",+B192) -> 西田野球クラブ | F191: =+IF(B194="","",+B194) -> 茗荷谷クラブ | I191: =+IF(B196="","",+B196) -> 日本橋ファイターズ | L191: =+IF(B198="","",+B198) -> ニュー愛宕 | O191: =+IF(B200="","",+B200) -> ジャパンキングス | R191: =+IF(B202="","",+B202) -> 用賀ベアーズ | U191: =+IF(B204="","",+B204) -> 新宿ドリーム | X191: =+IF(B206="","",+B206) -> 葛西ファイターズ | AA191: =+IF(B208="","",+B208) -> ブラックキラーズ | AD191: 勝 | AE191: 負 | AF191: 分 | AG191: 勝点 | AH191: 失点 | AI191: 得点 | AJ191: 順位決定要素 | AK191: 順位
A192: 82 | B192: =IF(データ２!B182="","",VLOOKUP(A192,データ２!$A$2:$B$216,2)) -> 西田野球クラブ | C192: ＊ | I192: J | J192: - | K192: 2 | O192: J | P192: - | Q192: 4 | U192: J | V192: - | W192: 6 | X192: J | Y192: - | Z192: 7 | AA192: J | AB192: - | AC192: 8 | AD192: =COUNTIF(C192:AC193,"○") -> 3 | AE192: =COUNTIF(C192:AC193,"●") -> 0 | AF192: =COUNTIF(C192:AC193,"△") -> 0 | AG192: =+AD192*3+AF192*1 -> 9 | AH192: =+E193+H193+K193+N193+Q193+T193+W193+Z193+AC193 -> 5 | AI192: =C193+F193+I193+L193+O193+R193+U193+X193+AA193 -> 26 | AJ192: =+RANK(AG192,$AG$192:$AG$209,0)*100+RANK(AH192,$AH$192:$AH$209,1)*10+RANK(AI192,$AI$192:$AI$209,0) -> 121 | AK192: =+RANK(AJ192,$AJ$192:$AJ$209,1) -> 1
F193: 4 | G193: ○ | H193: 3 | J193: - | L193: 14 | M193: ○ | N193: 0 | P193: - | R193: 8 | S193: ○ | T193: 2 | V193: - | Y193: - | AB193: -
A194: 83 | B194: =IF(データ２!B184="","",VLOOKUP(A194,データ２!$A$2:$B$216,2)) -> 茗荷谷クラブ | F194: ＊ | I194: J | J194: - | K194: 9 | O194: J | P194: - | Q194: 11 | R194: J | S194: - | T194: 12 | U194: J | V194: - | W194: 13 | X194: J | Y194: - | Z194: 14 | AA194: J | AB194: - | AC194: 15 | AD194: =COUNTIF(C194:AC195,"○") -> 0 | AE194: =COUNTIF(C194:AC195,"●") -> 2 | AF194: =COUNTIF(C194:AC195,"△") -> 0 | AG194: =+AD194*3+AF194*1 -> 0 | AH194: =+E195+H195+K195+N195+Q195+T195+W195+Z195+AC195 -> 12 | AI194: =C195+F195+I195+L195+O195+R195+U195+X195+AA195 -> 7 | AJ194: =+RANK(AG194,$AG$192:$AG$209,0)*100+RANK(AH194,$AH$192:$AH$209,1)*10+RANK(AI194,$AI$192:$AI$209,0) -> 746 | AK194: =+RANK(AJ194,$AJ$192:$AJ$209,1) -> 9
C195: 3 | D195: ● | E195: 4 | J195: - | L195: 4 | M195: ● | N195: 8 | P195: - | S195: - | V195: - | Y195: - | AB195: -
A196: 84 | B196: =IF(データ２!B186="","",VLOOKUP(A196,データ２!$A$2:$B$216,2)) -> 日本橋ファイターズ | C196: J | D196: - | E196: 2 | F196: J | G196: - | H196: 9 | I196: ＊ | O196: J | P196: - | Q196: 17 | R196: J | S196: - | T196: 18 | AA196: J | AB196: - | AC196: 21 | AD196: =COUNTIF(C196:AC197,"○") -> 2 | AE196: =COUNTIF(C196:AC197,"●") -> 1 | AF196: =COUNTIF(C196:AC197,"△") -> 0 | AG196: =+AD196*3+AF196*1 -> 6 | AH196: =+E197+H197+K197+N197+Q197+T197+W197+Z197+AC197 -> 16 | AI196: =C197+F197+I197+L197+O197+R197+U197+X197+AA197 -> 24 | AJ196: =+RANK(AG196,$AG$192:$AG$209,0)*100+RANK(AH196,$AH$192:$AH$209,1)*10+RANK(AI196,$AI$192:$AI$209,0) -> 273 | AK196: =+RANK(AJ196,$AJ$192:$AJ$209,1) -> 2
D197: - | G197: - | L197: 5 | M197: ● | N197: 6 | P197: - | S197: - | U197: 6 | V197: ○ | W197: 5 | X197: 13 | Y197: ○ | Z197: 5 | AB197: -
A198: 85 | B198: =IF(データ２!B188="","",VLOOKUP(A198,データ２!$A$2:$B$216,2)) -> ニュー愛宕 | L198: ＊ | O198: J | P198: - | Q198: 22 | R198: J | S198: - | T198: 23 | U198: J | V198: - | W198: 24 | AA198: J | AB198: - | AC198: 26 | AD198: =COUNTIF(C198:AC199,"○") -> 2 | AE198: =COUNTIF(C198:AC199,"●") -> 2 | AF198: =COUNTIF(C198:AC199,"△") -> 0 | AG198: =+AD198*3+AF198*1 -> 6 | AH198: =+E199+H199+K199+N199+Q199+T199+W199+Z199+AC199 -> 37 | AI198: =C199+F199+I199+L199+O199+R199+U199+X199+AA199 -> 14 | AJ198: =+RANK(AG198,$AG$192:$AG$209,0)*100+RANK(AH198,$AH$192:$AH$209,1)*10+RANK(AI198,$AI$192:$AI$209,0) -> 294 | AK198: =+RANK(AJ198,$AJ$192:$AJ$209,1) -> 3
C199: 0 | D199: ● | E199: 14 | F199: 8 | G199: ○ | H199: 4 | I199: 6 | J199: ○ | K199: 5 | P199: - | S199: - | V199: - | X199: 0 | Y199: ● | Z199: 14 | AB199: -
A200: 86 | B200: =IF(データ２!B190="","",VLOOKUP(A200,データ２!$A$2:$B$216,2)) -> ジャパンキングス | C200: J | D200: - | E200: 4 | F200: J | G200: - | H200: 11 | I200: J | J200: - | K200: 17 | L200: J | M200: - | N200: 22 | O200: ＊ | R200: J | S200: - | T200: 27 | U200: J | V200: - | W200: 28 | X200: J | Y200: - | Z200: 29 | AA200: J | AB200: - | AC200: 30 | AD200: =COUNTIF(C200:AC201,"○") -> 0 | AE200: =COUNTIF(C200:AC201,"●") -> 0 | AF200: =COUNTIF(C200:AC201,"△") -> 0 | AG200: =+AD200*3+AF200*1 -> 0 | AH200: =+E201+H201+K201+N201+Q201+T201+W201+Z201+AC201 -> 0 | AI200: =C201+F201+I201+L201+O201+R201+U201+X201+AA201 -> 0 | AJ200: =+RANK(AG200,$AG$192:$AG$209,0)*100+RANK(AH200,$AH$192:$AH$209,1)*10+RANK(AI200,$AI$192:$AI$209,0) -> 719 | AK200: =+RANK(AJ200,$AJ$192:$AJ$209,1) -> 7
D201: - | G201: - | J201: - | M201: - | S201: - | V201: - | Y201: - | AB201: -
A202: 87 | B202: =IF(データ２!B192="","",VLOOKUP(A202,データ２!$A$2:$B$216,2)) -> 用賀ベアーズ | F202: J | G202: - | H202: 12 | I202: J | J202: - | K202: 18 | L202: J | M202: - | N202: 23 | O202: J | P202: - | Q202: 27 | R202: ＊ | U202: J | V202: - | W202: 31 | X202: J | Y202: - | Z202: 32 | AD202: =COUNTIF(C202:AC203,"○") -> 1 | AE202: =COUNTIF(C202:AC203,"●") -> 1 | AF202: =COUNTIF(C202:AC203,"△") -> 0 | AG202: =+AD202*3+AF202*1 -> 3 | AH202: =+E203+H203+K203+N203+Q203+T203+W203+Z203+AC203 -> 12 | AI202: =C203+F203+I203+L203+O203+R203+U203+X203+AA203 -> 7 | AJ202: =+RANK(AG202,$AG$192:$AG$209,0)*100+RANK(AH202,$AH$192:$AH$209,1)*10+RANK(AI202,$AI$192:$AI$209,0) -> 546 | AK202: =+RANK(AJ202,$AJ$192:$AJ$209,1) -> 5
C203: 2 | D203: ● | E203: 8 | G203: - | J203: - | M203: - | P203: - | V203: - | Y203: - | AA203: 5 | AB203: ○ | AC203: 4
A204: 88 | B204: =IF(データ２!B194="","",VLOOKUP(A204,データ２!$A$2:$B$216,2)) -> 新宿ドリーム | C204: J | D204: - | E204: 6 | F204: J | G204: - | H204: 13 | L204: J | M204: - | N204: 24 | O204: J | P204: - | Q204: 28 | R204: J | S204: - | T204: 31 | U204: ＊ | AA204: J | AB204: - | AC204: 35 | AD204: =COUNTIF(C204:AC205,"○") -> 0 | AE204: =COUNTIF(C204:AC205,"●") -> 1 | AF204: =COUNTIF(C204:AC205,"△") -> 1 | AG204: =+AD204*3+AF204*1 -> 1 | AH204: =+E205+H205+K205+N205+Q205+T205+W205+Z205+AC205 -> 12 | AI204: =C205+F205+I205+L205+O205+R205+U205+X205+AA205 -> 11 | AJ204: =+RANK(AG204,$AG$192:$AG$209,0)*100+RANK(AH204,$AH$192:$AH$209,1)*10+RANK(AI204,$AI$192:$AI$209,0) -> 645 | AK204: =+RANK(AJ204,$AJ$192:$AJ$209,1) -> 6
D205: - | G205: - | I205: 5 | J205: ● | K205: 6 | M205: - | P205: - | S205: - | X205: 6 | Y205: △ | Z205: 6 | AB205: -
A206: 89 | B206: =IF(データ２!B196="","",VLOOKUP(A206,データ２!$A$2:$B$216,2)) -> 葛西ファイターズ | C206: J | D206: - | E206: 7 | F206: J | G206: - | H206: 14 | O206: J | P206: - | Q206: 29 | R206: J | S206: - | T206: 32 | X206: ＊ | AA206: J | AB206: - | AC206: 36 | AD206: =COUNTIF(C206:AC207,"○") -> 1 | AE206: =COUNTIF(C206:AC207,"●") -> 1 | AF206: =COUNTIF(C206:AC207,"△") -> 1 | AG206: =+AD206*3+AF206*1 -> 4 | AH206: =+E207+H207+K207+N207+Q207+T207+W207+Z207+AC207 -> 19 | AI206: =C207+F207+I207+L207+O207+R207+U207+X207+AA207 -> 25 | AJ206: =+RANK(AG206,$AG$192:$AG$209,0)*100+RANK(AH206,$AH$192:$AH$209,1)*10+RANK(AI206,$AI$192:$AI$209,0) -> 482 | AK206: =+RANK(AJ206,$AJ$192:$AJ$209,1) -> 4
D207: - | G207: - | I207: 5 | J207: ● | K207: 13 | L207: 14 | M207: ○ | N207: 0 | P207: - | S207: - | U207: 6 | V207: △ | W207: 6 | AB207: -
A208: 90 | B208: =IF(データ２!B198="","",VLOOKUP(A208,データ２!$A$2:$B$216,2)) -> ブラックキラーズ | C208: J | D208: - | E208: 8 | F208: J | G208: - | H208: 15 | I208: J | J208: - | K208: 21 | L208: J | M208: - | N208: 26 | O208: J | P208: - | Q208: 30 | U208: J | V208: - | W208: 35 | X208: J | Y208: - | Z208: 36 | AA208: ＊ | AD208: =COUNTIF(C208:AC209,"○") -> 0 | AE208: =COUNTIF(C208:AC209,"●") -> 1 | AF208: =COUNTIF(C208:AC209,"△") -> 0 | AG208: =+AD208*3+AF208*1 -> 0 | AH208: =+E209+H209+K209+N209+Q209+T209+W209+Z209+AC209 -> 5 | AI208: =C209+F209+I209+L209+O209+R209+U209+X209+AA209 -> 4 | AJ208: =+RANK(AG208,$AG$192:$AG$209,0)*100+RANK(AH208,$AH$192:$AH$209,1)*10+RANK(AI208,$AI$192:$AI$209,0) -> 728 | AK208: =+RANK(AJ208,$AJ$192:$AJ$209,1) -> 8
D209: - | G209: - | J209: - | M209: - | P209: - | R209: 4 | S209: ● | T209: 5 | V209: - | Y209: -
... 41 more rows

Sheet データ１
A2: 作成日 | B2: 2020/2/22 | C2: 作成日 | D2: 2016/2/1 | E2: 作成日 | F2: 2016/2/1 | G2: 作成日 | H2: 2016/2/1 | I2: 作成日 | J2: 2016/2/1 | K2: 作成日 | L2: 2016/2/1 | M2: 作成日 | N2: 2016/2/1 | O2: 作成日 | P2: 2016/2/1 | Q2: 作成日 | R2: 2016/2/1 | S2: 作成日 | T2: 2016/2/1 | U2: 作成日 | V2: 2016/2/1 | W2: 作成日 | X2: 2016/2/1 | Y2: 作成日 | Z2: 2016/2/1 | AA2: 作成日 | AB2: 2016/2/1 | AC2: 作成日 | AD2: 2016/2/1 | AE2: 作成日 | AF2: 2016/2/1 | AG2: 作成日 | AH2: 2016/2/1 | AI2: 作成日 | AJ2: 2016/2/1 | AK2: 作成日 | AL2: 2016/2/1 | AM2: 作成日 | AN2: 2016/2/1 | AO2: 作成日 | AP2: 2016/2/1 | AQ2: 作成日 | AR2: 2016/2/1 | AS2: 作成日 | AT2: 2016/2/1 | AU2: 作成日 | AV2: 2016/2/1 | AW2: 作成日 | AX2: 2016/2/1 | AY2: 作成日 | AZ2: 2016/2/1 | BA2: 作成日 | BB2: 2016/2/1 | BC2: 作成日 | BD2: 2016/2/1 | BE2: 作成日 | BF2: 2016/2/1 | BG2: 作成日 | BH2: 2016/2/1 | BI2: 作成日 | BJ2: 2016/2/1 | BK2: 作成日 | BL2: 2016/2/1 | BM2: 作成日 | BN2: 2016/2/1 | BO2: 作成日 | BP2: 2016/2/1 | BQ2: 作成日 | BR2: 2016/2/1 | BS2: 作成日 | BT2: 2016/2/1 | BU2: 作成日 | BV2: 2016/2/1 | BW2: 作成日 | BX2: 2016/2/1 | BY2: 作成日 | BZ2: 2016/2/1 | CA2: 作成日 | CB2: 2016/2/1 | CC2: 作成日 | CD2: 2016/2/1 | CE2: 作成日 | CF2: 2016/2/1 | CG2: 作成日 | CH2: 2016/2/1 | CI2: 作成日 | CJ2: 2016/2/1 | CK2: 作成日 | CL2: 2016/2/1 | CM2: 作成日 | CN2: 2016/2/1 | CO2: 作成日 | CP2: 2016/2/1 | CQ2: 作成日 | CR2: 2016/2/1 | CS2: 作成日 | CT2: 2016/2/1 | CU2: 作成日 | CV2: 2016/2/1 | CW2: 作成日 | CX2: 2016/2/1 | CY2: 作成日 | CZ2: 2016/2/1 | DA2: 作成日 | DB2: 2016/2/1 | DC2: 作成日 | DD2: 2016/2/1 | DE2: 作成日 | DF2: 2016/2/1 | DG2: 作成日 | DH2: 2016/2/1 | DI2: 作成日 | DJ2: 2016/2/1 | DK2: 作成日 | DL2: 2016/2/1 | DM2: 作成日 | DN2: 2016/2/1 | DO2: 作成日 | DP2: 2016/2/1 | DQ2: 作成日 | DR2: 2016/2/1 | DS2: 作成日 | DT2: 2016/2/1 | DU2: 作成日 | DV2: 2016/2/1 | DW2: 作成日 | DX2: 2016/2/1 | DY2: 作成日 | DZ2: 2016/2/1 | EA2: 作成日 | EB2: 2016/2/1 | EC2: 作成日 | ED2: 2016/2/1 | EE2: 作成日 | EF2: 2016/2/1 | EG2: 作成日 | EH2: 2016/2/1 | EI2: 作成日 | EJ2: 2016/2/1 | EK2: 作成日 | EL2: 2016/2/1 | EM2: 作成日 | EN2: 2016/2/1 | EO2: 作成日 | EP2: 2016/2/1 | EQ2: 作成日 | ER2: 2016/2/1 | ES2: 作成日 | ET2: 2016/2/1 | EU2: 作成日 | EV2: 2016/2/1 | EW2: 作成日 | EX2: 2016/2/1 | EY2: 作成日 | EZ2: 2016/2/1 | FA2: 作成日 | FB2: 2016/2/1 | FC2: 作成日 | FD2: 2016/2/1 | FE2: 作成日 | FF2: 2016/2/1 | FG2: 作成日 | FH2: 2016/2/1 | FI2: 作成日 | FJ2: 2016/2/1 | FK2: 作成日 | FL2: 2016/2/1 | FM2: 作成日 | FN2: 2016/2/1 | FO2: 作成日 | FP2: 2016/2/1 | FQ2: 作成日 | FR2: 2016/2/1 | FS2: 作成日 | FT2: 2016/2/1 | FU2: 作成日 | FV2: 2016/2/1 | FW2: 作成日 | FX2: 2016/2/1 | FY2: 作成日 | FZ2: 2016/2/1 | GA2: 作成日 | GB2: 2016/2/1 | GC2: 作成日 | GD2: 2016/2/1 | GE2: 作成日 | GF2: 2016/2/1 | GG2: 作成日 | GH2: 2016/2/1 | GI2: 作成日 | GJ2: 2016/2/1 | GK2: 作成日 | GL2: 2016/2/1 | GM2: 作成日 | GN2: 2016/2/1 | GO2: 作成日 | GP2: 2016/2/1 | GQ2: 作成日 | GR2: 2016/2/1 | GS2: 作成日 | GT2: 2016/2/1 | GU2: 作成日 | GV2: 2016/2/1 | GW2: 作成日 | GX2: 2016/2/1 | GY2: 作成日 | GZ2: 2016/2/1 | HA2: 作成日 | HB2: 2016/2/1 | HC2: 作成日 | HD2: 2016/2/1 | HE2: 作成日 | HF2: 2016/2/1 | HG2: 作成日 | HH2: 2016/2/1 | HI2: 作成日 | HJ2: 2016/2/1 | HK2: 作成日 | HL2: 2016/2/1 | HM2: 作成日 | HN2: 2016/2/1 | HO2: 作成日 | HP2: 2016/2/1 | HQ2: 作成日 | HR2: 2016/2/1 | HS2: 作成日 | HT2: 2016/2/1 | HU2: 作成日 | HV2: 2016/2/1 | HW2: 作成日 | HX2: 2016/2/1 | HY2: 作成日 | HZ2: 2016/2/1 | IA2: 作成日 | IB2: 2016/2/1 | IC2: 作成日 | ID2: 2016/2/1 | IE2: 作成日 | IF2: 2016/2/1 | IG2: 作成日 | IH2: 2016/2/1 | II2: 作成日 | IJ2: 2016/2/1 | IK2: 作成日 | IL2: 2016/2/1 | IM2: 作成日 | IN2: 2016/2/1 | IO2: 作成日 | IP2: 2016/2/1 | IQ2: 作成日 | IR2: 2016/2/1 | IS2: 作成日 | IT2: 2016/2/1 | IU2: 作成日 | IV2: 2016/2/1
A4: 年度 | B4: 2020年 | C4: 年度 | D4: ２０１６年 | E4: 年度 | F4: ２０１６年 | G4: 年度 | H4: ２０１６年 | I4: 年度 | J4: ２０１６年 | K4: 年度 | L4: ２０１６年 | M4: 年度 | N4: ２０１６年 | O4: 年度 | P4: ２０１６年 | Q4: 年度 | R4: ２０１６年 | S4: 年度 | T4: ２０１６年 | U4: 年度 | V4: ２０１６年 | W4: 年度 | X4: ２０１６年 | Y4: 年度 | Z4: ２０１６年 | AA4: 年度 | AB4: ２０１６年 | AC4: 年度 | AD4: ２０１６年 | AE4: 年度 | AF4: ２０１６年 | AG4: 年度 | AH4: ２０１６年 | AI4: 年度 | AJ4: ２０１６年 | AK4: 年度 | AL4: ２０１６年 | AM4: 年度 | AN4: ２０１６年 | AO4: 年度 | AP4: ２０１６年 | AQ4: 年度 | AR4: ２０１６年 | AS4: 年度 | AT4: ２０１６年 | AU4: 年度 | AV4: ２０１６年 | AW4: 年度 | AX4: ２０１６年 | AY4: 年度 | AZ4: ２０１６年 | BA4: 年度 | BB4: ２０１６年 | BC4: 年度 | BD4: ２０１６年 | BE4: 年度 | BF4: ２０１６年 | BG4: 年度 | BH4: ２０１６年 | BI4: 年度 | BJ4: ２０１６年 | BK4: 年度 | BL4: ２０１６年 | BM4: 年度 | BN4: ２０１６年 | BO4: 年度 | BP4: ２０１６年 | BQ4: 年度 | BR4: ２０１６年 | BS4: 年度 | BT4: ２０１６年 | BU4: 年度 | BV4: ２０１６年 | BW4: 年度 | BX4: ２０１６年 | BY4: 年度 | BZ4: ２０１６年 | CA4: 年度 | CB4: ２０１６年 | CC4: 年度 | CD4: ２０１６年 | CE4: 年度 | CF4: ２０１６年 | CG4: 年度 | CH4: ２０１６年 | CI4: 年度 | CJ4: ２０１６年 | CK4: 年度 | CL4: ２０１６年 | CM4: 年度 | CN4: ２０１６年 | CO4: 年度 | CP4: ２０１６年 | CQ4: 年度 | CR4: ２０１６年 | CS4: 年度 | CT4: ２０１６年 | CU4: 年度 | CV4: ２０１６年 | CW4: 年度 | CX4: ２０１６年 | CY4: 年度 | CZ4: ２０１６年 | DA4: 年度 | DB4: ２０１６年 | DC4: 年度 | DD4: ２０１６年 | DE4: 年度 | DF4: ２０１６年 | DG4: 年度 | DH4: ２０１６年 | DI4: 年度 | DJ4: ２０１６年 | DK4: 年度 | DL4: ２０１６年 | DM4: 年度 | DN4: ２０１６年 | DO4: 年度 | DP4: ２０１６年 | DQ4: 年度 | DR4: ２０１６年 | DS4: 年度 | DT4: ２０１６年 | DU4: 年度 | DV4: ２０１６年 | DW4: 年度 | DX4: ２０１６年 | DY4: 年度 | DZ4: ２０１６年 | EA4: 年度 | EB4: ２０１６年 | EC4: 年度 | ED4: ２０１６年 | EE4: 年度 | EF4: ２０１６年 | EG4: 年度 | EH4: ２０１６年 | EI4: 年度 | EJ4: ２０１６年 | EK4: 年度 | EL4: ２０１６年 | EM4: 年度 | EN4: ２０１６年 | EO4: 年度 | EP4: ２０１６年 | EQ4: 年度 | ER4: ２０１６年 | ES4: 年度 | ET4: ２０１６年 | EU4: 年度 | EV4: ２０１６年 | EW4: 年度 | EX4: ２０１６年 | EY4: 年度 | EZ4: ２０１６年 | FA4: 年度 | FB4: ２０１６年 | FC4: 年度 | FD4: ２０１６年 | FE4: 年度 | FF4: ２０１６年 | FG4: 年度 | FH4: ２０１６年 | FI4: 年度 | FJ4: ２０１６年 | FK4: 年度 | FL4: ２０１６年 | FM4: 年度 | FN4: ２０１６年 | FO4: 年度 | FP4: ２０１６年 | FQ4: 年度 | FR4: ２０１６年 | FS4: 年度 | FT4: ２０１６年 | FU4: 年度 | FV4: ２０１６年 | FW4: 年度 | FX4: ２０１６年 | FY4: 年度 | FZ4: ２０１６年 | GA4: 年度 | GB4: ２０１６年 | GC4: 年度 | GD4: ２０１６年 | GE4: 年度 | GF4: ２０１６年 | GG4: 年度 | GH4: ２０１６年 | GI4: 年度 | GJ4: ２０１６年 | GK4: 年度 | GL4: ２０１６年 | GM4: 年度 | GN4: ２０１６年 | GO4: 年度 | GP4: ２０１６年 | GQ4: 年度 | GR4: ２０１６年 | GS4: 年度 | GT4: ２０１６年 | GU4: 年度 | GV4: ２０１６年 | GW4: 年度 | GX4: ２０１６年 | GY4: 年度 | GZ4: ２０１６年 | HA4: 年度 | HB4: ２０１６年 | HC4: 年度 | HD4: ２０１６年 | HE4: 年度 | HF4: ２０１６年 | HG4: 年度 | HH4: ２０１６年 | HI4: 年度 | HJ4: ２０１６年 | HK4: 年度 | HL4: ２０１６年 | HM4: 年度 | HN4: ２０１６年 | HO4: 年度 | HP4: ２０１６年 | HQ4: 年度 | HR4: ２０１６年 | HS4: 年度 | HT4: ２０１６年 | HU4: 年度 | HV4: ２０１６年 | HW4: 年度 | HX4: ２０１６年 | HY4: 年度 | HZ4: ２０１６年 | IA4: 年度 | IB4: ２０１６年 | IC4: 年度 | ID4: ２０１６年 | IE4: 年度 | IF4: ２０１６年 | IG4: 年度 | IH4: ２０１６年 | II4: 年度 | IJ4: ２０１６年 | IK4: 年度 | IL4: ２０１６年 | IM4: 年度 | IN4: ２０１６年 | IO4: 年度 | IP4: ２０１６年 | IQ4: 年度 | IR4: ２０１６年 | IS4: 年度 | IT4: ２０１６年 | IU4: 年度 | IV4: ２０１６年
A6: 表題１ | B6: スーパーリ－グ 第１４回大会 Aブロック ２０２０ | C6: 表題１ | D6: スーパーリ－グ 第１０回大会 Aブロック ２０１６ | E6: 表題１ | F6: スーパーリ－グ 第１０回大会 Aブロック ２０１６ | G6: 表題１ | H6: スーパーリ－グ 第１０回大会 Aブロック ２０１６ | I6: 表題１ | J6: スーパーリ－グ 第１０回大会 Aブロック ２０１６ | K6: 表題１ | L6: スーパーリ－グ 第１０回大会 Aブロック ２０１６ | M6: 表題１ | N6: スーパーリ－グ 第１０回大会 Aブロック ２０１６ | O6: 表題１ | P6: スーパーリ－グ 第１０回大会 Aブロック ２０１６ | Q6: 表題１ | R6: スーパーリ－グ 第１０回大会 Aブロック ２０１６ | S6: 表題１ | T6: スーパーリ－グ 第１０回大会 Aブロック ２０１６ | U6: 表題１ | V6: スーパーリ－グ 第１０回大会 Aブロック ２０１６ | W6: 表題１ | X6: スーパーリ－グ 第１０回大会 Aブロック ２０１６ | Y6: 表題１ | Z6: スーパーリ－グ 第１０回大会 Aブロック ２０１６ | AA6: 表題１ | AB6: スーパーリ－グ 第１０回大会 Aブロック ２０１６ | AC6: 表題１ | AD6: スーパーリ－グ 第１０回大会 Aブロック ２０１６ | AE6: 表題１ | AF6: スーパーリ－グ 第１０回大会 Aブロック ２０１６ | AG6: 表題１ | AH6: スーパーリ－グ 第１０回大会 Aブロック ２０１６ | AI6: 表題１ | AJ6: スーパーリ－グ 第１０回大会 Aブロック ２０１６ | AK6: 表題１ | AL6: スーパーリ－グ 第１０回大会 Aブロック ２０１６ | AM6: 表題１ | AN6: スーパーリ－グ 第１０回大会 Aブロック ２０１６ | AO6: 表題１ | AP6: スーパーリ－グ 第１０回大会 Aブロック ２０１６ | AQ6: 表題１ | AR6: スーパーリ－グ 第１０回大会 Aブロック ２０１６ | AS6: 表題１ | AT6: スーパーリ－グ 第１０回大会 Aブロック ２０１６ | AU6: 表題１ | AV6: スーパーリ－グ 第１０回大会 Aブロック ２０１６ | AW6: 表題１ | AX6: スーパーリ－グ 第１０回大会 Aブロック ２０１６ | AY6: 表題１ | AZ6: スーパーリ－グ 第１０回大会 Aブロック ２０１６ | BA6: 表題１ | BB6: スーパーリ－グ 第１０回大会 Aブロック ２０１６ | BC6: 表題１ | BD6: スーパーリ－グ 第１０回大会 Aブロック ２０１６ | BE6: 表題１ | BF6: スーパーリ－グ 第１０回大会 Aブロック ２０１６ | BG6: 表題１ | BH6: スーパーリ－グ 第１０回大会 Aブロック ２０１６ | BI6: 表題１ | BJ6: スーパーリ－グ 第１０回大会 Aブロック ２０１６ | BK6: 表題１ | BL6: スーパーリ－グ 第１０回大会 Aブロック ２０１６ | BM6: 表題１ | BN6: スーパーリ－グ 第１０回大会 Aブロック ２０１６ | BO6: 表題１ | BP6: スーパーリ－グ 第１０回大会 Aブロック ２０１６ | BQ6: 表題１ | BR6: スーパーリ－グ 第１０回大会 Aブロック ２０１６ | BS6: 表題１ | BT6: スーパーリ－グ 第１０回大会 Aブロック ２０１６ | BU6: 表題１ | BV6: スーパーリ－グ 第１０回大会 Aブロック ２０１６ | BW6: 表題１ | BX6: スーパーリ－グ 第１０回大会 Aブロック ２０１６ | BY6: 表題１ | BZ6: スーパーリ－グ 第１０回大会 Aブロック ２０１６ | CA6: 表題１ | CB6: スーパーリ－グ 第１０回大会 Aブロック ２０１６ | CC6: 表題１ | CD6: スーパーリ－グ 第１０回大会 Aブロック ２０１６ | CE6: 表題１ | CF6: スーパーリ－グ 第１０回大会 Aブロック ２０１６ | CG6: 表題１ | CH6: スーパーリ－グ 第１０回大会 Aブロック ２０１６ | CI6: 表題１ | CJ6: スーパーリ－グ 第１０回大会 Aブロック ２０１６ | CK6: 表題１ | CL6: スーパーリ－グ 第１０回大会 Aブロック ２０１６ | CM6: 表題１ | CN6: スーパーリ－グ 第１０回大会 Aブロック ２０１６ | CO6: 表題１ | CP6: スーパーリ－グ 第１０回大会 Aブロック ２０１６ | CQ6: 表題１ | CR6: スーパーリ－グ 第１０回大会 Aブロック ２０１６ | CS6: 表題１ | CT6: スーパーリ－グ 第１０回大会 Aブロック ２０１６ | CU6: 表題１ | CV6: スーパーリ－グ 第１０回大会 Aブロック ２０１６ | CW6: 表題１ | CX6: スーパーリ－グ 第１０回大会 Aブロック ２０１６ | CY6: 表題１ | CZ6: スーパーリ－グ 第１０回大会 Aブロック ２０１６ | DA6: 表題１ | DB6: スーパーリ－グ 第１０回大会 Aブロック ２０１６ | DC6: 表題１ | DD6: スーパーリ－グ 第１０回大会 Aブロック ２０１６ | DE6: 表題１ | DF6: スーパーリ－グ 第１０回大会 Aブロック ２０１６ | DG6: 表題１ | DH6: スーパーリ－グ 第１０回大会 Aブロック ２０１６ | DI6: 表題１ | DJ6: スーパーリ－グ 第１０回大会 Aブロック ２０１６ | DK6: 表題１ | DL6: スーパーリ－グ 第１０回大会 Aブロック ２０１６ | DM6: 表題１ | DN6: スーパーリ－グ 第１０回大会 Aブロック ２０１６ | DO6: 表題１ | DP6: スーパーリ－グ 第１０回大会 Aブロック ２０１６ | DQ6: 表題１ | DR6: スーパーリ－グ 第１０回大会 Aブロック ２０１６ | DS6: 表題１ | DT6: スーパーリ－グ 第１０回大会 Aブロック ２０１６ | DU6: 表題１ | DV6: スーパーリ－グ 第１０回大会 Aブロック ２０１６ | DW6: 表題１ | DX6: スーパーリ－グ 第１０回大会 Aブロック ２０１６ | DY6: 表題１ | DZ6: スーパーリ－グ 第１０回大会 Aブロック ２０１６ | EA6: 表題１ | EB6: スーパーリ－グ 第１０回大会 Aブロック ２０１６ | EC6: 表題１ | ED6: スーパーリ－グ 第１０回大会 Aブロック ２０１６ | EE6: 表題１ | EF6: スーパーリ－グ 第１０回大会 Aブロック ２０１６ | EG6: 表題１ | EH6: スーパーリ－グ 第１０回大会 Aブロック ２０１６ | EI6: 表題１ | EJ6: スーパーリ－グ 第１０回大会 Aブロック ２０１６ | EK6: 表題１ | EL6: スーパーリ－グ 第１０回大会 Aブロック ２０１６ | EM6: 表題１ | EN6: スーパーリ－グ 第１０回大会 Aブロック ２０１６ | EO6: 表題１ | EP6: スーパーリ－グ 第１０回大会 Aブロック ２０１６ | EQ6: 表題１ | ER6: スーパーリ－グ 第１０回大会 Aブロック ２０１６ | ES6: 表題１ | ET6: スーパーリ－グ 第１０回大会 Aブロック ２０１６ | EU6: 表題１ | EV6: スーパーリ－グ 第１０回大会 Aブロック ２０１６ | EW6: 表題１ | EX6: スーパーリ－グ 第１０回大会 Aブロック ２０１６ | EY6: 表題１ | EZ6: スーパーリ－グ 第１０回大会 Aブロック ２０１６ | FA6: 表題１ | FB6: スーパーリ－グ 第１０回大会 Aブロック ２０１６ | FC6: 表題１ | FD6: スーパーリ－グ 第１０回大会 Aブロック ２０１６ | FE6: 表題１ | FF6: スーパーリ－グ 第１０回大会 Aブロック ２０１６ | FG6: 表題１ | FH6: スーパーリ－グ 第１０回大会 Aブロック ２０１６ | FI6: 表題１ | FJ6: スーパーリ－グ 第１０回大会 Aブロック ２０１６ | FK6: 表題１ | FL6: スーパーリ－グ 第１０回大会 Aブロック ２０１６ | FM6: 表題１ | FN6: スーパーリ－グ 第１０回大会 Aブロック ２０１６ | FO6: 表題１ | FP6: スーパーリ－グ 第１０回大会 Aブロック ２０１６ | FQ6: 表題１ | FR6: スーパーリ－グ 第１０回大会 Aブロック ２０１６ | FS6: 表題１ | FT6: スーパーリ－グ 第１０回大会 Aブロック ２０１６ | FU6: 表題１ | FV6: スーパーリ－グ 第１０回大会 Aブロック ２０１６ | FW6: 表題１ | FX6: スーパーリ－グ 第１０回大会 Aブロック ２０１６ | FY6: 表題１ | FZ6: スーパーリ－グ 第１０回大会 Aブロック ２０１６ | GA6: 表題１ | GB6: スーパーリ－グ 第１０回大会 Aブロック ２０１６ | GC6: 表題１ | GD6: スーパーリ－グ 第１０回大会 Aブロック ２０１６ | GE6: 表題１ | GF6: スーパーリ－グ 第１０回大会 Aブロック ２０１６ | GG6: 表題１ | GH6: スーパーリ－グ 第１０回大会 Aブロック ２０１６ | GI6: 表題１ | GJ6: スーパーリ－グ 第１０回大会 Aブロック ２０１６ | GK6: 表題１ | GL6: スーパーリ－グ 第１０回大会 Aブロック ２０１６ | GM6: 表題１ | GN6: スーパーリ－グ 第１０回大会 Aブロック ２０１６ | GO6: 表題１ | GP6: スーパーリ－グ 第１０回大会 Aブロック ２０１６ | GQ6: 表題１ | GR6: スーパーリ－グ 第１０回大会 Aブロック ２０１６ | GS6: 表題１ | GT6: スーパーリ－グ 第１０回大会 Aブロック ２０１６ | GU6: 表題１ | GV6: スーパーリ－グ 第１０回大会 Aブロック ２０１６ | GW6: 表題１ | GX6: スーパーリ－グ 第１０回大会 Aブロック ２０１６ | GY6: 表題１ | GZ6: スーパーリ－グ 第１０回大会 Aブロック ２０１６ | HA6: 表題１ | HB6: スーパーリ－グ 第１０回大会 Aブロック ２０１６ | HC6: 表題１ | HD6: スーパーリ－グ 第１０回大会 Aブロック ２０１６ | HE6: 表題１ | HF6: スーパーリ－グ 第１０回大会 Aブロック ２０１６ | HG6: 表題１ | HH6: スーパーリ－グ 第１０回大会 Aブロック ２０１６ | HI6: 表題１ | HJ6: スーパーリ－グ 第１０回大会 Aブロック ２０１６ | HK6: 表題１ | HL6: スーパーリ－グ 第１０回大会 Aブロック ２０１６ | HM6: 表題１ | HN6: スーパーリ－グ 第１０回大会 Aブロック ２０１６ | HO6: 表題１ | HP6: スーパーリ－グ 第１０回大会 Aブロック ２０１６ | HQ6: 表題１ | HR6: スーパーリ－グ 第１０回大会 Aブロック ２０１６ | HS6: 表題１ | HT6: スーパーリ－グ 第１０回大会 Aブロック ２０１６ | HU6: 表題１ | HV6: スーパーリ－グ 第１０回大会 Aブロック ２０１６ | HW6: 表題１ | HX6: スーパーリ－グ 第１０回大会 Aブロック ２０１６ | HY6: 表題１ | HZ6: スーパーリ－グ 第１０回大会 Aブロック ２０１６ | IA6: 表題１ | IB6: スーパーリ－グ 第１０回大会 Aブロック ２０１６ | IC6: 表題１ | ID6: スーパーリ－グ 第１０回大会 Aブロック ２０１６ | IE6: 表題１ | IF6: スーパーリ－グ 第１０回大会 Aブロック ２０１６ | IG6: 表題１ | IH6: スーパーリ－グ 第１０回大会 Aブロック ２０１６ | II6: 表題１ | IJ6: スーパーリ－グ 第１０回大会 Aブロック ２０１６ | IK6: 表題１ | IL6: スーパーリ－グ 第１０回大会 Aブロック ２０１６ | IM6: 表題１ | IN6: スーパーリ－グ 第１０回大会 Aブロック ２０１６ | IO6: 表題１ | IP6: スーパーリ－グ 第１０回大会 Aブロック ２０１６ | IQ6: 表題１ | IR6: スーパーリ－グ 第１０回大会 Aブロック ２０１６ | IS6: 表題１ | IT6: スーパーリ－グ 第１０回大会 Aブロック ２０１６ | IU6: 表題１ | IV6: スーパーリ－グ 第１０回大会 Aブロック ２０１６
A8: 表題２ | B8: スーパーリ－グ 第１４回大会 Ｂブロック ２０２０ | C8: 表題２ | D8: スーパーリ－グ 第１０回大会 Ｂブロック ２０１６ | E8: 表題２ | F8: スーパーリ－グ 第１０回大会 Ｂブロック ２０１６ | G8: 表題２ | H8: スーパーリ－グ 第１０回大会 Ｂブロック ２０１６ | I8: 表題２ | J8: スーパーリ－グ 第１０回大会 Ｂブロック ２０１６ | K8: 表題２ | L8: スーパーリ－グ 第１０回大会 Ｂブロック ２０１６ | M8: 表題２ | N8: スーパーリ－グ 第１０回大会 Ｂブロック ２０１６ | O8: 表題２ | P8: スーパーリ－グ 第１０回大会 Ｂブロック ２０１６ | Q8: 表題２ | R8: スーパーリ－グ 第１０回大会 Ｂブロック ２０１６ | S8: 表題２ | T8: スーパーリ－グ 第１０回大会 Ｂブロック ２０１６ | U8: 表題２ | V8: スーパーリ－グ 第１０回大会 Ｂブロック ２０１６ | W8: 表題２ | X8: スーパーリ－グ 第１０回大会 Ｂブロック ２０１６ | Y8: 表題２ | Z8: スーパーリ－グ 第１０回大会 Ｂブロック ２０１６ | AA8: 表題２ | AB8: スーパーリ－グ 第１０回大会 Ｂブロック ２０１６ | AC8: 表題２ | AD8: スーパーリ－グ 第１０回大会 Ｂブロック ２０１６ | AE8: 表題２ | AF8: スーパーリ－グ 第１０回大会 Ｂブロック ２０１６ | AG8: 表題２ | AH8: スーパーリ－グ 第１０回大会 Ｂブロック ２０１６ | AI8: 表題２ | AJ8: スーパーリ－グ 第１０回大会 Ｂブロック ２０１６ | AK8: 表題２ | AL8: スーパーリ－グ 第１０回大会 Ｂブロック ２０１６ | AM8: 表題２ | AN8: スーパーリ－グ 第１０回大会 Ｂブロック ２０１６ | AO8: 表題２ | AP8: スーパーリ－グ 第１０回大会 Ｂブロック ２０１６ | AQ8: 表題２ | AR8: スーパーリ－グ 第１０回大会 Ｂブロック ２０１６ | AS8: 表題２ | AT8: スーパーリ－グ 第１０回大会 Ｂブロック ２０１６ | AU8: 表題２ | AV8: スーパーリ－グ 第１０回大会 Ｂブロック ２０１６ | AW8: 表題２ | AX8: スーパーリ－グ 第１０回大会 Ｂブロック ２０１６ | AY8: 表題２ | AZ8: スーパーリ－グ 第１０回大会 Ｂブロック ２０１６ | BA8: 表題２ | BB8: スーパーリ－グ 第１０回大会 Ｂブロック ２０１６ | BC8: 表題２ | BD8: スーパーリ－グ 第１０回大会 Ｂブロック ２０１６ | BE8: 表題２ | BF8: スーパーリ－グ 第１０回大会 Ｂブロック ２０１６ | BG8: 表題２ | BH8: スーパーリ－グ 第１０回大会 Ｂブロック ２０１６ | BI8: 表題２ | BJ8: スーパーリ－グ 第１０回大会 Ｂブロック ２０１６ | BK8: 表題２ | BL8: スーパーリ－グ 第１０回大会 Ｂブロック ２０１６ | BM8: 表題２ | BN8: スーパーリ－グ 第１０回大会 Ｂブロック ２０１６ | BO8: 表題２ | BP8: スーパーリ－グ 第１０回大会 Ｂブロック ２０１６ | BQ8: 表題２ | BR8: スーパーリ－グ 第１０回大会 Ｂブロック ２０１６ | BS8: 表題２ | BT8: スーパーリ－グ 第１０回大会 Ｂブロック ２０１６ | BU8: 表題２ | BV8: スーパーリ－グ 第１０回大会 Ｂブロック ２０１６ | BW8: 表題２ | BX8: スーパーリ－グ 第１０回大会 Ｂブロック ２０１６ | BY8: 表題２ | BZ8: スーパーリ－グ 第１０回大会 Ｂブロック ２０１６ | CA8: 表題２ | CB8: スーパーリ－グ 第１０回大会 Ｂブロック ２０１６ | CC8: 表題２ | CD8: スーパーリ－グ 第１０回大会 Ｂブロック ２０１６ | CE8: 表題２ | CF8: スーパーリ－グ 第１０回大会 Ｂブロック ２０１６ | CG8: 表題２ | CH8: スーパーリ－グ 第１０回大会 Ｂブロック ２０１６ | CI8: 表題２ | CJ8: スーパーリ－グ 第１０回大会 Ｂブロック ２０１６ | CK8: 表題２ | CL8: スーパーリ－グ 第１０回大会 Ｂブロック ２０１６ | CM8: 表題２ | CN8: スーパーリ－グ 第１０回大会 Ｂブロック ２０１６ | CO8: 表題２ | CP8: スーパーリ－グ 第１０回大会 Ｂブロック ２０１６ | CQ8: 表題２ | CR8: スーパーリ－グ 第１０回大会 Ｂブロック ２０１６ | CS8: 表題２ | CT8: スーパーリ－グ 第１０回大会 Ｂブロック ２０１６ | CU8: 表題２ | CV8: スーパーリ－グ 第１０回大会 Ｂブロック ２０１６ | CW8: 表題２ | CX8: スーパーリ－グ 第１０回大会 Ｂブロック ２０１６ | CY8: 表題２ | CZ8: スーパーリ－グ 第１０回大会 Ｂブロック ２０１６ | DA8: 表題２ | DB8: スーパーリ－グ 第１０回大会 Ｂブロック ２０１６ | DC8: 表題２ | DD8: スーパーリ－グ 第１０回大会 Ｂブロック ２０１６ | DE8: 表題２ | DF8: スーパーリ－グ 第１０回大会 Ｂブロック ２０１６ | DG8: 表題２ | DH8: スーパーリ－グ 第１０回大会 Ｂブロック ２０１６ | DI8: 表題２ | DJ8: スーパーリ－グ 第１０回大会 Ｂブロック ２０１６ | DK8: 表題２ | DL8: スーパーリ－グ 第１０回大会 Ｂブロック ２０１６ | DM8: 表題２ | DN8: スーパーリ－グ 第１０回大会 Ｂブロック ２０１６ | DO8: 表題２ | DP8: スーパーリ－グ 第１０回大会 Ｂブロック ２０１６ | DQ8: 表題２ | DR8: スーパーリ－グ 第１０回大会 Ｂブロック ２０１６ | DS8: 表題２ | DT8: スーパーリ－グ 第１０回大会 Ｂブロック ２０１６ | DU8: 表題２ | DV8: スーパーリ－グ 第１０回大会 Ｂブロック ２０１６ | DW8: 表題２ | DX8: スーパーリ－グ 第１０回大会 Ｂブロック ２０１６ | DY8: 表題２ | DZ8: スーパーリ－グ 第１０回大会 Ｂブロック ２０１６ | EA8: 表題２ | EB8: スーパーリ－グ 第１０回大会 Ｂブロック ２０１６ | EC8: 表題２ | ED8: スーパーリ－グ 第１０回大会 Ｂブロック ２０１６ | EE8: 表題２ | EF8: スーパーリ－グ 第１０回大会 Ｂブロック ２０１６ | EG8: 表題２ | EH8: スーパーリ－グ 第１０回大会 Ｂブロック ２０１６ | EI8: 表題２ | EJ8: スーパーリ－グ 第１０回大会 Ｂブロック ２０１６ | EK8: 表題２ | EL8: スーパーリ－グ 第１０回大会 Ｂブロック ２０１６ | EM8: 表題２ | EN8: スーパーリ－グ 第１０回大会 Ｂブロック ２０１６ | EO8: 表題２ | EP8: スーパーリ－グ 第１０回大会 Ｂブロック ２０１６ | EQ8: 表題２ | ER8: スーパーリ－グ 第１０回大会 Ｂブロック ２０１６ | ES8: 表題２ | ET8: スーパーリ－グ 第１０回大会 Ｂブロック ２０１６ | EU8: 表題２ | EV8: スーパーリ－グ 第１０回大会 Ｂブロック ２０１６ | EW8: 表題２ | EX8: スーパーリ－グ 第１０回大会 Ｂブロック ２０１６ | EY8: 表題２ | EZ8: スーパーリ－グ 第１０回大会 Ｂブロック ２０１６ | FA8: 表題２ | FB8: スーパーリ－グ 第１０回大会 Ｂブロック ２０１６ | FC8: 表題２ | FD8: スーパーリ－グ 第１０回大会 Ｂブロック ２０１６ | FE8: 表題２ | FF8: スーパーリ－グ 第１０回大会 Ｂブロック ２０１６ | FG8: 表題２ | FH8: スーパーリ－グ 第１０回大会 Ｂブロック ２０１６ | FI8: 表題２ | FJ8: スーパーリ－グ 第１０回大会 Ｂブロック ２０１６ | FK8: 表題２ | FL8: スーパーリ－グ 第１０回大会 Ｂブロック ２０１６ | FM8: 表題２ | FN8: スーパーリ－グ 第１０回大会 Ｂブロック ２０１６ | FO8: 表題２ | FP8: スーパーリ－グ 第１０回大会 Ｂブロック ２０１６ | FQ8: 表題２ | FR8: スーパーリ－グ 第１０回大会 Ｂブロック ２０１６ | FS8: 表題２ | FT8: スーパーリ－グ 第１０回大会 Ｂブロック ２０１６ | FU8: 表題２ | FV8: スーパーリ－グ 第１０回大会 Ｂブロック ２０１６ | FW8: 表題２ | FX8: スーパーリ－グ 第１０回大会 Ｂブロック ２０１６ | FY8: 表題２ | FZ8: スーパーリ－グ 第１０回大会 Ｂブロック ２０１６ | GA8: 表題２ | GB8: スーパーリ－グ 第１０回大会 Ｂブロック ２０１６ | GC8: 表題２ | GD8: スーパーリ－グ 第１０回大会 Ｂブロック ２０１６ | GE8: 表題２ | GF8: スーパーリ－グ 第１０回大会 Ｂブロック ２０１６ | GG8: 表題２ | GH8: スーパーリ－グ 第１０回大会 Ｂブロック ２０１６ | GI8: 表題２ | GJ8: スーパーリ－グ 第１０回大会 Ｂブロック ２０１６ | GK8: 表題２ | GL8: スーパーリ－グ 第１０回大会 Ｂブロック ２０１６ | GM8: 表題２ | GN8: スーパーリ－グ 第１０回大会 Ｂブロック ２０１６ | GO8: 表題２ | GP8: スーパーリ－グ 第１０回大会 Ｂブロック ２０１６ | GQ8: 表題２ | GR8: スーパーリ－グ 第１０回大会 Ｂブロック ２０１６ | GS8: 表題２ | GT8: スーパーリ－グ 第１０回大会 Ｂブロック ２０１６ | GU8: 表題２ | GV8: スーパーリ－グ 第１０回大会 Ｂブロック ２０１６ | GW8: 表題２ | GX8: スーパーリ－グ 第１０回大会 Ｂブロック ２０１６ | GY8: 表題２ | GZ8: スーパーリ－グ 第１０回大会 Ｂブロック ２０１６ | HA8: 表題２ | HB8: スーパーリ－グ 第１０回大会 Ｂブロック ２０１６ | HC8: 表題２ | HD8: スーパーリ－グ 第１０回大会 Ｂブロック ２０１６ | HE8: 表題２ | HF8: スーパーリ－グ 第１０回大会 Ｂブロック ２０１６ | HG8: 表題２ | HH8: スーパーリ－グ 第１０回大会 Ｂブロック ２０１６ | HI8: 表題２ | HJ8: スーパーリ－グ 第１０回大会 Ｂブロック ２０１６ | HK8: 表題２ | HL8: スーパーリ－グ 第１０回大会 Ｂブロック ２０１６ | HM8: 表題２ | HN8: スーパーリ－グ 第１０回大会 Ｂブロック ２０１６ | HO8: 表題２ | HP8: スーパーリ－グ 第１０回大会 Ｂブロック ２０１６ | HQ8: 表題２ | HR8: スーパーリ－グ 第１０回大会 Ｂブロック ２０１６ | HS8: 表題２ | HT8: スーパーリ－グ 第１０回大会 Ｂブロック ２０１６ | HU8: 表題２ | HV8: スーパーリ－グ 第１０回大会 Ｂブロック ２０１６ | HW8: 表題２ | HX8: スーパーリ－グ 第１０回大会 Ｂブロック ２０１６ | HY8: 表題２ | HZ8: スーパーリ－グ 第１０回大会 Ｂブロック ２０１６ | IA8: 表題２ | IB8: スーパーリ－グ 第１０回大会 Ｂブロック ２０１６ | IC8: 表題２ | ID8: スーパーリ－グ 第１０回大会 Ｂブロック ２０１６ | IE8: 表題２ | IF8: スーパーリ－グ 第１０回大会 Ｂブロック ２０１６ | IG8: 表題２ | IH8: スーパーリ－グ 第１０回大会 Ｂブロック ２０１６ | II8: 表題２ | IJ8: スーパーリ－グ 第１０回大会 Ｂブロック ２０１６ | IK8: 表題２ | IL8: スーパーリ－グ 第１０回大会 Ｂブロック ２０１６ | IM8: 表題２ | IN8: スーパーリ－グ 第１０回大会 Ｂブロック ２０１６ | IO8: 表題２ | IP8: スーパーリ－グ 第１０回大会 Ｂブロック ２０１６ | IQ8: 表題２ | IR8: スーパーリ－グ 第１０回大会 Ｂブロック ２０１６ | IS8: 表題２ | IT8: スーパーリ－グ 第１０回大会 Ｂブロック ２０１６ | IU8: 表題２ | IV8: スーパーリ－グ 第１０回大会 Ｂブロック ２０１６
A10: 表題３ | B10: スーパーリ－グ 第１４回大会 Ｃブロック ２０２０ | C10: 表題３ | D10: スーパーリ－グ 第１０回大会 Ｃブロック ２０１６ | E10: 表題３ | F10: スーパーリ－グ 第１０回大会 Ｃブロック ２０１６ | G10: 表題３ | H10: スーパーリ－グ 第１０回大会 Ｃブロック ２０１６ | I10: 表題３ | J10: スーパーリ－グ 第１０回大会 Ｃブロック ２０１６ | K10: 表題３ | L10: スーパーリ－グ 第１０回大会 Ｃブロック ２０１６ | M10: 表題３ | N10: スーパーリ－グ 第１０回大会 Ｃブロック ２０１６ | O10: 表題３ | P10: スーパーリ－グ 第１０回大会 Ｃブロック ２０１６ | Q10: 表題３ | R10: スーパーリ－グ 第１０回大会 Ｃブロック ２０１６ | S10: 表題３ | T10: スーパーリ－グ 第１０回大会 Ｃブロック ２０１６ | U10: 表題３ | V10: スーパーリ－グ 第１０回大会 Ｃブロック ２０１６ | W10: 表題３ | X10: スーパーリ－グ 第１０回大会 Ｃブロック ２０１６ | Y10: 表題３ | Z10: スーパーリ－グ 第１０回大会 Ｃブロック ２０１６ | AA10: 表題３ | AB10: スーパーリ－グ 第１０回大会 Ｃブロック ２０１６ | AC10: 表題３ | AD10: スーパーリ－グ 第１０回大会 Ｃブロック ２０１６ | AE10: 表題３ | AF10: スーパーリ－グ 第１０回大会 Ｃブロック ２０１６ | AG10: 表題３ | AH10: スーパーリ－グ 第１０回大会 Ｃブロック ２０１６ | AI10: 表題３ | AJ10: スーパーリ－グ 第１０回大会 Ｃブロック ２０１６ | AK10: 表題３ | AL10: スーパーリ－グ 第１０回大会 Ｃブロック ２０１６ | AM10: 表題３ | AN10: スーパーリ－グ 第１０回大会 Ｃブロック ２０１６ | AO10: 表題３ | AP10: スーパーリ－グ 第１０回大会 Ｃブロック ２０１６ | AQ10: 表題３ | AR10: スーパーリ－グ 第１０回大会 Ｃブロック ２０１６ | AS10: 表題３ | AT10: スーパーリ－グ 第１０回大会 Ｃブロック ２０１６ | AU10: 表題３ | AV10: スーパーリ－グ 第１０回大会 Ｃブロック ２０１６ | AW10: 表題３ | AX10: スーパーリ－グ 第１０回大会 Ｃブロック ２０１６ | AY10: 表題３ | AZ10: スーパーリ－グ 第１０回大会 Ｃブロック ２０１６ | BA10: 表題３ | BB10: スーパーリ－グ 第１０回大会 Ｃブロック ２０１６ | BC10: 表題３ | BD10: スーパーリ－グ 第１０回大会 Ｃブロック ２０１６ | BE10: 表題３ | BF10: スーパーリ－グ 第１０回大会 Ｃブロック ２０１６ | BG10: 表題３ | BH10: スーパーリ－グ 第１０回大会 Ｃブロック ２０１６ | BI10: 表題３ | BJ10: スーパーリ－グ 第１０回大会 Ｃブロック ２０１６ | BK10: 表題３ | BL10: スーパーリ－グ 第１０回大会 Ｃブロック ２０１６ | BM10: 表題３ | BN10: スーパーリ－グ 第１０回大会 Ｃブロック ２０１６ | BO10: 表題３ | BP10: スーパーリ－グ 第１０回大会 Ｃブロック ２０１６ | BQ10: 表題３ | BR10: スーパーリ－グ 第１０回大会 Ｃブロック ２０１６ | BS10: 表題３ | BT10: スーパーリ－グ 第１０回大会 Ｃブロック ２０１６ | BU10: 表題３ | BV10: スーパーリ－グ 第１０回大会 Ｃブロック ２０１６ | BW10: 表題３ | BX10: スーパーリ－グ 第１０回大会 Ｃブロック ２０１６ | BY10: 表題３ | BZ10: スーパーリ－グ 第１０回大会 Ｃブロック ２０１６ | CA10: 表題３ | CB10: スーパーリ－グ 第１０回大会 Ｃブロック ２０１６ | CC10: 表題３ | CD10: スーパーリ－グ 第１０回大会 Ｃブロック ２０１６ | CE10: 表題３ | CF10: スーパーリ－グ 第１０回大会 Ｃブロック ２０１６ | CG10: 表題３ | CH10: スーパーリ－グ 第１０回大会 Ｃブロック ２０１６ | CI10: 表題３ | CJ10: スーパーリ－グ 第１０回大会 Ｃブロック ２０１６ | CK10: 表題３ | CL10: スーパーリ－グ 第１０回大会 Ｃブロック ２０１６ | CM10: 表題３ | CN10: スーパーリ－グ 第１０回大会 Ｃブロック ２０１６ | CO10: 表題３ | CP10: スーパーリ－グ 第１０回大会 Ｃブロック ２０１６ | CQ10: 表題３ | CR10: スーパーリ－グ 第１０回大会 Ｃブロック ２０１６ | CS10: 表題３ | CT10: スーパーリ－グ 第１０回大会 Ｃブロック ２０１６ | CU10: 表題３ | CV10: スーパーリ－グ 第１０回大会 Ｃブロック ２０１６ | CW10: 表題３ | CX10: スーパーリ－グ 第１０回大会 Ｃブロック ２０１６ | CY10: 表題３ | CZ10: スーパーリ－グ 第１０回大会 Ｃブロック ２０１６ | DA10: 表題３ | DB10: スーパーリ－グ 第１０回大会 Ｃブロック ２０１６ | DC10: 表題３ | DD10: スーパーリ－グ 第１０回大会 Ｃブロック ２０１６ | DE10: 表題３ | DF10: スーパーリ－グ 第１０回大会 Ｃブロック ２０１６ | DG10: 表題３ | DH10: スーパーリ－グ 第１０回大会 Ｃブロック ２０１６ | DI10: 表題３ | DJ10: スーパーリ－グ 第１０回大会 Ｃブロック ２０１６ | DK10: 表題３ | DL10: スーパーリ－グ 第１０回大会 Ｃブロック ２０１６ | DM10: 表題３ | DN10: スーパーリ－グ 第１０回大会 Ｃブロック ２０１６ | DO10: 表題３ | DP10: スーパーリ－グ 第１０回大会 Ｃブロック ２０１６ | DQ10: 表題３ | DR10: スーパーリ－グ 第１０回大会 Ｃブロック ２０１６ | DS10: 表題３ | DT10: スーパーリ－グ 第１０回大会 Ｃブロック ２０１６ | DU10: 表題３ | DV10: スーパーリ－グ 第１０回大会 Ｃブロック ２０１６ | DW10: 表題３ | DX10: スーパーリ－グ 第１０回大会 Ｃブロック ２０１６ | DY10: 表題３ | DZ10: スーパーリ－グ 第１０回大会 Ｃブロック ２０１６ | EA10: 表題３ | EB10: スーパーリ－グ 第１０回大会 Ｃブロック ２０１６ | EC10: 表題３ | ED10: スーパーリ－グ 第１０回大会 Ｃブロック ２０１６ | EE10: 表題３ | EF10: スーパーリ－グ 第１０回大会 Ｃブロック ２０１６ | EG10: 表題３ | EH10: スーパーリ－グ 第１０回大会 Ｃブロック ２０１６ | EI10: 表題３ | EJ10: スーパーリ－グ 第１０回大会 Ｃブロック ２０１６ | EK10: 表題３ | EL10: スーパーリ－グ 第１０回大会 Ｃブロック ２０１６ | EM10: 表題３ | EN10: スーパーリ－グ 第１０回大会 Ｃブロック ２０１６ | EO10: 表題３ | EP10: スーパーリ－グ 第１０回大会 Ｃブロック ２０１６ | EQ10: 表題３ | ER10: スーパーリ－グ 第１０回大会 Ｃブロック ２０１６ | ES10: 表題３ | ET10: スーパーリ－グ 第１０回大会 Ｃブロック ２０１６ | EU10: 表題３ | EV10: スーパーリ－グ 第１０回大会 Ｃブロック ２０１６ | EW10: 表題３ | EX10: スーパーリ－グ 第１０回大会 Ｃブロック ２０１６ | EY10: 表題３ | EZ10: スーパーリ－グ 第１０回大会 Ｃブロック ２０１６ | FA10: 表題３ | FB10: スーパーリ－グ 第１０回大会 Ｃブロック ２０１６ | FC10: 表題３ | FD10: スーパーリ－グ 第１０回大会 Ｃブロック ２０１６ | FE10: 表題３ | FF10: スーパーリ－グ 第１０回大会 Ｃブロック ２０１６ | FG10: 表題３ | FH10: スーパーリ－グ 第１０回大会 Ｃブロック ２０１６ | FI10: 表題３ | FJ10: スーパーリ－グ 第１０回大会 Ｃブロック ２０１６ | FK10: 表題３ | FL10: スーパーリ－グ 第１０回大会 Ｃブロック ２０１６ | FM10: 表題３ | FN10: スーパーリ－グ 第１０回大会 Ｃブロック ２０１６ | FO10: 表題３ | FP10: スーパーリ－グ 第１０回大会 Ｃブロック ２０１６ | FQ10: 表題３ | FR10: スーパーリ－グ 第１０回大会 Ｃブロック ２０１６ | FS10: 表題３ | FT10: スーパーリ－グ 第１０回大会 Ｃブロック ２０１６ | FU10: 表題３ | FV10: スーパーリ－グ 第１０回大会 Ｃブロック ２０１６ | FW10: 表題３ | FX10: スーパーリ－グ 第１０回大会 Ｃブロック ２０１６ | FY10: 表題３ | FZ10: スーパーリ－グ 第１０回大会 Ｃブロック ２０１６ | GA10: 表題３ | GB10: スーパーリ－グ 第１０回大会 Ｃブロック ２０１６ | GC10: 表題３ | GD10: スーパーリ－グ 第１０回大会 Ｃブロック ２０１６ | GE10: 表題３ | GF10: スーパーリ－グ 第１０回大会 Ｃブロック ２０１６ | GG10: 表題３ | GH10: スーパーリ－グ 第１０回大会 Ｃブロック ２０１６ | GI10: 表題３ | GJ10: スーパーリ－グ 第１０回大会 Ｃブロック ２０１６ | GK10: 表題３ | GL10: スーパーリ－グ 第１０回大会 Ｃブロック ２０１６ | GM10: 表題３ | GN10: スーパーリ－グ 第１０回大会 Ｃブロック ２０１６ | GO10: 表題３ | GP10: スーパーリ－グ 第１０回大会 Ｃブロック ２０１６ | GQ10: 表題３ | GR10: スーパーリ－グ 第１０回大会 Ｃブロック ２０１６ | GS10: 表題３ | GT10: スーパーリ－グ 第１０回大会 Ｃブロック ２０１６ | GU10: 表題３ | GV10: スーパーリ－グ 第１０回大会 Ｃブロック ２０１６ | GW10: 表題３ | GX10: スーパーリ－グ 第１０回大会 Ｃブロック ２０１６ | GY10: 表題３ | GZ10: スーパーリ－グ 第１０回大会 Ｃブロック ２０１６ | HA10: 表題３ | HB10: スーパーリ－グ 第１０回大会 Ｃブロック ２０１６ | HC10: 表題３ | HD10: スーパーリ－グ 第１０回大会 Ｃブロック ２０１６ | HE10: 表題３ | HF10: スーパーリ－グ 第１０回大会 Ｃブロック ２０１６ | HG10: 表題３ | HH10: スーパーリ－グ 第１０回大会 Ｃブロック ２０１６ | HI10: 表題３ | HJ10: スーパーリ－グ 第１０回大会 Ｃブロック ２０１６ | HK10: 表題３ | HL10: スーパーリ－グ 第１０回大会 Ｃブロック ２０１６ | HM10: 表題３ | HN10: スーパーリ－グ 第１０回大会 Ｃブロック ２０１６ | HO10: 表題３ | HP10: スーパーリ－グ 第１０回大会 Ｃブロック ２０１６ | HQ10: 表題３ | HR10: スーパーリ－グ 第１０回大会 Ｃブロック ２０１６ | HS10: 表題３ | HT10: スーパーリ－グ 第１０回大会 Ｃブロック ２０１６ | HU10: 表題３ | HV10: スーパーリ－グ 第１０回大会 Ｃブロック ２０１６ | HW10: 表題３ | HX10: スーパーリ－グ 第１０回大会 Ｃブロック ２０１６ | HY10: 表題３ | HZ10: スーパーリ－グ 第１０回大会 Ｃブロック ２０１６ | IA10: 表題３ | IB10: スーパーリ－グ 第１０回大会 Ｃブロック ２０１６ | IC10: 表題３ | ID10: スーパーリ－グ 第１０回大会 Ｃブロック ２０１６ | IE10: 表題３ | IF10: スーパーリ－グ 第１０回大会 Ｃブロック ２０１６ | IG10: 表題３ | IH10: スーパーリ－グ 第１０回大会 Ｃブロック ２０１６ | II10: 表題３ | IJ10: スーパーリ－グ 第１０回大会 Ｃブロック ２０１６ | IK10: 表題３ | IL10: スーパーリ－グ 第１０回大会 Ｃブロック ２０１６ | IM10: 表題３ | IN10: スーパーリ－グ 第１０回大会 Ｃブロック ２０１６ | IO10: 表題３ | IP10: スーパーリ－グ 第１０回大会 Ｃブロック ２０１６ | IQ10: 表題３ | IR10: スーパーリ－グ 第１０回大会 Ｃブロック ２０１６ | IS10: 表題３ | IT10: スーパーリ－グ 第１０回大会 Ｃブロック ２０１６ | IU10: 表題３ | IV10: スーパーリ－グ 第１０回大会 Ｃブロック ２０１６
A12: 表題４ | B12: スーパーリ－グ 第１４回大会 Ｄブロック ２０２０ | C12: 表題４ | D12: スーパーリ－グ 第１０回大会 Ｄブロック ２０１６ | E12: 表題４ | F12: スーパーリ－グ 第１０回大会 Ｄブロック ２０１６ | G12: 表題４ | H12: スーパーリ－グ 第１０回大会 Ｄブロック ２０１６ | I12: 表題４ | J12: スーパーリ－グ 第１０回大会 Ｄブロック ２０１６ | K12: 表題４ | L12: スーパーリ－グ 第１０回大会 Ｄブロック ２０１６ | M12: 表題４ | N12: スーパーリ－グ 第１０回大会 Ｄブロック ２０１６ | O12: 表題４ | P12: スーパーリ－グ 第１０回大会 Ｄブロック ２０１６ | Q12: 表題４ | R12: スーパーリ－グ 第１０回大会 Ｄブロック ２０１６ | S12: 表題４ | T12: スーパーリ－グ 第１０回大会 Ｄブロック ２０１６ | U12: 表題４ | V12: スーパーリ－グ 第１０回大会 Ｄブロック ２０１６ | W12: 表題４ | X12: スーパーリ－グ 第１０回大会 Ｄブロック ２０１６ | Y12: 表題４ | Z12: スーパーリ－グ 第１０回大会 Ｄブロック ２０１６ | AA12: 表題４ | AB12: スーパーリ－グ 第１０回大会 Ｄブロック ２０１６ | AC12: 表題４ | AD12: スーパーリ－グ 第１０回大会 Ｄブロック ２０１６ | AE12: 表題４ | AF12: スーパーリ－グ 第１０回大会 Ｄブロック ２０１６ | AG12: 表題４ | AH12: スーパーリ－グ 第１０回大会 Ｄブロック ２０１６ | AI12: 表題４ | AJ12: スーパーリ－グ 第１０回大会 Ｄブロック ２０１６ | AK12: 表題４ | AL12: スーパーリ－グ 第１０回大会 Ｄブロック ２０１６ | AM12: 表題４ | AN12: スーパーリ－グ 第１０回大会 Ｄブロック ２０１６ | AO12: 表題４ | AP12: スーパーリ－グ 第１０回大会 Ｄブロック ２０１６ | AQ12: 表題４ | AR12: スーパーリ－グ 第１０回大会 Ｄブロック ２０１６ | AS12: 表題４ | AT12: スーパーリ－グ 第１０回大会 Ｄブロック ２０１６ | AU12: 表題４ | AV12: スーパーリ－グ 第１０回大会 Ｄブロック ２０１６ | AW12: 表題４ | AX12: スーパーリ－グ 第１０回大会 Ｄブロック ２０１６ | AY12: 表題４ | AZ12: スーパーリ－グ 第１０回大会 Ｄブロック ２０１６ | BA12: 表題４ | BB12: スーパーリ－グ 第１０回大会 Ｄブロック ２０１６ | BC12: 表題４ | BD12: スーパーリ－グ 第１０回大会 Ｄブロック ２０１６ | BE12: 表題４ | BF12: スーパーリ－グ 第１０回大会 Ｄブロック ２０１６ | BG12: 表題４ | BH12: スーパーリ－グ 第１０回大会 Ｄブロック ２０１６ | BI12: 表題４ | BJ12: スーパーリ－グ 第１０回大会 Ｄブロック ２０１６ | BK12: 表題４ | BL12: スーパーリ－グ 第１０回大会 Ｄブロック ２０１６ | BM12: 表題４ | BN12: スーパーリ－グ 第１０回大会 Ｄブロック ２０１６ | BO12: 表題４ | BP12: スーパーリ－グ 第１０回大会 Ｄブロック ２０１６ | BQ12: 表題４ | BR12: スーパーリ－グ 第１０回大会 Ｄブロック ２０１６ | BS12: 表題４ | BT12: スーパーリ－グ 第１０回大会 Ｄブロック ２０１６ | BU12: 表題４ | BV12: スーパーリ－グ 第１０回大会 Ｄブロック ２０１６ | BW12: 表題４ | BX12: スーパーリ－グ 第１０回大会 Ｄブロック ２０１６ | BY12: 表題４ | BZ12: スーパーリ－グ 第１０回大会 Ｄブロック ２０１６ | CA12: 表題４ | CB12: スーパーリ－グ 第１０回大会 Ｄブロック ２０１６ | CC12: 表題４ | CD12: スーパーリ－グ 第１０回大会 Ｄブロック ２０１６ | CE12: 表題４ | CF12: スーパーリ－グ 第１０回大会 Ｄブロック ２０１６ | CG12: 表題４ | CH12: スーパーリ－グ 第１０回大会 Ｄブロック ２０１６ | CI12: 表題４ | CJ12: スーパーリ－グ 第１０回大会 Ｄブロック ２０１６ | CK12: 表題４ | CL12: スーパーリ－グ 第１０回大会 Ｄブロック ２０１６ | CM12: 表題４ | CN12: スーパーリ－グ 第１０回大会 Ｄブロック ２０１６ | CO12: 表題４ | CP12: スーパーリ－グ 第１０回大会 Ｄブロック ２０１６ | CQ12: 表題４ | CR12: スーパーリ－グ 第１０回大会 Ｄブロック ２０１６ | CS12: 表題４ | CT12: スーパーリ－グ 第１０回大会 Ｄブロック ２０１６ | CU12: 表題４ | CV12: スーパーリ－グ 第１０回大会 Ｄブロック ２０１６ | CW12: 表題４ | CX12: スーパーリ－グ 第１０回大会 Ｄブロック ２０１６ | CY12: 表題４ | CZ12: スーパーリ－グ 第１０回大会 Ｄブロック ２０１６ | DA12: 表題４ | DB12: スーパーリ－グ 第１０回大会 Ｄブロック ２０１６ | DC12: 表題４ | DD12: スーパーリ－グ 第１０回大会 Ｄブロック ２０１６ | DE12: 表題４ | DF12: スーパーリ－グ 第１０回大会 Ｄブロック ２０１６ | DG12: 表題４ | DH12: スーパーリ－グ 第１０回大会 Ｄブロック ２０１６ | DI12: 表題４ | DJ12: スーパーリ－グ 第１０回大会 Ｄブロック ２０１６ | DK12: 表題４ | DL12: スーパーリ－グ 第１０回大会 Ｄブロック ２０１６ | DM12: 表題４ | DN12: スーパーリ－グ 第１０回大会 Ｄブロック ２０１６ | DO12: 表題４ | DP12: スーパーリ－グ 第１０回大会 Ｄブロック ２０１６ | DQ12: 表題４ | DR12: スーパーリ－グ 第１０回大会 Ｄブロック ２０１６ | DS12: 表題４ | DT12: スーパーリ－グ 第１０回大会 Ｄブロック ２０１６ | DU12: 表題４ | DV12: スーパーリ－グ 第１０回大会 Ｄブロック ２０１６ | DW12: 表題４ | DX12: スーパーリ－グ 第１０回大会 Ｄブロック ２０１６ | DY12: 表題４ | DZ12: スーパーリ－グ 第１０回大会 Ｄブロック ２０１６ | EA12: 表題４ | EB12: スーパーリ－グ 第１０回大会 Ｄブロック ２０１６ | EC12: 表題４ | ED12: スーパーリ－グ 第１０回大会 Ｄブロック ２０１６ | EE12: 表題４ | EF12: スーパーリ－グ 第１０回大会 Ｄブロック ２０１６ | EG12: 表題４ | EH12: スーパーリ－グ 第１０回大会 Ｄブロック ２０１６ | EI12: 表題４ | EJ12: スーパーリ－グ 第１０回大会 Ｄブロック ２０１６ | EK12: 表題４ | EL12: スーパーリ－グ 第１０回大会 Ｄブロック ２０１６ | EM12: 表題４ | EN12: スーパーリ－グ 第１０回大会 Ｄブロック ２０１６ | EO12: 表題４ | EP12: スーパーリ－グ 第１０回大会 Ｄブロック ２０１６ | EQ12: 表題４ | ER12: スーパーリ－グ 第１０回大会 Ｄブロック ２０１６ | ES12: 表題４ | ET12: スーパーリ－グ 第１０回大会 Ｄブロック ２０１６ | EU12: 表題４ | EV12: スーパーリ－グ 第１０回大会 Ｄブロック ２０１６ | EW12: 表題４ | EX12: スーパーリ－グ 第１０回大会 Ｄブロック ２０１６ | EY12: 表題４ | EZ12: スーパーリ－グ 第１０回大会 Ｄブロック ２０１６ | FA12: 表題４ | FB12: スーパーリ－グ 第１０回大会 Ｄブロック ２０１６ | FC12: 表題４ | FD12: スーパーリ－グ 第１０回大会 Ｄブロック ２０１６ | FE12: 表題４ | FF12: スーパーリ－グ 第１０回大会 Ｄブロック ２０１６ | FG12: 表題４ | FH12: スーパーリ－グ 第１０回大会 Ｄブロック ２０１６ | FI12: 表題４ | FJ12: スーパーリ－グ 第１０回大会 Ｄブロック ２０１６ | FK12: 表題４ | FL12: スーパーリ－グ 第１０回大会 Ｄブロック ２０１６ | FM12: 表題４ | FN12: スーパーリ－グ 第１０回大会 Ｄブロック ２０１６ | FO12: 表題４ | FP12: スーパーリ－グ 第１０回大会 Ｄブロック ２０１６ | FQ12: 表題４ | FR12: スーパーリ－グ 第１０回大会 Ｄブロック ２０１６ | FS12: 表題４ | FT12: スーパーリ－グ 第１０回大会 Ｄブロック ２０１６ | FU12: 表題４ | FV12: スーパーリ－グ 第１０回大会 Ｄブロック ２０１６ | FW12: 表題４ | FX12: スーパーリ－グ 第１０回大会 Ｄブロック ２０１６ | FY12: 表題４ | FZ12: スーパーリ－グ 第１０回大会 Ｄブロック ２０１６ | GA12: 表題４ | GB12: スーパーリ－グ 第１０回大会 Ｄブロック ２０１６ | GC12: 表題４ | GD12: スーパーリ－グ 第１０回大会 Ｄブロック ２０１６ | GE12: 表題４ | GF12: スーパーリ－グ 第１０回大会 Ｄブロック ２０１６ | GG12: 表題４ | GH12: スーパーリ－グ 第１０回大会 Ｄブロック ２０１６ | GI12: 表題４ | GJ12: スーパーリ－グ 第１０回大会 Ｄブロック ２０１６ | GK12: 表題４ | GL12: スーパーリ－グ 第１０回大会 Ｄブロック ２０１６ | GM12: 表題４ | GN12: スーパーリ－グ 第１０回大会 Ｄブロック ２０１６ | GO12: 表題４ | GP12: スーパーリ－グ 第１０回大会 Ｄブロック ２０１６ | GQ12: 表題４ | GR12: スーパーリ－グ 第１０回大会 Ｄブロック ２０１６ | GS12: 表題４ | GT12: スーパーリ－グ 第１０回大会 Ｄブロック ２０１６ | GU12: 表題４ | GV12: スーパーリ－グ 第１０回大会 Ｄブロック ２０１６ | GW12: 表題４ | GX12: スーパーリ－グ 第１０回大会 Ｄブロック ２０１６ | GY12: 表題４ | GZ12: スーパーリ－グ 第１０回大会 Ｄブロック ２０１６ | HA12: 表題４ | HB12: スーパーリ－グ 第１０回大会 Ｄブロック ２０１６ | HC12: 表題４ | HD12: スーパーリ－グ 第１０回大会 Ｄブロック ２０１６ | HE12: 表題４ | HF12: スーパーリ－グ 第１０回大会 Ｄブロック ２０１６ | HG12: 表題４ | HH12: スーパーリ－グ 第１０回大会 Ｄブロック ２０１６ | HI12: 表題４ | HJ12: スーパーリ－グ 第１０回大会 Ｄブロック ２０１６ | HK12: 表題４ | HL12: スーパーリ－グ 第１０回大会 Ｄブロック ２０１６ | HM12: 表題４ | HN12: スーパーリ－グ 第１０回大会 Ｄブロック ２０１６ | HO12: 表題４ | HP12: スーパーリ－グ 第１０回大会 Ｄブロック ２０１６ | HQ12: 表題４ | HR12: スーパーリ－グ 第１０回大会 Ｄブロック ２０１６ | HS12: 表題４ | HT12: スーパーリ－グ 第１０回大会 Ｄブロック ２０１６ | HU12: 表題４ | HV12: スーパーリ－グ 第１０回大会 Ｄブロック ２０１６ | HW12: 表題４ | HX12: スーパーリ－グ 第１０回大会 Ｄブロック ２０１６ | HY12: 表題４ | HZ12: スーパーリ－グ 第１０回大会 Ｄブロック ２０１６ | IA12: 表題４ | IB12: スーパーリ－グ 第１０回大会 Ｄブロック ２０１６ | IC12: 表題４ | ID12: スーパーリ－グ 第１０回大会 Ｄブロック ２０１６ | IE12: 表題４ | IF12: スーパーリ－グ 第１０回大会 Ｄブロック ２０１６ | IG12: 表題４ | IH12: スーパーリ－グ 第１０回大会 Ｄブロック ２０１６ | II12: 表題４ | IJ12: スーパーリ－グ 第１０回大会 Ｄブロック ２０１６ | IK12: 表題４ | IL12: スーパーリ－グ 第１０回大会 Ｄブロック ２０１６ | IM12: 表題４ | IN12: スーパーリ－グ 第１０回大会 Ｄブロック ２０１６ | IO12: 表題４ | IP12: スーパーリ－グ 第１０回大会 Ｄブロック ２０１６ | IQ12: 表題４ | IR12: スーパーリ－グ 第１０回大会 Ｄブロック ２０１６ | IS12: 表題４ | IT12: スーパーリ－グ 第１０回大会 Ｄブロック ２０１６ | IU12: 表題４ | IV12: スーパーリ－グ 第１０回大会 Ｄブロック ２０１６
A14: 表題５ | B14: スーパーリ－グ 第１４回大会 Ｅブロック ２０２０ | C14: 表題５ | D14: スーパーリ－グ 第１０回大会 Ｅブロック ２０１６ | E14: 表題５ | F14: スーパーリ－グ 第１０回大会 Ｅブロック ２０１６ | G14: 表題５ | H14: スーパーリ－グ 第１０回大会 Ｅブロック ２０１６ | I14: 表題５ | J14: スーパーリ－グ 第１０回大会 Ｅブロック ２０１６ | K14: 表題５ | L14: スーパーリ－グ 第１０回大会 Ｅブロック ２０１６ | M14: 表題５ | N14: スーパーリ－グ 第１０回大会 Ｅブロック ２０１６ | O14: 表題５ | P14: スーパーリ－グ 第１０回大会 Ｅブロック ２０１６ | Q14: 表題５ | R14: スーパーリ－グ 第１０回大会 Ｅブロック ２０１６ | S14: 表題５ | T14: スーパーリ－グ 第１０回大会 Ｅブロック ２０１６ | U14: 表題５ | V14: スーパーリ－グ 第１０回大会 Ｅブロック ２０１６ | W14: 表題５ | X14: スーパーリ－グ 第１０回大会 Ｅブロック ２０１６ | Y14: 表題５ | Z14: スーパーリ－グ 第１０回大会 Ｅブロック ２０１６ | AA14: 表題５ | AB14: スーパーリ－グ 第１０回大会 Ｅブロック ２０１６ | AC14: 表題５ | AD14: スーパーリ－グ 第１０回大会 Ｅブロック ２０１６ | AE14: 表題５ | AF14: スーパーリ－グ 第１０回大会 Ｅブロック ２０１６ | AG14: 表題５ | AH14: スーパーリ－グ 第１０回大会 Ｅブロック ２０１６ | AI14: 表題５ | AJ14: スーパーリ－グ 第１０回大会 Ｅブロック ２０１６ | AK14: 表題５ | AL14: スーパーリ－グ 第１０回大会 Ｅブロック ２０１６ | AM14: 表題５ | AN14: スーパーリ－グ 第１０回大会 Ｅブロック ２０１６ | AO14: 表題５ | AP14: スーパーリ－グ 第１０回大会 Ｅブロック ２０１６ | AQ14: 表題５ | AR14: スーパーリ－グ 第１０回大会 Ｅブロック ２０１６ | AS14: 表題５ | AT14: スーパーリ－グ 第１０回大会 Ｅブロック ２０１６ | AU14: 表題５ | AV14: スーパーリ－グ 第１０回大会 Ｅブロック ２０１６ | AW14: 表題５ | AX14: スーパーリ－グ 第１０回大会 Ｅブロック ２０１６ | AY14: 表題５ | AZ14: スーパーリ－グ 第１０回大会 Ｅブロック ２０１６ | BA14: 表題５ | BB14: スーパーリ－グ 第１０回大会 Ｅブロック ２０１６ | BC14: 表題５ | BD14: スーパーリ－グ 第１０回大会 Ｅブロック ２０１６ | BE14: 表題５ | BF14: スーパーリ－グ 第１０回大会 Ｅブロック ２０１６ | BG14: 表題５ | BH14: スーパーリ－グ 第１０回大会 Ｅブロック ２０１６ | BI14: 表題５ | BJ14: スーパーリ－グ 第１０回大会 Ｅブロック ２０１６ | BK14: 表題５ | BL14: スーパーリ－グ 第１０回大会 Ｅブロック ２０１６ | BM14: 表題５ | BN14: スーパーリ－グ 第１０回大会 Ｅブロック ２０１６ | BO14: 表題５ | BP14: スーパーリ－グ 第１０回大会 Ｅブロック ２０１６ | BQ14: 表題５ | BR14: スーパーリ－グ 第１０回大会 Ｅブロック ２０１６ | BS14: 表題５ | BT14: スーパーリ－グ 第１０回大会 Ｅブロック ２０１６ | BU14: 表題５ | BV14: スーパーリ－グ 第１０回大会 Ｅブロック ２０１６ | BW14: 表題５ | BX14: スーパーリ－グ 第１０回大会 Ｅブロック ２０１６ | BY14: 表題５ | BZ14: スーパーリ－グ 第１０回大会 Ｅブロック ２０１６ | CA14: 表題５ | CB14: スーパーリ－グ 第１０回大会 Ｅブロック ２０１６ | CC14: 表題５ | CD14: スーパーリ－グ 第１０回大会 Ｅブロック ２０１６ | CE14: 表題５ | CF14: スーパーリ－グ 第１０回大会 Ｅブロック ２０１６ | CG14: 表題５ | CH14: スーパーリ－グ 第１０回大会 Ｅブロック ２０１６ | CI14: 表題５ | CJ14: スーパーリ－グ 第１０回大会 Ｅブロック ２０１６ | CK14: 表題５ | CL14: スーパーリ－グ 第１０回大会 Ｅブロック ２０１６ | CM14: 表題５ | CN14: スーパーリ－グ 第１０回大会 Ｅブロック ２０１６ | CO14: 表題５ | CP14: スーパーリ－グ 第１０回大会 Ｅブロック ２０１６ | CQ14: 表題５ | CR14: スーパーリ－グ 第１０回大会 Ｅブロック ２０１６ | CS14: 表題５ | CT14: スーパーリ－グ 第１０回大会 Ｅブロック ２０１６ | CU14: 表題５ | CV14: スーパーリ－グ 第１０回大会 Ｅブロック ２０１６ | CW14: 表題５ | CX14: スーパーリ－グ 第１０回大会 Ｅブロック ２０１６ | CY14: 表題５ | CZ14: スーパーリ－グ 第１０回大会 Ｅブロック ２０１６ | DA14: 表題５ | DB14: スーパーリ－グ 第１０回大会 Ｅブロック ２０１６ | DC14: 表題５ | DD14: スーパーリ－グ 第１０回大会 Ｅブロック ２０１６ | DE14: 表題５ | DF14: スーパーリ－グ 第１０回大会 Ｅブロック ２０１６ | DG14: 表題５ | DH14: スーパーリ－グ 第１０回大会 Ｅブロック ２０１６ | DI14: 表題５ | DJ14: スーパーリ－グ 第１０回大会 Ｅブロック ２０１６ | DK14: 表題５ | DL14: スーパーリ－グ 第１０回大会 Ｅブロック ２０１６ | DM14: 表題５ | DN14: スーパーリ－グ 第１０回大会 Ｅブロック ２０１６ | DO14: 表題５ | DP14: スーパーリ－グ 第１０回大会 Ｅブロック ２０１６ | DQ14: 表題５ | DR14: スーパーリ－グ 第１０回大会 Ｅブロック ２０１６ | DS14: 表題５ | DT14: スーパーリ－グ 第１０回大会 Ｅブロック ２０１６ | DU14: 表題５ | DV14: スーパーリ－グ 第１０回大会 Ｅブロック ２０１６ | DW14: 表題５ | DX14: スーパーリ－グ 第１０回大会 Ｅブロック ２０１６ | DY14: 表題５ | DZ14: スーパーリ－グ 第１０回大会 Ｅブロック ２０１６ | EA14: 表題５ | EB14: スーパーリ－グ 第１０回大会 Ｅブロック ２０１６ | EC14: 表題５ | ED14: スーパーリ－グ 第１０回大会 Ｅブロック ２０１６ | EE14: 表題５ | EF14: スーパーリ－グ 第１０回大会 Ｅブロック ２０１６ | EG14: 表題５ | EH14: スーパーリ－グ 第１０回大会 Ｅブロック ２０１６ | EI14: 表題５ | EJ14: スーパーリ－グ 第１０回大会 Ｅブロック ２０１６ | EK14: 表題５ | EL14: スーパーリ－グ 第１０回大会 Ｅブロック ２０１６ | EM14: 表題５ | EN14: スーパーリ－グ 第１０回大会 Ｅブロック ２０１６ | EO14: 表題５ | EP14: スーパーリ－グ 第１０回大会 Ｅブロック ２０１６ | EQ14: 表題５ | ER14: スーパーリ－グ 第１０回大会 Ｅブロック ２０１６ | ES14: 表題５ | ET14: スーパーリ－グ 第１０回大会 Ｅブロック ２０１６ | EU14: 表題５ | EV14: スーパーリ－グ 第１０回大会 Ｅブロック ２０１６ | EW14: 表題５ | EX14: スーパーリ－グ 第１０回大会 Ｅブロック ２０１６ | EY14: 表題５ | EZ14: スーパーリ－グ 第１０回大会 Ｅブロック ２０１６ | FA14: 表題５ | FB14: スーパーリ－グ 第１０回大会 Ｅブロック ２０１６ | FC14: 表題５ | FD14: スーパーリ－グ 第１０回大会 Ｅブロック ２０１６ | FE14: 表題５ | FF14: スーパーリ－グ 第１０回大会 Ｅブロック ２０１６ | FG14: 表題５ | FH14: スーパーリ－グ 第１０回大会 Ｅブロック ２０１６ | FI14: 表題５ | FJ14: スーパーリ－グ 第１０回大会 Ｅブロック ２０１６ | FK14: 表題５ | FL14: スーパーリ－グ 第１０回大会 Ｅブロック ２０１６ | FM14: 表題５ | FN14: スーパーリ－グ 第１０回大会 Ｅブロック ２０１６ | FO14: 表題５ | FP14: スーパーリ－グ 第１０回大会 Ｅブロック ２０１６ | FQ14: 表題５ | FR14: スーパーリ－グ 第１０回大会 Ｅブロック ２０１６ | FS14: 表題５ | FT14: スーパーリ－グ 第１０回大会 Ｅブロック ２０１６ | FU14: 表題５ | FV14: スーパーリ－グ 第１０回大会 Ｅブロック ２０１６ | FW14: 表題５ | FX14: スーパーリ－グ 第１０回大会 Ｅブロック ２０１６ | FY14: 表題５ | FZ14: スーパーリ－グ 第１０回大会 Ｅブロック ２０１６ | GA14: 表題５ | GB14: スーパーリ－グ 第１０回大会 Ｅブロック ２０１６ | GC14: 表題５ | GD14: スーパーリ－グ 第１０回大会 Ｅブロック ２０１６ | GE14: 表題５ | GF14: スーパーリ－グ 第１０回大会 Ｅブロック ２０１６ | GG14: 表題５ | GH14: スーパーリ－グ 第１０回大会 Ｅブロック ２０１６ | GI14: 表題５ | GJ14: スーパーリ－グ 第１０回大会 Ｅブロック ２０１６ | GK14: 表題５ | GL14: スーパーリ－グ 第１０回大会 Ｅブロック ２０１６ | GM14: 表題５ | GN14: スーパーリ－グ 第１０回大会 Ｅブロック ２０１６ | GO14: 表題５ | GP14: スーパーリ－グ 第１０回大会 Ｅブロック ２０１６ | GQ14: 表題５ | GR14: スーパーリ－グ 第１０回大会 Ｅブロック ２０１６ | GS14: 表題５ | GT14: スーパーリ－グ 第１０回大会 Ｅブロック ２０１６ | GU14: 表題５ | GV14: スーパーリ－グ 第１０回大会 Ｅブロック ２０１６ | GW14: 表題５ | GX14: スーパーリ－グ 第１０回大会 Ｅブロック ２０１６ | GY14: 表題５ | GZ14: スーパーリ－グ 第１０回大会 Ｅブロック ２０１６ | HA14: 表題５ | HB14: スーパーリ－グ 第１０回大会 Ｅブロック ２０１６ | HC14: 表題５ | HD14: スーパーリ－グ 第１０回大会 Ｅブロック ２０１６ | HE14: 表題５ | HF14: スーパーリ－グ 第１０回大会 Ｅブロック ２０１６ | HG14: 表題５ | HH14: スーパーリ－グ 第１０回大会 Ｅブロック ２０１６ | HI14: 表題５ | HJ14: スーパーリ－グ 第１０回大会 Ｅブロック ２０１６ | HK14: 表題５ | HL14: スーパーリ－グ 第１０回大会 Ｅブロック ２０１６ | HM14: 表題５ | HN14: スーパーリ－グ 第１０回大会 Ｅブロック ２０１６ | HO14: 表題５ | HP14: スーパーリ－グ 第１０回大会 Ｅブロック ２０１６ | HQ14: 表題５ | HR14: スーパーリ－グ 第１０回大会 Ｅブロック ２０１６ | HS14: 表題５ | HT14: スーパーリ－グ 第１０回大会 Ｅブロック ２０１６ | HU14: 表題５ | HV14: スーパーリ－グ 第１０回大会 Ｅブロック ２０１６ | HW14: 表題５ | HX14: スーパーリ－グ 第１０回大会 Ｅブロック ２０１６ | HY14: 表題５ | HZ14: スーパーリ－グ 第１０回大会 Ｅブロック ２０１６ | IA14: 表題５ | IB14: スーパーリ－グ 第１０回大会 Ｅブロック ２０１６ | IC14: 表題５ | ID14: スーパーリ－グ 第１０回大会 Ｅブロック ２０１６ | IE14: 表題５ | IF14: スーパーリ－グ 第１０回大会 Ｅブロック ２０１６ | IG14: 表題５ | IH14: スーパーリ－グ 第１０回大会 Ｅブロック ２０１６ | II14: 表題５ | IJ14: スーパーリ－グ 第１０回大会 Ｅブロック ２０１６ | IK14: 表題５ | IL14: スーパーリ－グ 第１０回大会 Ｅブロック ２０１６ | IM14: 表題５ | IN14: スーパーリ－グ 第１０回大会 Ｅブロック ２０１６ | IO14: 表題５ | IP14: スーパーリ－グ 第１０回大会 Ｅブロック ２０１６ | IQ14: 表題５ | IR14: スーパーリ－グ 第１０回大会 Ｅブロック ２０１６ | IS14: 表題５ | IT14: スーパーリ－グ 第１０回大会 Ｅブロック ２０１６ | IU14: 表題５ | IV14: スーパーリ－グ 第１０回大会 Ｅブロック ２０１６
A16: 表題６ | B16: スーパーリ－グ 第１４回大会 Ｆブロック ２０２０ | C16: 表題６ | D16: スーパーリ－グ 第１０回大会 Ｆブロック ２０１６ | E16: 表題６ | F16: スーパーリ－グ 第１０回大会 Ｆブロック ２０１６ | G16: 表題６ | H16: スーパーリ－グ 第１０回大会 Ｆブロック ２０１６ | I16: 表題６ | J16: スーパーリ－グ 第１０回大会 Ｆブロック ２０１６ | K16: 表題６ | L16: スーパーリ－グ 第１０回大会 Ｆブロック ２０１６ | M16: 表題６ | N16: スーパーリ－グ 第１０回大会 Ｆブロック ２０１６ | O16: 表題６ | P16: スーパーリ－グ 第１０回大会 Ｆブロック ２０１６ | Q16: 表題６ | R16: スーパーリ－グ 第１０回大会 Ｆブロック ２０１６ | S16: 表題６ | T16: スーパーリ－グ 第１０回大会 Ｆブロック ２０１６ | U16: 表題６ | V16: スーパーリ－グ 第１０回大会 Ｆブロック ２０１６ | W16: 表題６ | X16: スーパーリ－グ 第１０回大会 Ｆブロック ２０１６ | Y16: 表題６ | Z16: スーパーリ－グ 第１０回大会 Ｆブロック ２０１６ | AA16: 表題６ | AB16: スーパーリ－グ 第１０回大会 Ｆブロック ２０１６ | AC16: 表題６ | AD16: スーパーリ－グ 第１０回大会 Ｆブロック ２０１６ | AE16: 表題６ | AF16: スーパーリ－グ 第１０回大会 Ｆブロック ２０１６ | AG16: 表題６ | AH16: スーパーリ－グ 第１０回大会 Ｆブロック ２０１６ | AI16: 表題６ | AJ16: スーパーリ－グ 第１０回大会 Ｆブロック ２０１６ | AK16: 表題６ | AL16: スーパーリ－グ 第１０回大会 Ｆブロック ２０１６ | AM16: 表題６ | AN16: スーパーリ－グ 第１０回大会 Ｆブロック ２０１６ | AO16: 表題６ | AP16: スーパーリ－グ 第１０回大会 Ｆブロック ２０１６ | AQ16: 表題６ | AR16: スーパーリ－グ 第１０回大会 Ｆブロック ２０１６ | AS16: 表題６ | AT16: スーパーリ－グ 第１０回大会 Ｆブロック ２０１６ | AU16: 表題６ | AV16: スーパーリ－グ 第１０回大会 Ｆブロック ２０１６ | AW16: 表題６ | AX16: スーパーリ－グ 第１０回大会 Ｆブロック ２０１６ | AY16: 表題６ | AZ16: スーパーリ－グ 第１０回大会 Ｆブロック ２０１６ | BA16: 表題６ | BB16: スーパーリ－グ 第１０回大会 Ｆブロック ２０１６ | BC16: 表題６ | BD16: スーパーリ－グ 第１０回大会 Ｆブロック ２０１６ | BE16: 表題６ | BF16: スーパーリ－グ 第１０回大会 Ｆブロック ２０１６ | BG16: 表題６ | BH16: スーパーリ－グ 第１０回大会 Ｆブロック ２０１６ | BI16: 表題６ | BJ16: スーパーリ－グ 第１０回大会 Ｆブロック ２０１６ | BK16: 表題６ | BL16: スーパーリ－グ 第１０回大会 Ｆブロック ２０１６ | BM16: 表題６ | BN16: スーパーリ－グ 第１０回大会 Ｆブロック ２０１６ | BO16: 表題６ | BP16: スーパーリ－グ 第１０回大会 Ｆブロック ２０１６ | BQ16: 表題６ | BR16: スーパーリ－グ 第１０回大会 Ｆブロック ２０１６ | BS16: 表題６ | BT16: スーパーリ－グ 第１０回大会 Ｆブロック ２０１６ | BU16: 表題６ | BV16: スーパーリ－グ 第１０回大会 Ｆブロック ２０１６ | BW16: 表題６ | BX16: スーパーリ－グ 第１０回大会 Ｆブロック ２０１６ | BY16: 表題６ | BZ16: スーパーリ－グ 第１０回大会 Ｆブロック ２０１６ | CA16: 表題６ | CB16: スーパーリ－グ 第１０回大会 Ｆブロック ２０１６ | CC16: 表題６ | CD16: スーパーリ－グ 第１０回大会 Ｆブロック ２０１６ | CE16: 表題６ | CF16: スーパーリ－グ 第１０回大会 Ｆブロック ２０１６ | CG16: 表題６ | CH16: スーパーリ－グ 第１０回大会 Ｆブロック ２０１６ | CI16: 表題６ | CJ16: スーパーリ－グ 第１０回大会 Ｆブロック ２０１６ | CK16: 表題６ | CL16: スーパーリ－グ 第１０回大会 Ｆブロック ２０１６ | CM16: 表題６ | CN16: スーパーリ－グ 第１０回大会 Ｆブロック ２０１６ | CO16: 表題６ | CP16: スーパーリ－グ 第１０回大会 Ｆブロック ２０１６ | CQ16: 表題６ | CR16: スーパーリ－グ 第１０回大会 Ｆブロック ２０１６ | CS16: 表題６ | CT16: スーパーリ－グ 第１０回大会 Ｆブロック ２０１６ | CU16: 表題６ | CV16: スーパーリ－グ 第１０回大会 Ｆブロック ２０１６ | CW16: 表題６ | CX16: スーパーリ－グ 第１０回大会 Ｆブロック ２０１６ | CY16: 表題６ | CZ16: スーパーリ－グ 第１０回大会 Ｆブロック ２０１６ | DA16: 表題６ | DB16: スーパーリ－グ 第１０回大会 Ｆブロック ２０１６ | DC16: 表題６ | DD16: スーパーリ－グ 第１０回大会 Ｆブロック ２０１６ | DE16: 表題６ | DF16: スーパーリ－グ 第１０回大会 Ｆブロック ２０１６ | DG16: 表題６ | DH16: スーパーリ－グ 第１０回大会 Ｆブロック ２０１６ | DI16: 表題６ | DJ16: スーパーリ－グ 第１０回大会 Ｆブロック ２０１６ | DK16: 表題６ | DL16: スーパーリ－グ 第１０回大会 Ｆブロック ２０１６ | DM16: 表題６ | DN16: スーパーリ－グ 第１０回大会 Ｆブロック ２０１６ | DO16: 表題６ | DP16: スーパーリ－グ 第１０回大会 Ｆブロック ２０１６ | DQ16: 表題６ | DR16: スーパーリ－グ 第１０回大会 Ｆブロック ２０１６ | DS16: 表題６ | DT16: スーパーリ－グ 第１０回大会 Ｆブロック ２０１６ | DU16: 表題６ | DV16: スーパーリ－グ 第１０回大会 Ｆブロック ２０１６ | DW16: 表題６ | DX16: スーパーリ－グ 第１０回大会 Ｆブロック ２０１６ | DY16: 表題６ | DZ16: スーパーリ－グ 第１０回大会 Ｆブロック ２０１６ | EA16: 表題６ | EB16: スーパーリ－グ 第１０回大会 Ｆブロック ２０１６ | EC16: 表題６ | ED16: スーパーリ－グ 第１０回大会 Ｆブロック ２０１６ | EE16: 表題６ | EF16: スーパーリ－グ 第１０回大会 Ｆブロック ２０１６ | EG16: 表題６ | EH16: スーパーリ－グ 第１０回大会 Ｆブロック ２０１６ | EI16: 表題６ | EJ16: スーパーリ－グ 第１０回大会 Ｆブロック ２０１６ | EK16: 表題６ | EL16: スーパーリ－グ 第１０回大会 Ｆブロック ２０１６ | EM16: 表題６ | EN16: スーパーリ－グ 第１０回大会 Ｆブロック ２０１６ | EO16: 表題６ | EP16: スーパーリ－グ 第１０回大会 Ｆブロック ２０１６ | EQ16: 表題６ | ER16: スーパーリ－グ 第１０回大会 Ｆブロック ２０１６ | ES16: 表題６ | ET16: スーパーリ－グ 第１０回大会 Ｆブロック ２０１６ | EU16: 表題６ | EV16: スーパーリ－グ 第１０回大会 Ｆブロック ２０１６ | EW16: 表題６ | EX16: スーパーリ－グ 第１０回大会 Ｆブロック ２０１６ | EY16: 表題６ | EZ16: スーパーリ－グ 第１０回大会 Ｆブロック ２０１６ | FA16: 表題６ | FB16: スーパーリ－グ 第１０回大会 Ｆブロック ２０１６ | FC16: 表題６ | FD16: スーパーリ－グ 第１０回大会 Ｆブロック ２０１６ | FE16: 表題６ | FF16: スーパーリ－グ 第１０回大会 Ｆブロック ２０１６ | FG16: 表題６ | FH16: スーパーリ－グ 第１０回大会 Ｆブロック ２０１６ | FI16: 表題６ | FJ16: スーパーリ－グ 第１０回大会 Ｆブロック ２０１６ | FK16: 表題６ | FL16: スーパーリ－グ 第１０回大会 Ｆブロック ２０１６ | FM16: 表題６ | FN16: スーパーリ－グ 第１０回大会 Ｆブロック ２０１６ | FO16: 表題６ | FP16: スーパーリ－グ 第１０回大会 Ｆブロック ２０１６ | FQ16: 表題６ | FR16: スーパーリ－グ 第１０回大会 Ｆブロック ２０１６ | FS16: 表題６ | FT16: スーパーリ－グ 第１０回大会 Ｆブロック ２０１６ | FU16: 表題６ | FV16: スーパーリ－グ 第１０回大会 Ｆブロック ２０１６ | FW16: 表題６ | FX16: スーパーリ－グ 第１０回大会 Ｆブロック ２０１６ | FY16: 表題６ | FZ16: スーパーリ－グ 第１０回大会 Ｆブロック ２０１６ | GA16: 表題６ | GB16: スーパーリ－グ 第１０回大会 Ｆブロック ２０１６ | GC16: 表題６ | GD16: スーパーリ－グ 第１０回大会 Ｆブロック ２０１６ | GE16: 表題６ | GF16: スーパーリ－グ 第１０回大会 Ｆブロック ２０１６ | GG16: 表題６ | GH16: スーパーリ－グ 第１０回大会 Ｆブロック ２０１６ | GI16: 表題６ | GJ16: スーパーリ－グ 第１０回大会 Ｆブロック ２０１６ | GK16: 表題６ | GL16: スーパーリ－グ 第１０回大会 Ｆブロック ２０１６ | GM16: 表題６ | GN16: スーパーリ－グ 第１０回大会 Ｆブロック ２０１６ | GO16: 表題６ | GP16: スーパーリ－グ 第１０回大会 Ｆブロック ２０１６ | GQ16: 表題６ | GR16: スーパーリ－グ 第１０回大会 Ｆブロック ２０１６ | GS16: 表題６ | GT16: スーパーリ－グ 第１０回大会 Ｆブロック ２０１６ | GU16: 表題６ | GV16: スーパーリ－グ 第１０回大会 Ｆブロック ２０１６ | GW16: 表題６ | GX16: スーパーリ－グ 第１０回大会 Ｆブロック ２０１６ | GY16: 表題６ | GZ16: スーパーリ－グ 第１０回大会 Ｆブロック ２０１６ | HA16: 表題６ | HB16: スーパーリ－グ 第１０回大会 Ｆブロック ２０１６ | HC16: 表題６ | HD16: スーパーリ－グ 第１０回大会 Ｆブロック ２０１６ | HE16: 表題６ | HF16: スーパーリ－グ 第１０回大会 Ｆブロック ２０１６ | HG16: 表題６ | HH16: スーパーリ－グ 第１０回大会 Ｆブロック ２０１６ | HI16: 表題６ | HJ16: スーパーリ－グ 第１０回大会 Ｆブロック ２０１６ | HK16: 表題６ | HL16: スーパーリ－グ 第１０回大会 Ｆブロック ２０１６ | HM16: 表題６ | HN16: スーパーリ－グ 第１０回大会 Ｆブロック ２０１６ | HO16: 表題６ | HP16: スーパーリ－グ 第１０回大会 Ｆブロック ２０１６ | HQ16: 表題６ | HR16: スーパーリ－グ 第１０回大会 Ｆブロック ２０１６ | HS16: 表題６ | HT16: スーパーリ－グ 第１０回大会 Ｆブロック ２０１６ | HU16: 表題６ | HV16: スーパーリ－グ 第１０回大会 Ｆブロック ２０１６ | HW16: 表題６ | HX16: スーパーリ－グ 第１０回大会 Ｆブロック ２０１６ | HY16: 表題６ | HZ16: スーパーリ－グ 第１０回大会 Ｆブロック ２０１６ | IA16: 表題６ | IB16: スーパーリ－グ 第１０回大会 Ｆブロック ２０１６ | IC16: 表題６ | ID16: スーパーリ－グ 第１０回大会 Ｆブロック ２０１６ | IE16: 表題６ | IF16: スーパーリ－グ 第１０回大会 Ｆブロック ２０１６ | IG16: 表題６ | IH16: スーパーリ－グ 第１０回大会 Ｆブロック ２０１６ | II16: 表題６ | IJ16: スーパーリ－グ 第１０回大会 Ｆブロック ２０１６ | IK16: 表題６ | IL16: スーパーリ－グ 第１０回大会 Ｆブロック ２０１６ | IM16: 表題６ | IN16: スーパーリ－グ 第１０回大会 Ｆブロック ２０１６ | IO16: 表題６ | IP16: スーパーリ－グ 第１０回大会 Ｆブロック ２０１６ | IQ16: 表題６ | IR16: スーパーリ－グ 第１０回大会 Ｆブロック ２０１６ | IS16: 表題６ | IT16: スーパーリ－グ 第１０回大会 Ｆブロック ２０１６ | IU16: 表題６ | IV16: スーパーリ－グ 第１０回大会 Ｆブロック ２０１６
A18: 表題７ | B18: スーパーリ－グ 第１４回大会 Ｇブロック ２０２０ | C18: 表題７ | D18: スーパーリ－グ 第１０回大会 Ｇブロック ２０１６ | E18: 表題７ | F18: スーパーリ－グ 第１０回大会 Ｇブロック ２０１６ | G18: 表題７ | H18: スーパーリ－グ 第１０回大会 Ｇブロック ２０１６ | I18: 表題７ | J18: スーパーリ－グ 第１０回大会 Ｇブロック ２０１６ | K18: 表題７ | L18: スーパーリ－グ 第１０回大会 Ｇブロック ２０１６ | M18: 表題７ | N18: スーパーリ－グ 第１０回大会 Ｇブロック ２０１６ | O18: 表題７ | P18: スーパーリ－グ 第１０回大会 Ｇブロック ２０１６ | Q18: 表題７ | R18: スーパーリ－グ 第１０回大会 Ｇブロック ２０１６ | S18: 表題７ | T18: スーパーリ－グ 第１０回大会 Ｇブロック ２０１６ | U18: 表題７ | V18: スーパーリ－グ 第１０回大会 Ｇブロック ２０１６ | W18: 表題７ | X18: スーパーリ－グ 第１０回大会 Ｇブロック ２０１６ | Y18: 表題７ | Z18: スーパーリ－グ 第１０回大会 Ｇブロック ２０１６ | AA18: 表題７ | AB18: スーパーリ－グ 第１０回大会 Ｇブロック ２０１６ | AC18: 表題７ | AD18: スーパーリ－グ 第１０回大会 Ｇブロック ２０１６ | AE18: 表題７ | AF18: スーパーリ－グ 第１０回大会 Ｇブロック ２０１６ | AG18: 表題７ | AH18: スーパーリ－グ 第１０回大会 Ｇブロック ２０１６ | AI18: 表題７ | AJ18: スーパーリ－グ 第１０回大会 Ｇブロック ２０１６ | AK18: 表題７ | AL18: スーパーリ－グ 第１０回大会 Ｇブロック ２０１６ | AM18: 表題７ | AN18: スーパーリ－グ 第１０回大会 Ｇブロック ２０１６ | AO18: 表題７ | AP18: スーパーリ－グ 第１０回大会 Ｇブロック ２０１６ | AQ18: 表題７ | AR18: スーパーリ－グ 第１０回大会 Ｇブロック ２０１６ | AS18: 表題７ | AT18: スーパーリ－グ 第１０回大会 Ｇブロック ２０１６ | AU18: 表題７ | AV18: スーパーリ－グ 第１０回大会 Ｇブロック ２０１６ | AW18: 表題７ | AX18: スーパーリ－グ 第１０回大会 Ｇブロック ２０１６ | AY18: 表題７ | AZ18: スーパーリ－グ 第１０回大会 Ｇブロック ２０１６ | BA18: 表題７ | BB18: スーパーリ－グ 第１０回大会 Ｇブロック ２０１６ | BC18: 表題７ | BD18: スーパーリ－グ 第１０回大会 Ｇブロック ２０１６ | BE18: 表題７ | BF18: スーパーリ－グ 第１０回大会 Ｇブロック ２０１６ | BG18: 表題７ | BH18: スーパーリ－グ 第１０回大会 Ｇブロック ２０１６ | BI18: 表題７ | BJ18: スーパーリ－グ 第１０回大会 Ｇブロック ２０１６ | BK18: 表題７ | BL18: スーパーリ－グ 第１０回大会 Ｇブロック ２０１６ | BM18: 表題７ | BN18: スーパーリ－グ 第１０回大会 Ｇブロック ２０１６ | BO18: 表題７ | BP18: スーパーリ－グ 第１０回大会 Ｇブロック ２０１６ | BQ18: 表題７ | BR18: スーパーリ－グ 第１０回大会 Ｇブロック ２０１６ | BS18: 表題７ | BT18: スーパーリ－グ 第１０回大会 Ｇブロック ２０１６ | BU18: 表題７ | BV18: スーパーリ－グ 第１０回大会 Ｇブロック ２０１６ | BW18: 表題７ | BX18: スーパーリ－グ 第１０回大会 Ｇブロック ２０１６ | BY18: 表題７ | BZ18: スーパーリ－グ 第１０回大会 Ｇブロック ２０１６ | CA18: 表題７ | CB18: スーパーリ－グ 第１０回大会 Ｇブロック ２０１６ | CC18: 表題７ | CD18: スーパーリ－グ 第１０回大会 Ｇブロック ２０１６ | CE18: 表題７ | CF18: スーパーリ－グ 第１０回大会 Ｇブロック ２０１６ | CG18: 表題７ | CH18: スーパーリ－グ 第１０回大会 Ｇブロック ２０１６ | CI18: 表題７ | CJ18: スーパーリ－グ 第１０回大会 Ｇブロック ２０１６ | CK18: 表題７ | CL18: スーパーリ－グ 第１０回大会 Ｇブロック ２０１６ | CM18: 表題７ | CN18: スーパーリ－グ 第１０回大会 Ｇブロック ２０１６ | CO18: 表題７ | CP18: スーパーリ－グ 第１０回大会 Ｇブロック ２０１６ | CQ18: 表題７ | CR18: スーパーリ－グ 第１０回大会 Ｇブロック ２０１６ | CS18: 表題７ | CT18: スーパーリ－グ 第１０回大会 Ｇブロック ２０１６ | CU18: 表題７ | CV18: スーパーリ－グ 第１０回大会 Ｇブロック ２０１６ | CW18: 表題７ | CX18: スーパーリ－グ 第１０回大会 Ｇブロック ２０１６ | CY18: 表題７ | CZ18: スーパーリ－グ 第１０回大会 Ｇブロック ２０１６ | DA18: 表題７ | DB18: スーパーリ－グ 第１０回大会 Ｇブロック ２０１６ | DC18: 表題７ | DD18: スーパーリ－グ 第１０回大会 Ｇブロック ２０１６ | DE18: 表題７ | DF18: スーパーリ－グ 第１０回大会 Ｇブロック ２０１６ | DG18: 表題７ | DH18: スーパーリ－グ 第１０回大会 Ｇブロック ２０１６ | DI18: 表題７ | DJ18: スーパーリ－グ 第１０回大会 Ｇブロック ２０１６ | DK18: 表題７ | DL18: スーパーリ－グ 第１０回大会 Ｇブロック ２０１６ | DM18: 表題７ | DN18: スーパーリ－グ 第１０回大会 Ｇブロック ２０１６ | DO18: 表題７ | DP18: スーパーリ－グ 第１０回大会 Ｇブロック ２０１６ | DQ18: 表題７ | DR18: スーパーリ－グ 第１０回大会 Ｇブロック ２０１６ | DS18: 表題７ | DT18: スーパーリ－グ 第１０回大会 Ｇブロック ２０１６ | DU18: 表題７ | DV18: スーパーリ－グ 第１０回大会 Ｇブロック ２０１６ | DW18: 表題７ | DX18: スーパーリ－グ 第１０回大会 Ｇブロック ２０１６ | DY18: 表題７ | DZ18: スーパーリ－グ 第１０回大会 Ｇブロック ２０１６ | EA18: 表題７ | EB18: スーパーリ－グ 第１０回大会 Ｇブロック ２０１６ | EC18: 表題７ | ED18: スーパーリ－グ 第１０回大会 Ｇブロック ２０１６ | EE18: 表題７ | EF18: スーパーリ－グ 第１０回大会 Ｇブロック ２０１６ | EG18: 表題７ | EH18: スーパーリ－グ 第１０回大会 Ｇブロック ２０１６ | EI18: 表題７ | EJ18: スーパーリ－グ 第１０回大会 Ｇブロック ２０１６ | EK18: 表題７ | EL18: スーパーリ－グ 第１０回大会 Ｇブロック ２０１６ | EM18: 表題７ | EN18: スーパーリ－グ 第１０回大会 Ｇブロック ２０１６ | EO18: 表題７ | EP18: スーパーリ－グ 第１０回大会 Ｇブロック ２０１６ | EQ18: 表題７ | ER18: スーパーリ－グ 第１０回大会 Ｇブロック ２０１６ | ES18: 表題７ | ET18: スーパーリ－グ 第１０回大会 Ｇブロック ２０１６ | EU18: 表題７ | EV18: スーパーリ－グ 第１０回大会 Ｇブロック ２０１６ | EW18: 表題７ | EX18: スーパーリ－グ 第１０回大会 Ｇブロック ２０１６ | EY18: 表題７ | EZ18: スーパーリ－グ 第１０回大会 Ｇブロック ２０１６ | FA18: 表題７ | FB18: スーパーリ－グ 第１０回大会 Ｇブロック ２０１６ | FC18: 表題７ | FD18: スーパーリ－グ 第１０回大会 Ｇブロック ２０１６ | FE18: 表題７ | FF18: スーパーリ－グ 第１０回大会 Ｇブロック ２０１６ | FG18: 表題７ | FH18: スーパーリ－グ 第１０回大会 Ｇブロック ２０１６ | FI18: 表題７ | FJ18: スーパーリ－グ 第１０回大会 Ｇブロック ２０１６ | FK18: 表題７ | FL18: スーパーリ－グ 第１０回大会 Ｇブロック ２０１６ | FM18: 表題７ | FN18: スーパーリ－グ 第１０回大会 Ｇブロック ２０１６ | FO18: 表題７ | FP18: スーパーリ－グ 第１０回大会 Ｇブロック ２０１６ | FQ18: 表題７ | FR18: スーパーリ－グ 第１０回大会 Ｇブロック ２０１６ | FS18: 表題７ | FT18: スーパーリ－グ 第１０回大会 Ｇブロック ２０１６ | FU18: 表題７ | FV18: スーパーリ－グ 第１０回大会 Ｇブロック ２０１６ | FW18: 表題７ | FX18: スーパーリ－グ 第１０回大会 Ｇブロック ２０１６ | FY18: 表題７ | FZ18: スーパーリ－グ 第１０回大会 Ｇブロック ２０１６ | GA18: 表題７ | GB18: スーパーリ－グ 第１０回大会 Ｇブロック ２０１６ | GC18: 表題７ | GD18: スーパーリ－グ 第１０回大会 Ｇブロック ２０１６ | GE18: 表題７ | GF18: スーパーリ－グ 第１０回大会 Ｇブロック ２０１６ | GG18: 表題７ | GH18: スーパーリ－グ 第１０回大会 Ｇブロック ２０１６ | GI18: 表題７ | GJ18: スーパーリ－グ 第１０回大会 Ｇブロック ２０１６ | GK18: 表題７ | GL18: スーパーリ－グ 第１０回大会 Ｇブロック ２０１６ | GM18: 表題７ | GN18: スーパーリ－グ 第１０回大会 Ｇブロック ２０１６ | GO18: 表題７ | GP18: スーパーリ－グ 第１０回大会 Ｇブロック ２０１６ | GQ18: 表題７ | GR18: スーパーリ－グ 第１０回大会 Ｇブロック ２０１６ | GS18: 表題７ | GT18: スーパーリ－グ 第１０回大会 Ｇブロック ２０１６ | GU18: 表題７ | GV18: スーパーリ－グ 第１０回大会 Ｇブロック ２０１６ | GW18: 表題７ | GX18: スーパーリ－グ 第１０回大会 Ｇブロック ２０１６ | GY18: 表題７ | GZ18: スーパーリ－グ 第１０回大会 Ｇブロック ２０１６ | HA18: 表題７ | HB18: スーパーリ－グ 第１０回大会 Ｇブロック ２０１６ | HC18: 表題７ | HD18: スーパーリ－グ 第１０回大会 Ｇブロック ２０１６ | HE18: 表題７ | HF18: スーパーリ－グ 第１０回大会 Ｇブロック ２０１６ | HG18: 表題７ | HH18: スーパーリ－グ 第１０回大会 Ｇブロック ２０１６ | HI18: 表題７ | HJ18: スーパーリ－グ 第１０回大会 Ｇブロック ２０１６ | HK18: 表題７ | HL18: スーパーリ－グ 第１０回大会 Ｇブロック ２０１６ | HM18: 表題７ | HN18: スーパーリ－グ 第１０回大会 Ｇブロック ２０１６ | HO18: 表題７ | HP18: スーパーリ－グ 第１０回大会 Ｇブロック ２０１６ | HQ18: 表題７ | HR18: スーパーリ－グ 第１０回大会 Ｇブロック ２０１６ | HS18: 表題７ | HT18: スーパーリ－グ 第１０回大会 Ｇブロック ２０１６ | HU18: 表題７ | HV18: スーパーリ－グ 第１０回大会 Ｇブロック ２０１６ | HW18: 表題７ | HX18: スーパーリ－グ 第１０回大会 Ｇブロック ２０１６ | HY18: 表題７ | HZ18: スーパーリ－グ 第１０回大会 Ｇブロック ２０１６ | IA18: 表題７ | IB18: スーパーリ－グ 第１０回大会 Ｇブロック ２０１６ | IC18: 表題７ | ID18: スーパーリ－グ 第１０回大会 Ｇブロック ２０１６ | IE18: 表題７ | IF18: スーパーリ－グ 第１０回大会 Ｇブロック ２０１６ | IG18: 表題７ | IH18: スーパーリ－グ 第１０回大会 Ｇブロック ２０１６ | II18: 表題７ | IJ18: スーパーリ－グ 第１０回大会 Ｇブロック ２０１６ | IK18: 表題７ | IL18: スーパーリ－グ 第１０回大会 Ｇブロック ２０１６ | IM18: 表題７ | IN18: スーパーリ－グ 第１０回大会 Ｇブロック ２０１６ | IO18: 表題７ | IP18: スーパーリ－グ 第１０回大会 Ｇブロック ２０１６ | IQ18: 表題７ | IR18: スーパーリ－グ 第１０回大会 Ｇブロック ２０１６ | IS18: 表題７ | IT18: スーパーリ－グ 第１０回大会 Ｇブロック ２０１６ | IU18: 表題７ | IV18: スーパーリ－グ 第１０回大会 Ｇブロック ２０１６
A20: 表題８ | B20: スーパーリ－グ 第１４回大会 Ｈブロック ２０２０ | C20: 表題８ | D20: スーパーリ－グ 第１０回大会 Ｈブロック ２０１６ | E20: 表題８ | F20: スーパーリ－グ 第１０回大会 Ｈブロック ２０１６ | G20: 表題８ | H20: スーパーリ－グ 第１０回大会 Ｈブロック ２０１６ | I20: 表題８ | J20: スーパーリ－グ 第１０回大会 Ｈブロック ２０１６ | K20: 表題８ | L20: スーパーリ－グ 第１０回大会 Ｈブロック ２０１６ | M20: 表題８ | N20: スーパーリ－グ 第１０回大会 Ｈブロック ２０１６ | O20: 表題８ | P20: スーパーリ－グ 第１０回大会 Ｈブロック ２０１６ | Q20: 表題８ | R20: スーパーリ－グ 第１０回大会 Ｈブロック ２０１６ | S20: 表題８ | T20: スーパーリ－グ 第１０回大会 Ｈブロック ２０１６ | U20: 表題８ | V20: スーパーリ－グ 第１０回大会 Ｈブロック ２０１６ | W20: 表題８ | X20: スーパーリ－グ 第１０回大会 Ｈブロック ２０１６ | Y20: 表題８ | Z20: スーパーリ－グ 第１０回大会 Ｈブロック ２０１６ | AA20: 表題８ | AB20: スーパーリ－グ 第１０回大会 Ｈブロック ２０１６ | AC20: 表題８ | AD20: スーパーリ－グ 第１０回大会 Ｈブロック ２０１６ | AE20: 表題８ | AF20: スーパーリ－グ 第１０回大会 Ｈブロック ２０１６ | AG20: 表題８ | AH20: スーパーリ－グ 第１０回大会 Ｈブロック ２０１６ | AI20: 表題８ | AJ20: スーパーリ－グ 第１０回大会 Ｈブロック ２０１６ | AK20: 表題８ | AL20: スーパーリ－グ 第１０回大会 Ｈブロック ２０１６ | AM20: 表題８ | AN20: スーパーリ－グ 第１０回大会 Ｈブロック ２０１６ | AO20: 表題８ | AP20: スーパーリ－グ 第１０回大会 Ｈブロック ２０１６ | AQ20: 表題８ | AR20: スーパーリ－グ 第１０回大会 Ｈブロック ２０１６ | AS20: 表題８ | AT20: スーパーリ－グ 第１０回大会 Ｈブロック ２０１６ | AU20: 表題８ | AV20: スーパーリ－グ 第１０回大会 Ｈブロック ２０１６ | AW20: 表題８ | AX20: スーパーリ－グ 第１０回大会 Ｈブロック ２０１６ | AY20: 表題８ | AZ20: スーパーリ－グ 第１０回大会 Ｈブロック ２０１６ | BA20: 表題８ | BB20: スーパーリ－グ 第１０回大会 Ｈブロック ２０１６ | BC20: 表題８ | BD20: スーパーリ－グ 第１０回大会 Ｈブロック ２０１６ | BE20: 表題８ | BF20: スーパーリ－グ 第１０回大会 Ｈブロック ２０１６ | BG20: 表題８ | BH20: スーパーリ－グ 第１０回大会 Ｈブロック ２０１６ | BI20: 表題８ | BJ20: スーパーリ－グ 第１０回大会 Ｈブロック ２０１６ | BK20: 表題８ | BL20: スーパーリ－グ 第１０回大会 Ｈブロック ２０１６ | BM20: 表題８ | BN20: スーパーリ－グ 第１０回大会 Ｈブロック ２０１６ | BO20: 表題８ | BP20: スーパーリ－グ 第１０回大会 Ｈブロック ２０１６ | BQ20: 表題８ | BR20: スーパーリ－グ 第１０回大会 Ｈブロック ２０１６ | BS20: 表題８ | BT20: スーパーリ－グ 第１０回大会 Ｈブロック ２０１６ | BU20: 表題８ | BV20: スーパーリ－グ 第１０回大会 Ｈブロック ２０１６ | BW20: 表題８ | BX20: スーパーリ－グ 第１０回大会 Ｈブロック ２０１６ | BY20: 表題８ | BZ20: スーパーリ－グ 第１０回大会 Ｈブロック ２０１６ | CA20: 表題８ | CB20: スーパーリ－グ 第１０回大会 Ｈブロック ２０１６ | CC20: 表題８ | CD20: スーパーリ－グ 第１０回大会 Ｈブロック ２０１６ | CE20: 表題８ | CF20: スーパーリ－グ 第１０回大会 Ｈブロック ２０１６ | CG20: 表題８ | CH20: スーパーリ－グ 第１０回大会 Ｈブロック ２０１６ | CI20: 表題８ | CJ20: スーパーリ－グ 第１０回大会 Ｈブロック ２０１６ | CK20: 表題８ | CL20: スーパーリ－グ 第１０回大会 Ｈブロック ２０１６ | CM20: 表題８ | CN20: スーパーリ－グ 第１０回大会 Ｈブロック ２０１６ | CO20: 表題８ | CP20: スーパーリ－グ 第１０回大会 Ｈブロック ２０１６ | CQ20: 表題８ | CR20: スーパーリ－グ 第１０回大会 Ｈブロック ２０１６ | CS20: 表題８ | CT20: スーパーリ－グ 第１０回大会 Ｈブロック ２０１６ | CU20: 表題８ | CV20: スーパーリ－グ 第１０回大会 Ｈブロック ２０１６ | CW20: 表題８ | CX20: スーパーリ－グ 第１０回大会 Ｈブロック ２０１６ | CY20: 表題８ | CZ20: スーパーリ－グ 第１０回大会 Ｈブロック ２０１６ | DA20: 表題８ | DB20: スーパーリ－グ 第１０回大会 Ｈブロック ２０１６ | DC20: 表題８ | DD20: スーパーリ－グ 第１０回大会 Ｈブロック ２０１６ | DE20: 表題８ | DF20: スーパーリ－グ 第１０回大会 Ｈブロック ２０１６ | DG20: 表題８ | DH20: スーパーリ－グ 第１０回大会 Ｈブロック ２０１６ | DI20: 表題８ | DJ20: スーパーリ－グ 第１０回大会 Ｈブロック ２０１６ | DK20: 表題８ | DL20: スーパーリ－グ 第１０回大会 Ｈブロック ２０１６ | DM20: 表題８ | DN20: スーパーリ－グ 第１０回大会 Ｈブロック ２０１６ | DO20: 表題８ | DP20: スーパーリ－グ 第１０回大会 Ｈブロック ２０１６ | DQ20: 表題８ | DR20: スーパーリ－グ 第１０回大会 Ｈブロック ２０１６ | DS20: 表題８ | DT20: スーパーリ－グ 第１０回大会 Ｈブロック ２０１６ | DU20: 表題８ | DV20: スーパーリ－グ 第１０回大会 Ｈブロック ２０１６ | DW20: 表題８ | DX20: スーパーリ－グ 第１０回大会 Ｈブロック ２０１６ | DY20: 表題８ | DZ20: スーパーリ－グ 第１０回大会 Ｈブロック ２０１６ | EA20: 表題８ | EB20: スーパーリ－グ 第１０回大会 Ｈブロック ２０１６ | EC20: 表題８ | ED20: スーパーリ－グ 第１０回大会 Ｈブロック ２０１６ | EE20: 表題８ | EF20: スーパーリ－グ 第１０回大会 Ｈブロック ２０１６ | EG20: 表題８ | EH20: スーパーリ－グ 第１０回大会 Ｈブロック ２０１６ | EI20: 表題８ | EJ20: スーパーリ－グ 第１０回大会 Ｈブロック ２０１６ | EK20: 表題８ | EL20: スーパーリ－グ 第１０回大会 Ｈブロック ２０１６ | EM20: 表題８ | EN20: スーパーリ－グ 第１０回大会 Ｈブロック ２０１６ | EO20: 表題８ | EP20: スーパーリ－グ 第１０回大会 Ｈブロック ２０１６ | EQ20: 表題８ | ER20: スーパーリ－グ 第１０回大会 Ｈブロック ２０１６ | ES20: 表題８ | ET20: スーパーリ－グ 第１０回大会 Ｈブロック ２０１６ | EU20: 表題８ | EV20: スーパーリ－グ 第１０回大会 Ｈブロック ２０１６ | EW20: 表題８ | EX20: スーパーリ－グ 第１０回大会 Ｈブロック ２０１６ | EY20: 表題８ | EZ20: スーパーリ－グ 第１０回大会 Ｈブロック ２０１６ | FA20: 表題８ | FB20: スーパーリ－グ 第１０回大会 Ｈブロック ２０１６ | FC20: 表題８ | FD20: スーパーリ－グ 第１０回大会 Ｈブロック ２０１６ | FE20: 表題８ | FF20: スーパーリ－グ 第１０回大会 Ｈブロック ２０１６ | FG20: 表題８ | FH20: スーパーリ－グ 第１０回大会 Ｈブロック ２０１６ | FI20: 表題８ | FJ20: スーパーリ－グ 第１０回大会 Ｈブロック ２０１６ | FK20: 表題８ | FL20: スーパーリ－グ 第１０回大会 Ｈブロック ２０１６ | FM20: 表題８ | FN20: スーパーリ－グ 第１０回大会 Ｈブロック ２０１６ | FO20: 表題８ | FP20: スーパーリ－グ 第１０回大会 Ｈブロック ２０１６ | FQ20: 表題８ | FR20: スーパーリ－グ 第１０回大会 Ｈブロック ２０１６ | FS20: 表題８ | FT20: スーパーリ－グ 第１０回大会 Ｈブロック ２０１６ | FU20: 表題８ | FV20: スーパーリ－グ 第１０回大会 Ｈブロック ２０１６ | FW20: 表題８ | FX20: スーパーリ－グ 第１０回大会 Ｈブロック ２０１６ | FY20: 表題８ | FZ20: スーパーリ－グ 第１０回大会 Ｈブロック ２０１６ | GA20: 表題８ | GB20: スーパーリ－グ 第１０回大会 Ｈブロック ２０１６ | GC20: 表題８ | GD20: スーパーリ－グ 第１０回大会 Ｈブロック ２０１６ | GE20: 表題８ | GF20: スーパーリ－グ 第１０回大会 Ｈブロック ２０１６ | GG20: 表題８ | GH20: スーパーリ－グ 第１０回大会 Ｈブロック ２０１６ | GI20: 表題８ | GJ20: スーパーリ－グ 第１０回大会 Ｈブロック ２０１６ | GK20: 表題８ | GL20: スーパーリ－グ 第１０回大会 Ｈブロック ２０１６ | GM20: 表題８ | GN20: スーパーリ－グ 第１０回大会 Ｈブロック ２０１６ | GO20: 表題８ | GP20: スーパーリ－グ 第１０回大会 Ｈブロック ２０１６ | GQ20: 表題８ | GR20: スーパーリ－グ 第１０回大会 Ｈブロック ２０１６ | GS20: 表題８ | GT20: スーパーリ－グ 第１０回大会 Ｈブロック ２０１６ | GU20: 表題８ | GV20: スーパーリ－グ 第１０回大会 Ｈブロック ２０１６ | GW20: 表題８ | GX20: スーパーリ－グ 第１０回大会 Ｈブロック ２０１６ | GY20: 表題８ | GZ20: スーパーリ－グ 第１０回大会 Ｈブロック ２０１６ | HA20: 表題８ | HB20: スーパーリ－グ 第１０回大会 Ｈブロック ２０１６ | HC20: 表題８ | HD20: スーパーリ－グ 第１０回大会 Ｈブロック ２０１６ | HE20: 表題８ | HF20: スーパーリ－グ 第１０回大会 Ｈブロック ２０１６ | HG20: 表題８ | HH20: スーパーリ－グ 第１０回大会 Ｈブロック ２０１６ | HI20: 表題８ | HJ20: スーパーリ－グ 第１０回大会 Ｈブロック ２０１６ | HK20: 表題８ | HL20: スーパーリ－グ 第１０回大会 Ｈブロック ２０１６ | HM20: 表題８ | HN20: スーパーリ－グ 第１０回大会 Ｈブロック ２０１６ | HO20: 表題８ | HP20: スーパーリ－グ 第１０回大会 Ｈブロック ２０１６ | HQ20: 表題８ | HR20: スーパーリ－グ 第１０回大会 Ｈブロック ２０１６ | HS20: 表題８ | HT20: スーパーリ－グ 第１０回大会 Ｈブロック ２０１６ | HU20: 表題８ | HV20: スーパーリ－グ 第１０回大会 Ｈブロック ２０１６ | HW20: 表題８ | HX20: スーパーリ－グ 第１０回大会 Ｈブロック ２０１６ | HY20: 表題８ | HZ20: スーパーリ－グ 第１０回大会 Ｈブロック ２０１６ | IA20: 表題８ | IB20: スーパーリ－グ 第１０回大会 Ｈブロック ２０１６ | IC20: 表題８ | ID20: スーパーリ－グ 第１０回大会 Ｈブロック ２０１６ | IE20: 表題８ | IF20: スーパーリ－グ 第１０回大会 Ｈブロック ２０１６ | IG20: 表題８ | IH20: スーパーリ－グ 第１０回大会 Ｈブロック ２０１６ | II20: 表題８ | IJ20: スーパーリ－グ 第１０回大会 Ｈブロック ２０１６ | IK20: 表題８ | IL20: スーパーリ－グ 第１０回大会 Ｈブロック ２０１６ | IM20: 表題８ | IN20: スーパーリ－グ 第１０回大会 Ｈブロック ２０１６ | IO20: 表題８ | IP20: スーパーリ－グ 第１０回大会 Ｈブロック ２０１６ | IQ20: 表題８ | IR20: スーパーリ－グ 第１０回大会 Ｈブロック ２０１６ | IS20: 表題８ | IT20: スーパーリ－グ 第１０回大会 Ｈブロック ２０１６ | IU20: 表題８ | IV20: スーパーリ－グ 第１０回大会 Ｈブロック ２０１６
A22: 表題９ | B22: スーパーリ－グ 第１４回大会 Ｉブロック ２０２０ | C22: 表題９ | D22: スーパーリ－グ 第１０回大会 Ｉブロック ２０１６ | E22: 表題９ | F22: スーパーリ－グ 第１０回大会 Ｉブロック ２０１６ | G22: 表題９ | H22: スーパーリ－グ 第１０回大会 Ｉブロック ２０１６ | I22: 表題９ | J22: スーパーリ－グ 第１０回大会 Ｉブロック ２０１６ | K22: 表題９ | L22: スーパーリ－グ 第１０回大会 Ｉブロック ２０１６ | M22: 表題９ | N22: スーパーリ－グ 第１０回大会 Ｉブロック ２０１６ | O22: 表題９ | P22: スーパーリ－グ 第１０回大会 Ｉブロック ２０１６ | Q22: 表題９ | R22: スーパーリ－グ 第１０回大会 Ｉブロック ２０１６ | S22: 表題９ | T22: スーパーリ－グ 第１０回大会 Ｉブロック ２０１６ | U22: 表題９ | V22: スーパーリ－グ 第１０回大会 Ｉブロック ２０１６ | W22: 表題９ | X22: スーパーリ－グ 第１０回大会 Ｉブロック ２０１６ | Y22: 表題９ | Z22: スーパーリ－グ 第１０回大会 Ｉブロック ２０１６ | AA22: 表題９ | AB22: スーパーリ－グ 第１０回大会 Ｉブロック ２０１６ | AC22: 表題９ | AD22: スーパーリ－グ 第１０回大会 Ｉブロック ２０１６ | AE22: 表題９ | AF22: スーパーリ－グ 第１０回大会 Ｉブロック ２０１６ | AG22: 表題９ | AH22: スーパーリ－グ 第１０回大会 Ｉブロック ２０１６ | AI22: 表題９ | AJ22: スーパーリ－グ 第１０回大会 Ｉブロック ２０１６ | AK22: 表題９ | AL22: スーパーリ－グ 第１０回大会 Ｉブロック ２０１６ | AM22: 表題９ | AN22: スーパーリ－グ 第１０回大会 Ｉブロック ２０１６ | AO22: 表題９ | AP22: スーパーリ－グ 第１０回大会 Ｉブロック ２０１６ | AQ22: 表題９ | AR22: スーパーリ－グ 第１０回大会 Ｉブロック ２０１６ | AS22: 表題９ | AT22: スーパーリ－グ 第１０回大会 Ｉブロック ２０１６ | AU22: 表題９ | AV22: スーパーリ－グ 第１０回大会 Ｉブロック ２０１６ | AW22: 表題９ | AX22: スーパーリ－グ 第１０回大会 Ｉブロック ２０１６ | AY22: 表題９ | AZ22: スーパーリ－グ 第１０回大会 Ｉブロック ２０１６ | BA22: 表題９ | BB22: スーパーリ－グ 第１０回大会 Ｉブロック ２０１６ | BC22: 表題９ | BD22: スーパーリ－グ 第１０回大会 Ｉブロック ２０１６ | BE22: 表題９ | BF22: スーパーリ－グ 第１０回大会 Ｉブロック ２０１６ | BG22: 表題９ | BH22: スーパーリ－グ 第１０回大会 Ｉブロック ２０１６ | BI22: 表題９ | BJ22: スーパーリ－グ 第１０回大会 Ｉブロック ２０１６ | BK22: 表題９ | BL22: スーパーリ－グ 第１０回大会 Ｉブロック ２０１６ | BM22: 表題９ | BN22: スーパーリ－グ 第１０回大会 Ｉブロック ２０１６ | BO22: 表題９ | BP22: スーパーリ－グ 第１０回大会 Ｉブロック ２０１６ | BQ22: 表題９ | BR22: スーパーリ－グ 第１０回大会 Ｉブロック ２０１６ | BS22: 表題９ | BT22: スーパーリ－グ 第１０回大会 Ｉブロック ２０１６ | BU22: 表題９ | BV22: スーパーリ－グ 第１０回大会 Ｉブロック ２０１６ | BW22: 表題９ | BX22: スーパーリ－グ 第１０回大会 Ｉブロック ２０１６ | BY22: 表題９ | BZ22: スーパーリ－グ 第１０回大会 Ｉブロック ２０１６ | CA22: 表題９ | CB22: スーパーリ－グ 第１０回大会 Ｉブロック ２０１６ | CC22: 表題９ | CD22: スーパーリ－グ 第１０回大会 Ｉブロック ２０１６ | CE22: 表題９ | CF22: スーパーリ－グ 第１０回大会 Ｉブロック ２０１６ | CG22: 表題９ | CH22: スーパーリ－グ 第１０回大会 Ｉブロック ２０１６ | CI22: 表題９ | CJ22: スーパーリ－グ 第１０回大会 Ｉブロック ２０１６ | CK22: 表題９ | CL22: スーパーリ－グ 第１０回大会 Ｉブロック ２０１６ | CM22: 表題９ | CN22: スーパーリ－グ 第１０回大会 Ｉブロック ２０１６ | CO22: 表題９ | CP22: スーパーリ－グ 第１０回大会 Ｉブロック ２０１６ | CQ22: 表題９ | CR22: スーパーリ－グ 第１０回大会 Ｉブロック ２０１６ | CS22: 表題９ | CT22: スーパーリ－グ 第１０回大会 Ｉブロック ２０１６ | CU22: 表題９ | CV22: スーパーリ－グ 第１０回大会 Ｉブロック ２０１６ | CW22: 表題９ | CX22: スーパーリ－グ 第１０回大会 Ｉブロック ２０１６ | CY22: 表題９ | CZ22: スーパーリ－グ 第１０回大会 Ｉブロック ２０１６ | DA22: 表題９ | DB22: スーパーリ－グ 第１０回大会 Ｉブロック ２０１６ | DC22: 表題９ | DD22: スーパーリ－グ 第１０回大会 Ｉブロック ２０１６ | DE22: 表題９ | DF22: スーパーリ－グ 第１０回大会 Ｉブロック ２０１６ | DG22: 表題９ | DH22: スーパーリ－グ 第１０回大会 Ｉブロック ２０１６ | DI22: 表題９ | DJ22: スーパーリ－グ 第１０回大会 Ｉブロック ２０１６ | DK22: 表題９ | DL22: スーパーリ－グ 第１０回大会 Ｉブロック ２０１６ | DM22: 表題９ | DN22: スーパーリ－グ 第１０回大会 Ｉブロック ２０１６ | DO22: 表題９ | DP22: スーパーリ－グ 第１０回大会 Ｉブロック ２０１６ | DQ22: 表題９ | DR22: スーパーリ－グ 第１０回大会 Ｉブロック ２０１６ | DS22: 表題９ | DT22: スーパーリ－グ 第１０回大会 Ｉブロック ２０１６ | DU22: 表題９ | DV22: スーパーリ－グ 第１０回大会 Ｉブロック ２０１６ | DW22: 表題９ | DX22: スーパーリ－グ 第１０回大会 Ｉブロック ２０１６ | DY22: 表題９ | DZ22: スーパーリ－グ 第１０回大会 Ｉブロック ２０１６ | EA22: 表題９ | EB22: スーパーリ－グ 第１０回大会 Ｉブロック ２０１６ | EC22: 表題９ | ED22: スーパーリ－グ 第１０回大会 Ｉブロック ２０１６ | EE22: 表題９ | EF22: スーパーリ－グ 第１０回大会 Ｉブロック ２０１６ | EG22: 表題９ | EH22: スーパーリ－グ 第１０回大会 Ｉブロック ２０１６ | EI22: 表題９ | EJ22: スーパーリ－グ 第１０回大会 Ｉブロック ２０１６ | EK22: 表題９ | EL22: スーパーリ－グ 第１０回大会 Ｉブロック ２０１６ | EM22: 表題９ | EN22: スーパーリ－グ 第１０回大会 Ｉブロック ２０１６ | EO22: 表題９ | EP22: スーパーリ－グ 第１０回大会 Ｉブロック ２０１６ | EQ22: 表題９ | ER22: スーパーリ－グ 第１０回大会 Ｉブロック ２０１６ | ES22: 表題９ | ET22: スーパーリ－グ 第１０回大会 Ｉブロック ２０１６ | EU22: 表題９ | EV22: スーパーリ－グ 第１０回大会 Ｉブロック ２０１６ | EW22: 表題９ | EX22: スーパーリ－グ 第１０回大会 Ｉブロック ２０１６ | EY22: 表題９ | EZ22: スーパーリ－グ 第１０回大会 Ｉブロック ２０１６ | FA22: 表題９ | FB22: スーパーリ－グ 第１０回大会 Ｉブロック ２０１６ | FC22: 表題９ | FD22: スーパーリ－グ 第１０回大会 Ｉブロック ２０１６ | FE22: 表題９ | FF22: スーパーリ－グ 第１０回大会 Ｉブロック ２０１６ | FG22: 表題９ | FH22: スーパーリ－グ 第１０回大会 Ｉブロック ２０１６ | FI22: 表題９ | FJ22: スーパーリ－グ 第１０回大会 Ｉブロック ２０１６ | FK22: 表題９ | FL22: スーパーリ－グ 第１０回大会 Ｉブロック ２０１６ | FM22: 表題９ | FN22: スーパーリ－グ 第１０回大会 Ｉブロック ２０１６ | FO22: 表題９ | FP22: スーパーリ－グ 第１０回大会 Ｉブロック ２０１６ | FQ22: 表題９ | FR22: スーパーリ－グ 第１０回大会 Ｉブロック ２０１６ | FS22: 表題９ | FT22: スーパーリ－グ 第１０回大会 Ｉブロック ２０１６ | FU22: 表題９ | FV22: スーパーリ－グ 第１０回大会 Ｉブロック ２０１６ | FW22: 表題９ | FX22: スーパーリ－グ 第１０回大会 Ｉブロック ２０１６ | FY22: 表題９ | FZ22: スーパーリ－グ 第１０回大会 Ｉブロック ２０１６ | GA22: 表題９ | GB22: スーパーリ－グ 第１０回大会 Ｉブロック ２０１６ | GC22: 表題９ | GD22: スーパーリ－グ 第１０回大会 Ｉブロック ２０１６ | GE22: 表題９ | GF22: スーパーリ－グ 第１０回大会 Ｉブロック ２０１６ | GG22: 表題９ | GH22: スーパーリ－グ 第１０回大会 Ｉブロック ２０１６ | GI22: 表題９ | GJ22: スーパーリ－グ 第１０回大会 Ｉブロック ２０１６ | GK22: 表題９ | GL22: スーパーリ－グ 第１０回大会 Ｉブロック ２０１６ | GM22: 表題９ | GN22: スーパーリ－グ 第１０回大会 Ｉブロック ２０１６ | GO22: 表題９ | GP22: スーパーリ－グ 第１０回大会 Ｉブロック ２０１６ | GQ22: 表題９ | GR22: スーパーリ－グ 第１０回大会 Ｉブロック ２０１６ | GS22: 表題９ | GT22: スーパーリ－グ 第１０回大会 Ｉブロック ２０１６ | GU22: 表題９ | GV22: スーパーリ－グ 第１０回大会 Ｉブロック ２０１６ | GW22: 表題９ | GX22: スーパーリ－グ 第１０回大会 Ｉブロック ２０１６ | GY22: 表題９ | GZ22: スーパーリ－グ 第１０回大会 Ｉブロック ２０１６ | HA22: 表題９ | HB22: スーパーリ－グ 第１０回大会 Ｉブロック ２０１６ | HC22: 表題９ | HD22: スーパーリ－グ 第１０回大会 Ｉブロック ２０１６ | HE22: 表題９ | HF22: スーパーリ－グ 第１０回大会 Ｉブロック ２０１６ | HG22: 表題９ | HH22: スーパーリ－グ 第１０回大会 Ｉブロック ２０１６ | HI22: 表題９ | HJ22: スーパーリ－グ 第１０回大会 Ｉブロック ２０１６ | HK22: 表題９ | HL22: スーパーリ－グ 第１０回大会 Ｉブロック ２０１６ | HM22: 表題９ | HN22: スーパーリ－グ 第１０回大会 Ｉブロック ２０１６ | HO22: 表題９ | HP22: スーパーリ－グ 第１０回大会 Ｉブロック ２０１６ | HQ22: 表題９ | HR22: スーパーリ－グ 第１０回大会 Ｉブロック ２０１６ | HS22: 表題９ | HT22: スーパーリ－グ 第１０回大会 Ｉブロック ２０１６ | HU22: 表題９ | HV22: スーパーリ－グ 第１０回大会 Ｉブロック ２０１６ | HW22: 表題９ | HX22: スーパーリ－グ 第１０回大会 Ｉブロック ２０１６ | HY22: 表題９ | HZ22: スーパーリ－グ 第１０回大会 Ｉブロック ２０１６ | IA22: 表題９ | IB22: スーパーリ－グ 第１０回大会 Ｉブロック ２０１６ | IC22: 表題９ | ID22: スーパーリ－グ 第１０回大会 Ｉブロック ２０１６ | IE22: 表題９ | IF22: スーパーリ－グ 第１０回大会 Ｉブロック ２０１６ | IG22: 表題９ | IH22: スーパーリ－グ 第１０回大会 Ｉブロック ２０１６ | II22: 表題９ | IJ22: スーパーリ－グ 第１０回大会 Ｉブロック ２０１６ | IK22: 表題９ | IL22: スーパーリ－グ 第１０回大会 Ｉブロック ２０１６ | IM22: 表題９ | IN22: スーパーリ－グ 第１０回大会 Ｉブロック ２０１６ | IO22: 表題９ | IP22: スーパーリ－グ 第１０回大会 Ｉブロック ２０１６ | IQ22: 表題９ | IR22: スーパーリ－グ 第１０回大会 Ｉブロック ２０１６ | IS22: 表題９ | IT22: スーパーリ－グ 第１０回大会 Ｉブロック ２０１６ | IU22: 表題９ | IV22: スーパーリ－グ 第１０回大会 Ｉブロック ２０１６
A24: 表題１０ | B24: スーパーリ－グ 第１４回大会 Ｊブロック ２０２０ | C24: 表題１０ | D24: スーパーリ－グ 第１０回大会 Ｊブロック ２０１６ | E24: 表題１０ | F24: スーパーリ－グ 第１０回大会 Ｊブロック ２０１６ | G24: 表題１０ | H24: スーパーリ－グ 第１０回大会 Ｊブロック ２０１６ | I24: 表題１０ | J24: スーパーリ－グ 第１０回大会 Ｊブロック ２０１６ | K24: 表題１０ | L24: スーパーリ－グ 第１０回大会 Ｊブロック ２０１６ | M24: 表題１０ | N24: スーパーリ－グ 第１０回大会 Ｊブロック ２０１６ | O24: 表題１０ | P24: スーパーリ－グ 第１０回大会 Ｊブロック ２０１６ | Q24: 表題１０ | R24: スーパーリ－グ 第１０回大会 Ｊブロック ２０１６ | S24: 表題１０ | T24: スーパーリ－グ 第１０回大会 Ｊブロック ２０１６ | U24: 表題１０ | V24: スーパーリ－グ 第１０回大会 Ｊブロック ２０１６ | W24: 表題１０ | X24: スーパーリ－グ 第１０回大会 Ｊブロック ２０１６ | Y24: 表題１０ | Z24: スーパーリ－グ 第１０回大会 Ｊブロック ２０１６ | AA24: 表題１０ | AB24: スーパーリ－グ 第１０回大会 Ｊブロック ２０１６ | AC24: 表題１０ | AD24: スーパーリ－グ 第１０回大会 Ｊブロック ２０１６ | AE24: 表題１０ | AF24: スーパーリ－グ 第１０回大会 Ｊブロック ２０１６ | AG24: 表題１０ | AH24: スーパーリ－グ 第１０回大会 Ｊブロック ２０１６ | AI24: 表題１０ | AJ24: スーパーリ－グ 第１０回大会 Ｊブロック ２０１６ | AK24: 表題１０ | AL24: スーパーリ－グ 第１０回大会 Ｊブロック ２０１６ | AM24: 表題１０ | AN24: スーパーリ－グ 第１０回大会 Ｊブロック ２０１６ | AO24: 表題１０ | AP24: スーパーリ－グ 第１０回大会 Ｊブロック ２０１６ | AQ24: 表題１０ | AR24: スーパーリ－グ 第１０回大会 Ｊブロック ２０１６ | AS24: 表題１０ | AT24: スーパーリ－グ 第１０回大会 Ｊブロック ２０１６ | AU24: 表題１０ | AV24: スーパーリ－グ 第１０回大会 Ｊブロック ２０１６ | AW24: 表題１０ | AX24: スーパーリ－グ 第１０回大会 Ｊブロック ２０１６ | AY24: 表題１０ | AZ24: スーパーリ－グ 第１０回大会 Ｊブロック ２０１６ | BA24: 表題１０ | BB24: スーパーリ－グ 第１０回大会 Ｊブロック ２０１６ | BC24: 表題１０ | BD24: スーパーリ－グ 第１０回大会 Ｊブロック ２０１６ | BE24: 表題１０ | BF24: スーパーリ－グ 第１０回大会 Ｊブロック ２０１６ | BG24: 表題１０ | BH24: スーパーリ－グ 第１０回大会 Ｊブロック ２０１６ | BI24: 表題１０ | BJ24: スーパーリ－グ 第１０回大会 Ｊブロック ２０１６ | BK24: 表題１０ | BL24: スーパーリ－グ 第１０回大会 Ｊブロック ２０１６ | BM24: 表題１０ | BN24: スーパーリ－グ 第１０回大会 Ｊブロック ２０１６ | BO24: 表題１０ | BP24: スーパーリ－グ 第１０回大会 Ｊブロック ２０１６ | BQ24: 表題１０ | BR24: スーパーリ－グ 第１０回大会 Ｊブロック ２０１６ | BS24: 表題１０ | BT24: スーパーリ－グ 第１０回大会 Ｊブロック ２０１６ | BU24: 表題１０ | BV24: スーパーリ－グ 第１０回大会 Ｊブロック ２０１６ | BW24: 表題１０ | BX24: スーパーリ－グ 第１０回大会 Ｊブロック ２０１６ | BY24: 表題１０ | BZ24: スーパーリ－グ 第１０回大会 Ｊブロック ２０１６ | CA24: 表題１０ | CB24: スーパーリ－グ 第１０回大会 Ｊブロック ２０１６ | CC24: 表題１０ | CD24: スーパーリ－グ 第１０回大会 Ｊブロック ２０１６ | CE24: 表題１０ | CF24: スーパーリ－グ 第１０回大会 Ｊブロック ２０１６ | CG24: 表題１０ | CH24: スーパーリ－グ 第１０回大会 Ｊブロック ２０１６ | CI24: 表題１０ | CJ24: スーパーリ－グ 第１０回大会 Ｊブロック ２０１６ | CK24: 表題１０ | CL24: スーパーリ－グ 第１０回大会 Ｊブロック ２０１６ | CM24: 表題１０ | CN24: スーパーリ－グ 第１０回大会 Ｊブロック ２０１６ | CO24: 表題１０ | CP24: スーパーリ－グ 第１０回大会 Ｊブロック ２０１６ | CQ24: 表題１０ | CR24: スーパーリ－グ 第１０回大会 Ｊブロック ２０１６ | CS24: 表題１０ | CT24: スーパーリ－グ 第１０回大会 Ｊブロック ２０１６ | CU24: 表題１０ | CV24: スーパーリ－グ 第１０回大会 Ｊブロック ２０１６ | CW24: 表題１０ | CX24: スーパーリ－グ 第１０回大会 Ｊブロック ２０１６ | CY24: 表題１０ | CZ24: スーパーリ－グ 第１０回大会 Ｊブロック ２０１６ | DA24: 表題１０ | DB24: スーパーリ－グ 第１０回大会 Ｊブロック ２０１６ | DC24: 表題１０ | DD24: スーパーリ－グ 第１０回大会 Ｊブロック ２０１６ | DE24: 表題１０ | DF24: スーパーリ－グ 第１０回大会 Ｊブロック ２０１６ | DG24: 表題１０ | DH24: スーパーリ－グ 第１０回大会 Ｊブロック ２０１６ | DI24: 表題１０ | DJ24: スーパーリ－グ 第１０回大会 Ｊブロック ２０１６ | DK24: 表題１０ | DL24: スーパーリ－グ 第１０回大会 Ｊブロック ２０１６ | DM24: 表題１０ | DN24: スーパーリ－グ 第１０回大会 Ｊブロック ２０１６ | DO24: 表題１０ | DP24: スーパーリ－グ 第１０回大会 Ｊブロック ２０１６ | DQ24: 表題１０ | DR24: スーパーリ－グ 第１０回大会 Ｊブロック ２０１６ | DS24: 表題１０ | DT24: スーパーリ－グ 第１０回大会 Ｊブロック ２０１６ | DU24: 表題１０ | DV24: スーパーリ－グ 第１０回大会 Ｊブロック ２０１６ | DW24: 表題１０ | DX24: スーパーリ－グ 第１０回大会 Ｊブロック ２０１６ | DY24: 表題１０ | DZ24: スーパーリ－グ 第１０回大会 Ｊブロック ２０１６ | EA24: 表題１０ | EB24: スーパーリ－グ 第１０回大会 Ｊブロック ２０１６ | EC24: 表題１０ | ED24: スーパーリ－グ 第１０回大会 Ｊブロック ２０１６ | EE24: 表題１０ | EF24: スーパーリ－グ 第１０回大会 Ｊブロック ２０１６ | EG24: 表題１０ | EH24: スーパーリ－グ 第１０回大会 Ｊブロック ２０１６ | EI24: 表題１０ | EJ24: スーパーリ－グ 第１０回大会 Ｊブロック ２０１６ | EK24: 表題１０ | EL24: スーパーリ－グ 第１０回大会 Ｊブロック ２０１６ | EM24: 表題１０ | EN24: スーパーリ－グ 第１０回大会 Ｊブロック ２０１６ | EO24: 表題１０ | EP24: スーパーリ－グ 第１０回大会 Ｊブロック ２０１６ | EQ24: 表題１０ | ER24: スーパーリ－グ 第１０回大会 Ｊブロック ２０１６ | ES24: 表題１０ | ET24: スーパーリ－グ 第１０回大会 Ｊブロック ２０１６ | EU24: 表題１０ | EV24: スーパーリ－グ 第１０回大会 Ｊブロック ２０１６ | EW24: 表題１０ | EX24: スーパーリ－グ 第１０回大会 Ｊブロック ２０１６ | EY24: 表題１０ | EZ24: スーパーリ－グ 第１０回大会 Ｊブロック ２０１６ | FA24: 表題１０ | FB24: スーパーリ－グ 第１０回大会 Ｊブロック ２０１６ | FC24: 表題１０ | FD24: スーパーリ－グ 第１０回大会 Ｊブロック ２０１６ | FE24: 表題１０ | FF24: スーパーリ－グ 第１０回大会 Ｊブロック ２０１６ | FG24: 表題１０ | FH24: スーパーリ－グ 第１０回大会 Ｊブロック ２０１６ | FI24: 表題１０ | FJ24: スーパーリ－グ 第１０回大会 Ｊブロック ２０１６ | FK24: 表題１０ | FL24: スーパーリ－グ 第１０回大会 Ｊブロック ２０１６ | FM24: 表題１０ | FN24: スーパーリ－グ 第１０回大会 Ｊブロック ２０１６ | FO24: 表題１０ | FP24: スーパーリ－グ 第１０回大会 Ｊブロック ２０１６ | FQ24: 表題１０ | FR24: スーパーリ－グ 第１０回大会 Ｊブロック ２０１６ | FS24: 表題１０ | FT24: スーパーリ－グ 第１０回大会 Ｊブロック ２０１６ | FU24: 表題１０ | FV24: スーパーリ－グ 第１０回大会 Ｊブロック ２０１６ | FW24: 表題１０ | FX24: スーパーリ－グ 第１０回大会 Ｊブロック ２０１６ | FY24: 表題１０ | FZ24: スーパーリ－グ 第１０回大会 Ｊブロック ２０１６ | GA24: 表題１０ | GB24: スーパーリ－グ 第１０回大会 Ｊブロック ２０１６ | GC24: 表題１０ | GD24: スーパーリ－グ 第１０回大会 Ｊブロック ２０１６ | GE24: 表題１０ | GF24: スーパーリ－グ 第１０回大会 Ｊブロック ２０１６ | GG24: 表題１０ | GH24: スーパーリ－グ 第１０回大会 Ｊブロック ２０１６ | GI24: 表題１０ | GJ24: スーパーリ－グ 第１０回大会 Ｊブロック ２０１６ | GK24: 表題１０ | GL24: スーパーリ－グ 第１０回大会 Ｊブロック ２０１６ | GM24: 表題１０ | GN24: スーパーリ－グ 第１０回大会 Ｊブロック ２０１６ | GO24: 表題１０ | GP24: スーパーリ－グ 第１０回大会 Ｊブロック ２０１６ | GQ24: 表題１０ | GR24: スーパーリ－グ 第１０回大会 Ｊブロック ２０１６ | GS24: 表題１０ | GT24: スーパーリ－グ 第１０回大会 Ｊブロック ２０１６ | GU24: 表題１０ | GV24: スーパーリ－グ 第１０回大会 Ｊブロック ２０１６ | GW24: 表題１０ | GX24: スーパーリ－グ 第１０回大会 Ｊブロック ２０１６ | GY24: 表題１０ | GZ24: スーパーリ－グ 第１０回大会 Ｊブロック ２０１６ | HA24: 表題１０ | HB24: スーパーリ－グ 第１０回大会 Ｊブロック ２０１６ | HC24: 表題１０ | HD24: スーパーリ－グ 第１０回大会 Ｊブロック ２０１６ | HE24: 表題１０ | HF24: スーパーリ－グ 第１０回大会 Ｊブロック ２０１６ | HG24: 表題１０ | HH24: スーパーリ－グ 第１０回大会 Ｊブロック ２０１６ | HI24: 表題１０ | HJ24: スーパーリ－グ 第１０回大会 Ｊブロック ２０１６ | HK24: 表題１０ | HL24: スーパーリ－グ 第１０回大会 Ｊブロック ２０１６ | HM24: 表題１０ | HN24: スーパーリ－グ 第１０回大会 Ｊブロック ２０１６ | HO24: 表題１０ | HP24: スーパーリ－グ 第１０回大会 Ｊブロック ２０１６ | HQ24: 表題１０ | HR24: スーパーリ－グ 第１０回大会 Ｊブロック ２０１６ | HS24: 表題１０ | HT24: スーパーリ－グ 第１０回大会 Ｊブロック ２０１６ | HU24: 表題１０ | HV24: スーパーリ－グ 第１０回大会 Ｊブロック ２０１６ | HW24: 表題１０ | HX24: スーパーリ－グ 第１０回大会 Ｊブロック ２０１６ | HY24: 表題１０ | HZ24: スーパーリ－グ 第１０回大会 Ｊブロック ２０１６ | IA24: 表題１０ | IB24: スーパーリ－グ 第１０回大会 Ｊブロック ２０１６ | IC24: 表題１０ | ID24: スーパーリ－グ 第１０回大会 Ｊブロック ２０１６ | IE24: 表題１０ | IF24: スーパーリ－グ 第１０回大会 Ｊブロック ２０１６ | IG24: 表題１０ | IH24: スーパーリ－グ 第１０回大会 Ｊブロック ２０１６ | II24: 表題１０ | IJ24: スーパーリ－グ 第１０回大会 Ｊブロック ２０１６ | IK24: 表題１０ | IL24: スーパーリ－グ 第１０回大会 Ｊブロック ２０１６ | IM24: 表題１０ | IN24: スーパーリ－グ 第１０回大会 Ｊブロック ２０１６ | IO24: 表題１０ | IP24: スーパーリ－グ 第１０回大会 Ｊブロック ２０１６ | IQ24: 表題１０ | IR24: スーパーリ－グ 第１０回大会 Ｊブロック ２０１６ | IS24: 表題１０ | IT24: スーパーリ－グ 第１０回大会 Ｊブロック ２０１６ | IU24: 表題１０ | IV24: スーパーリ－グ 第１０回大会 Ｊブロック ２０１６
A26: 表題１１ | B26: スーパーリ－グ 第１４回大会 Ｋブロック ２０２０ | C26: 表題１１ | D26: スーパーリ－グ 第１０回大会 Ｋブロック ２０１６ | E26: 表題１１ | F26: スーパーリ－グ 第１０回大会 Ｋブロック ２０１６ | G26: 表題１１ | H26: スーパーリ－グ 第１０回大会 Ｋブロック ２０１６ | I26: 表題１１ | J26: スーパーリ－グ 第１０回大会 Ｋブロック ２０１６ | K26: 表題１１ | L26: スーパーリ－グ 第１０回大会 Ｋブロック ２０１６ | M26: 表題１１ | N26: スーパーリ－グ 第１０回大会 Ｋブロック ２０１６ | O26: 表題１１ | P26: スーパーリ－グ 第１０回大会 Ｋブロック ２０１６ | Q26: 表題１１ | R26: スーパーリ－グ 第１０回大会 Ｋブロック ２０１６ | S26: 表題１１ | T26: スーパーリ－グ 第１０回大会 Ｋブロック ２０１６ | U26: 表題１１ | V26: スーパーリ－グ 第１０回大会 Ｋブロック ２０１６ | W26: 表題１１ | X26: スーパーリ－グ 第１０回大会 Ｋブロック ２０１６ | Y26: 表題１１ | Z26: スーパーリ－グ 第１０回大会 Ｋブロック ２０１６ | AA26: 表題１１ | AB26: スーパーリ－グ 第１０回大会 Ｋブロック ２０１６ | AC26: 表題１１ | AD26: スーパーリ－グ 第１０回大会 Ｋブロック ２０１６ | AE26: 表題１１ | AF26: スーパーリ－グ 第１０回大会 Ｋブロック ２０１６ | AG26: 表題１１ | AH26: スーパーリ－グ 第１０回大会 Ｋブロック ２０１６ | AI26: 表題１１ | AJ26: スーパーリ－グ 第１０回大会 Ｋブロック ２０１６ | AK26: 表題１１ | AL26: スーパーリ－グ 第１０回大会 Ｋブロック ２０１６ | AM26: 表題１１ | AN26: スーパーリ－グ 第１０回大会 Ｋブロック ２０１６ | AO26: 表題１１ | AP26: スーパーリ－グ 第１０回大会 Ｋブロック ２０１６ | AQ26: 表題１１ | AR26: スーパーリ－グ 第１０回大会 Ｋブロック ２０１６ | AS26: 表題１１ | AT26: スーパーリ－グ 第１０回大会 Ｋブロック ２０１６ | AU26: 表題１１ | AV26: スーパーリ－グ 第１０回大会 Ｋブロック ２０１６ | AW26: 表題１１ | AX26: スーパーリ－グ 第１０回大会 Ｋブロック ２０１６ | AY26: 表題１１ | AZ26: スーパーリ－グ 第１０回大会 Ｋブロック ２０１６ | BA26: 表題１１ | BB26: スーパーリ－グ 第１０回大会 Ｋブロック ２０１６ | BC26: 表題１１ | BD26: スーパーリ－グ 第１０回大会 Ｋブロック ２０１６ | BE26: 表題１１ | BF26: スーパーリ－グ 第１０回大会 Ｋブロック ２０１６ | BG26: 表題１１ | BH26: スーパーリ－グ 第１０回大会 Ｋブロック ２０１６ | BI26: 表題１１ | BJ26: スーパーリ－グ 第１０回大会 Ｋブロック ２０１６ | BK26: 表題１１ | BL26: スーパーリ－グ 第１０回大会 Ｋブロック ２０１６ | BM26: 表題１１ | BN26: スーパーリ－グ 第１０回大会 Ｋブロック ２０１６ | BO26: 表題１１ | BP26: スーパーリ－グ 第１０回大会 Ｋブロック ２０１６ | BQ26: 表題１１ | BR26: スーパーリ－グ 第１０回大会 Ｋブロック ２０１６ | BS26: 表題１１ | BT26: スーパーリ－グ 第１０回大会 Ｋブロック ２０１６ | BU26: 表題１１ | BV26: スーパーリ－グ 第１０回大会 Ｋブロック ２０１６ | BW26: 表題１１ | BX26: スーパーリ－グ 第１０回大会 Ｋブロック ２０１６ | BY26: 表題１１ | BZ26: スーパーリ－グ 第１０回大会 Ｋブロック ２０１６ | CA26: 表題１１ | CB26: スーパーリ－グ 第１０回大会 Ｋブロック ２０１６ | CC26: 表題１１ | CD26: スーパーリ－グ 第１０回大会 Ｋブロック ２０１６ | CE26: 表題１１ | CF26: スーパーリ－グ 第１０回大会 Ｋブロック ２０１６ | CG26: 表題１１ | CH26: スーパーリ－グ 第１０回大会 Ｋブロック ２０１６ | CI26: 表題１１ | CJ26: スーパーリ－グ 第１０回大会 Ｋブロック ２０１６ | CK26: 表題１１ | CL26: スーパーリ－グ 第１０回大会 Ｋブロック ２０１６ | CM26: 表題１１ | CN26: スーパーリ－グ 第１０回大会 Ｋブロック ２０１６ | CO26: 表題１１ | CP26: スーパーリ－グ 第１０回大会 Ｋブロック ２０１６ | CQ26: 表題１１ | CR26: スーパーリ－グ 第１０回大会 Ｋブロック ２０１６ | CS26: 表題１１ | CT26: スーパーリ－グ 第１０回大会 Ｋブロック ２０１６ | CU26: 表題１１ | CV26: スーパーリ－グ 第１０回大会 Ｋブロック ２０１６ | CW26: 表題１１ | CX26: スーパーリ－グ 第１０回大会 Ｋブロック ２０１６ | CY26: 表題１１ | CZ26: スーパーリ－グ 第１０回大会 Ｋブロック ２０１６ | DA26: 表題１１ | DB26: スーパーリ－グ 第１０回大会 Ｋブロック ２０１６ | DC26: 表題１１ | DD26: スーパーリ－グ 第１０回大会 Ｋブロック ２０１６ | DE26: 表題１１ | DF26: スーパーリ－グ 第１０回大会 Ｋブロック ２０１６ | DG26: 表題１１ | DH26: スーパーリ－グ 第１０回大会 Ｋブロック ２０１６ | DI26: 表題１１ | DJ26: スーパーリ－グ 第１０回大会 Ｋブロック ２０１６ | DK26: 表題１１ | DL26: スーパーリ－グ 第１０回大会 Ｋブロック ２０１６ | DM26: 表題１１ | DN26: スーパーリ－グ 第１０回大会 Ｋブロック ２０１６ | DO26: 表題１１ | DP26: スーパーリ－グ 第１０回大会 Ｋブロック ２０１６ | DQ26: 表題１１ | DR26: スーパーリ－グ 第１０回大会 Ｋブロック ２０１６ | DS26: 表題１１ | DT26: スーパーリ－グ 第１０回大会 Ｋブロック ２０１６ | DU26: 表題１１ | DV26: スーパーリ－グ 第１０回大会 Ｋブロック ２０１６ | DW26: 表題１１ | DX26: スーパーリ－グ 第１０回大会 Ｋブロック ２０１６ | DY26: 表題１１ | DZ26: スーパーリ－グ 第１０回大会 Ｋブロック ２０１６ | EA26: 表題１１ | EB26: スーパーリ－グ 第１０回大会 Ｋブロック ２０１６ | EC26: 表題１１ | ED26: スーパーリ－グ 第１０回大会 Ｋブロック ２０１６ | EE26: 表題１１ | EF26: スーパーリ－グ 第１０回大会 Ｋブロック ２０１６ | EG26: 表題１１ | EH26: スーパーリ－グ 第１０回大会 Ｋブロック ２０１６ | EI26: 表題１１ | EJ26: スーパーリ－グ 第１０回大会 Ｋブロック ２０１６ | EK26: 表題１１ | EL26: スーパーリ－グ 第１０回大会 Ｋブロック ２０１６ | EM26: 表題１１ | EN26: スーパーリ－グ 第１０回大会 Ｋブロック ２０１６ | EO26: 表題１１ | EP26: スーパーリ－グ 第１０回大会 Ｋブロック ２０１６ | EQ26: 表題１１ | ER26: スーパーリ－グ 第１０回大会 Ｋブロック ２０１６ | ES26: 表題１１ | ET26: スーパーリ－グ 第１０回大会 Ｋブロック ２０１６ | EU26: 表題１１ | EV26: スーパーリ－グ 第１０回大会 Ｋブロック ２０１６ | EW26: 表題１１ | EX26: スーパーリ－グ 第１０回大会 Ｋブロック ２０１６ | EY26: 表題１１ | EZ26: スーパーリ－グ 第１０回大会 Ｋブロック ２０１６ | FA26: 表題１１ | FB26: スーパーリ－グ 第１０回大会 Ｋブロック ２０１６ | FC26: 表題１１ | FD26: スーパーリ－グ 第１０回大会 Ｋブロック ２０１６ | FE26: 表題１１ | FF26: スーパーリ－グ 第１０回大会 Ｋブロック ２０１６ | FG26: 表題１１ | FH26: スーパーリ－グ 第１０回大会 Ｋブロック ２０１６ | FI26: 表題１１ | FJ26: スーパーリ－グ 第１０回大会 Ｋブロック ２０１６ | FK26: 表題１１ | FL26: スーパーリ－グ 第１０回大会 Ｋブロック ２０１６ | FM26: 表題１１ | FN26: スーパーリ－グ 第１０回大会 Ｋブロック ２０１６ | FO26: 表題１１ | FP26: スーパーリ－グ 第１０回大会 Ｋブロック ２０１６ | FQ26: 表題１１ | FR26: スーパーリ－グ 第１０回大会 Ｋブロック ２０１６ | FS26: 表題１１ | FT26: スーパーリ－グ 第１０回大会 Ｋブロック ２０１６ | FU26: 表題１１ | FV26: スーパーリ－グ 第１０回大会 Ｋブロック ２０１６ | FW26: 表題１１ | FX26: スーパーリ－グ 第１０回大会 Ｋブロック ２０１６ | FY26: 表題１１ | FZ26: スーパーリ－グ 第１０回大会 Ｋブロック ２０１６ | GA26: 表題１１ | GB26: スーパーリ－グ 第１０回大会 Ｋブロック ２０１６ | GC26: 表題１１ | GD26: スーパーリ－グ 第１０回大会 Ｋブロック ２０１６ | GE26: 表題１１ | GF26: スーパーリ－グ 第１０回大会 Ｋブロック ２０１６ | GG26: 表題１１ | GH26: スーパーリ－グ 第１０回大会 Ｋブロック ２０１６ | GI26: 表題１１ | GJ26: スーパーリ－グ 第１０回大会 Ｋブロック ２０１６ | GK26: 表題１１ | GL26: スーパーリ－グ 第１０回大会 Ｋブロック ２０１６ | GM26: 表題１１ | GN26: スーパーリ－グ 第１０回大会 Ｋブロック ２０１６ | GO26: 表題１１ | GP26: スーパーリ－グ 第１０回大会 Ｋブロック ２０１６ | GQ26: 表題１１ | GR26: スーパーリ－グ 第１０回大会 Ｋブロック ２０１６ | GS26: 表題１１ | GT26: スーパーリ－グ 第１０回大会 Ｋブロック ２０１６ | GU26: 表題１１ | GV26: スーパーリ－グ 第１０回大会 Ｋブロック ２０１６ | GW26: 表題１１ | GX26: スーパーリ－グ 第１０回大会 Ｋブロック ２０１６ | GY26: 表題１１ | GZ26: スーパーリ－グ 第１０回大会 Ｋブロック ２０１６ | HA26: 表題１１ | HB26: スーパーリ－グ 第１０回大会 Ｋブロック ２０１６ | HC26: 表題１１ | HD26: スーパーリ－グ 第１０回大会 Ｋブロック ２０１６ | HE26: 表題１１ | HF26: スーパーリ－グ 第１０回大会 Ｋブロック ２０１６ | HG26: 表題１１ | HH26: スーパーリ－グ 第１０回大会 Ｋブロック ２０１６ | HI26: 表題１１ | HJ26: スーパーリ－グ 第１０回大会 Ｋブロック ２０１６ | HK26: 表題１１ | HL26: スーパーリ－グ 第１０回大会 Ｋブロック ２０１６ | HM26: 表題１１ | HN26: スーパーリ－グ 第１０回大会 Ｋブロック ２０１６ | HO26: 表題１１ | HP26: スーパーリ－グ 第１０回大会 Ｋブロック ２０１６ | HQ26: 表題１１ | HR26: スーパーリ－グ 第１０回大会 Ｋブロック ２０１６ | HS26: 表題１１ | HT26: スーパーリ－グ 第１０回大会 Ｋブロック ２０１６ | HU26: 表題１１ | HV26: スーパーリ－グ 第１０回大会 Ｋブロック ２０１６ | HW26: 表題１１ | HX26: スーパーリ－グ 第１０回大会 Ｋブロック ２０１６ | HY26: 表題１１ | HZ26: スーパーリ－グ 第１０回大会 Ｋブロック ２０１６ | IA26: 表題１１ | IB26: スーパーリ－グ 第１０回大会 Ｋブロック ２０１６ | IC26: 表題１１ | ID26: スーパーリ－グ 第１０回大会 Ｋブロック ２０１６ | IE26: 表題１１ | IF26: スーパーリ－グ 第１０回大会 Ｋブロック ２０１６ | IG26: 表題１１ | IH26: スーパーリ－グ 第１０回大会 Ｋブロック ２０１６ | II26: 表題１１ | IJ26: スーパーリ－グ 第１０回大会 Ｋブロック ２０１６ | IK26: 表題１１ | IL26: スーパーリ－グ 第１０回大会 Ｋブロック ２０１６ | IM26: 表題１１ | IN26: スーパーリ－グ 第１０回大会 Ｋブロック ２０１６ | IO26: 表題１１ | IP26: スーパーリ－グ 第１０回大会 Ｋブロック ２０１６ | IQ26: 表題１１ | IR26: スーパーリ－グ 第１０回大会 Ｋブロック ２０１６ | IS26: 表題１１ | IT26: スーパーリ－グ 第１０回大会 Ｋブロック ２０１６ | IU26: 表題１１ | IV26: スーパーリ－グ 第１０回大会 Ｋブロック ２０１６
A28: 表題１０ | B28: スーパーリ－グ 第１４回大会 Ｌブロック ２０２０ | C28: 表題１０ | D28: スーパーリ－グ 第１０回大会 Ｊブロック ２０１６ | E28: 表題１０ | F28: スーパーリ－グ 第１０回大会 Ｊブロック ２０１６ | G28: 表題１０ | H28: スーパーリ－グ 第１０回大会 Ｊブロック ２０１６ | I28: 表題１０ | J28: スーパーリ－グ 第１０回大会 Ｊブロック ２０１６ | K28: 表題１０ | L28: スーパーリ－グ 第１０回大会 Ｊブロック ２０１６ | M28: 表題１０ | N28: スーパーリ－グ 第１０回大会 Ｊブロック ２０１６ | O28: 表題１０ | P28: スーパーリ－グ 第１０回大会 Ｊブロック ２０１６ | Q28: 表題１０ | R28: スーパーリ－グ 第１０回大会 Ｊブロック ２０１６ | S28: 表題１０ | T28: スーパーリ－グ 第１０回大会 Ｊブロック ２０１６ | U28: 表題１０ | V28: スーパーリ－グ 第１０回大会 Ｊブロック ２０１６ | W28: 表題１０ | X28: スーパーリ－グ 第１０回大会 Ｊブロック ２０１６ | Y28: 表題１０ | Z28: スーパーリ－グ 第１０回大会 Ｊブロック ２０１６ | AA28: 表題１０ | AB28: スーパーリ－グ 第１０回大会 Ｊブロック ２０１６ | AC28: 表題１０ | AD28: スーパーリ－グ 第１０回大会 Ｊブロック ２０１６ | AE28: 表題１０ | AF28: スーパーリ－グ 第１０回大会 Ｊブロック ２０１６ | AG28: 表題１０ | AH28: スーパーリ－グ 第１０回大会 Ｊブロック ２０１６ | AI28: 表題１０ | AJ28: スーパーリ－グ 第１０回大会 Ｊブロック ２０１６ | AK28: 表題１０ | AL28: スーパーリ－グ 第１０回大会 Ｊブロック ２０１６ | AM28: 表題１０ | AN28: スーパーリ－グ 第１０回大会 Ｊブロック ２０１６ | AO28: 表題１０ | AP28: スーパーリ－グ 第１０回大会 Ｊブロック ２０１６ | AQ28: 表題１０ | AR28: スーパーリ－グ 第１０回大会 Ｊブロック ２０１６ | AS28: 表題１０ | AT28: スーパーリ－グ 第１０回大会 Ｊブロック ２０１６ | AU28: 表題１０ | AV28: スーパーリ－グ 第１０回大会 Ｊブロック ２０１６ | AW28: 表題１０ | AX28: スーパーリ－グ 第１０回大会 Ｊブロック ２０１６ | AY28: 表題１０ | AZ28: スーパーリ－グ 第１０回大会 Ｊブロック ２０１６ | BA28: 表題１０ | BB28: スーパーリ－グ 第１０回大会 Ｊブロック ２０１６ | BC28: 表題１０ | BD28: スーパーリ－グ 第１０回大会 Ｊブロック ２０１６ | BE28: 表題１０ | BF28: スーパーリ－グ 第１０回大会 Ｊブロック ２０１６ | BG28: 表題１０ | BH28: スーパーリ－グ 第１０回大会 Ｊブロック ２０１６ | BI28: 表題１０ | BJ28: スーパーリ－グ 第１０回大会 Ｊブロック ２０１６ | BK28: 表題１０ | BL28: スーパーリ－グ 第１０回大会 Ｊブロック ２０１６ | BM28: 表題１０ | BN28: スーパーリ－グ 第１０回大会 Ｊブロック ２０１６ | BO28: 表題１０ | BP28: スーパーリ－グ 第１０回大会 Ｊブロック ２０１６ | BQ28: 表題１０ | BR28: スーパーリ－グ 第１０回大会 Ｊブロック ２０１６ | BS28: 表題１０ | BT28: スーパーリ－グ 第１０回大会 Ｊブロック ２０１６ | BU28: 表題１０ | BV28: スーパーリ－グ 第１０回大会 Ｊブロック ２０１６ | BW28: 表題１０ | BX28: スーパーリ－グ 第１０回大会 Ｊブロック ２０１６ | BY28: 表題１０ | BZ28: スーパーリ－グ 第１０回大会 Ｊブロック ２０１６ | CA28: 表題１０ | CB28: スーパーリ－グ 第１０回大会 Ｊブロック ２０１６ | CC28: 表題１０ | CD28: スーパーリ－グ 第１０回大会 Ｊブロック ２０１６ | CE28: 表題１０ | CF28: スーパーリ－グ 第１０回大会 Ｊブロック ２０１６ | CG28: 表題１０ | CH28: スーパーリ－グ 第１０回大会 Ｊブロック ２０１６ | CI28: 表題１０ | CJ28: スーパーリ－グ 第１０回大会 Ｊブロック ２０１６ | CK28: 表題１０ | CL28: スーパーリ－グ 第１０回大会 Ｊブロック ２０１６ | CM28: 表題１０ | CN28: スーパーリ－グ 第１０回大会 Ｊブロック ２０１６ | CO28: 表題１０ | CP28: スーパーリ－グ 第１０回大会 Ｊブロック ２０１６ | CQ28: 表題１０ | CR28: スーパーリ－グ 第１０回大会 Ｊブロック ２０１６ | CS28: 表題１０ | CT28: スーパーリ－グ 第１０回大会 Ｊブロック ２０１６ | CU28: 表題１０ | CV28: スーパーリ－グ 第１０回大会 Ｊブロック ２０１６ | CW28: 表題１０ | CX28: スーパーリ－グ 第１０回大会 Ｊブロック ２０１６ | CY28: 表題１０ | CZ28: スーパーリ－グ 第１０回大会 Ｊブロック ２０１６ | DA28: 表題１０ | DB28: スーパーリ－グ 第１０回大会 Ｊブロック ２０１６ | DC28: 表題１０ | DD28: スーパーリ－グ 第１０回大会 Ｊブロック ２０１６ | DE28: 表題１０ | DF28: スーパーリ－グ 第１０回大会 Ｊブロック ２０１６ | DG28: 表題１０ | DH28: スーパーリ－グ 第１０回大会 Ｊブロック ２０１６ | DI28: 表題１０ | DJ28: スーパーリ－グ 第１０回大会 Ｊブロック ２０１６ | DK28: 表題１０ | DL28: スーパーリ－グ 第１０回大会 Ｊブロック ２０１６ | DM28: 表題１０ | DN28: スーパーリ－グ 第１０回大会 Ｊブロック ２０１６ | DO28: 表題１０ | DP28: スーパーリ－グ 第１０回大会 Ｊブロック ２０１６ | DQ28: 表題１０ | DR28: スーパーリ－グ 第１０回大会 Ｊブロック ２０１６ | DS28: 表題１０ | DT28: スーパーリ－グ 第１０回大会 Ｊブロック ２０１６ | DU28: 表題１０ | DV28: スーパーリ－グ 第１０回大会 Ｊブロック ２０１６ | DW28: 表題１０ | DX28: スーパーリ－グ 第１０回大会 Ｊブロック ２０１６ | DY28: 表題１０ | DZ28: スーパーリ－グ 第１０回大会 Ｊブロック ２０１６ | EA28: 表題１０ | EB28: スーパーリ－グ 第１０回大会 Ｊブロック ２０１６ | EC28: 表題１０ | ED28: スーパーリ－グ 第１０回大会 Ｊブロック ２０１６ | EE28: 表題１０ | EF28: スーパーリ－グ 第１０回大会 Ｊブロック ２０１６ | EG28: 表題１０ | EH28: スーパーリ－グ 第１０回大会 Ｊブロック ２０１６ | EI28: 表題１０ | EJ28: スーパーリ－グ 第１０回大会 Ｊブロック ２０１６ | EK28: 表題１０ | EL28: スーパーリ－グ 第１０回大会 Ｊブロック ２０１６ | EM28: 表題１０ | EN28: スーパーリ－グ 第１０回大会 Ｊブロック ２０１６ | EO28: 表題１０ | EP28: スーパーリ－グ 第１０回大会 Ｊブロック ２０１６ | EQ28: 表題１０ | ER28: スーパーリ－グ 第１０回大会 Ｊブロック ２０１６ | ES28: 表題１０ | ET28: スーパーリ－グ 第１０回大会 Ｊブロック ２０１６ | EU28: 表題１０ | EV28: スーパーリ－グ 第１０回大会 Ｊブロック ２０１６ | EW28: 表題１０ | EX28: スーパーリ－グ 第１０回大会 Ｊブロック ２０１６ | EY28: 表題１０ | EZ28: スーパーリ－グ 第１０回大会 Ｊブロック ２０１６ | FA28: 表題１０ | FB28: スーパーリ－グ 第１０回大会 Ｊブロック ２０１６ | FC28: 表題１０ | FD28: スーパーリ－グ 第１０回大会 Ｊブロック ２０１６ | FE28: 表題１０ | FF28: スーパーリ－グ 第１０回大会 Ｊブロック ２０１６ | FG28: 表題１０ | FH28: スーパーリ－グ 第１０回大会 Ｊブロック ２０１６ | FI28: 表題１０ | FJ28: スーパーリ－グ 第１０回大会 Ｊブロック ２０１６ | FK28: 表題１０ | FL28: スーパーリ－グ 第１０回大会 Ｊブロック ２０１６ | FM28: 表題１０ | FN28: スーパーリ－グ 第１０回大会 Ｊブロック ２０１６ | FO28: 表題１０ | FP28: スーパーリ－グ 第１０回大会 Ｊブロック ２０１６ | FQ28: 表題１０ | FR28: スーパーリ－グ 第１０回大会 Ｊブロック ２０１６ | FS28: 表題１０ | FT28: スーパーリ－グ 第１０回大会 Ｊブロック ２０１６ | FU28: 表題１０ | FV28: スーパーリ－グ 第１０回大会 Ｊブロック ２０１６ | FW28: 表題１０ | FX28: スーパーリ－グ 第１０回大会 Ｊブロック ２０１６ | FY28: 表題１０ | FZ28: スーパーリ－グ 第１０回大会 Ｊブロック ２０１６ | GA28: 表題１０ | GB28: スーパーリ－グ 第１０回大会 Ｊブロック ２０１６ | GC28: 表題１０ | GD28: スーパーリ－グ 第１０回大会 Ｊブロック ２０１６ | GE28: 表題１０ | GF28: スーパーリ－グ 第１０回大会 Ｊブロック ２０１６ | GG28: 表題１０ | GH28: スーパーリ－グ 第１０回大会 Ｊブロック ２０１６ | GI28: 表題１０ | GJ28: スーパーリ－グ 第１０回大会 Ｊブロック ２０１６ | GK28: 表題１０ | GL28: スーパーリ－グ 第１０回大会 Ｊブロック ２０１６ | GM28: 表題１０ | GN28: スーパーリ－グ 第１０回大会 Ｊブロック ２０１６ | GO28: 表題１０ | GP28: スーパーリ－グ 第１０回大会 Ｊブロック ２０１６ | GQ28: 表題１０ | GR28: スーパーリ－グ 第１０回大会 Ｊブロック ２０１６ | GS28: 表題１０ | GT28: スーパーリ－グ 第１０回大会 Ｊブロック ２０１６ | GU28: 表題１０ | GV28: スーパーリ－グ 第１０回大会 Ｊブロック ２０１６ | GW28: 表題１０ | GX28: スーパーリ－グ 第１０回大会 Ｊブロック ２０１６ | GY28: 表題１０ | GZ28: スーパーリ－グ 第１０回大会 Ｊブロック ２０１６ | HA28: 表題１０ | HB28: スーパーリ－グ 第１０回大会 Ｊブロック ２０１６ | HC28: 表題１０ | HD28: スーパーリ－グ 第１０回大会 Ｊブロック ２０１６ | HE28: 表題１０ | HF28: スーパーリ－グ 第１０回大会 Ｊブロック ２０１６ | HG28: 表題１０ | HH28: スーパーリ－グ 第１０回大会 Ｊブロック ２０１６ | HI28: 表題１０ | HJ28: スーパーリ－グ 第１０回大会 Ｊブロック ２０１６ | HK28: 表題１０ | HL28: スーパーリ－グ 第１０回大会 Ｊブロック ２０１６ | HM28: 表題１０ | HN28: スーパーリ－グ 第１０回大会 Ｊブロック ２０１６ | HO28: 表題１０ | HP28: スーパーリ－グ 第１０回大会 Ｊブロック ２０１６ | HQ28: 表題１０ | HR28: スーパーリ－グ 第１０回大会 Ｊブロック ２０１６ | HS28: 表題１０ | HT28: スーパーリ－グ 第１０回大会 Ｊブロック ２０１６ | HU28: 表題１０ | HV28: スーパーリ－グ 第１０回大会 Ｊブロック ２０１６ | HW28: 表題１０ | HX28: スーパーリ－グ 第１０回大会 Ｊブロック ２０１６ | HY28: 表題１０ | HZ28: スーパーリ－グ 第１０回大会 Ｊブロック ２０１６ | IA28: 表題１０ | IB28: スーパーリ－グ 第１０回大会 Ｊブロック ２０１６ | IC28: 表題１０ | ID28: スーパーリ－グ 第１０回大会 Ｊブロック ２０１６ | IE28: 表題１０ | IF28: スーパーリ－グ 第１０回大会 Ｊブロック ２０１６ | IG28: 表題１０ | IH28: スーパーリ－グ 第１０回大会 Ｊブロック ２０１６ | II28: 表題１０ | IJ28: スーパーリ－グ 第１０回大会 Ｊブロック ２０１６ | IK28: 表題１０ | IL28: スーパーリ－グ 第１０回大会 Ｊブロック ２０１６ | IM28: 表題１０ | IN28: スーパーリ－グ 第１０回大会 Ｊブロック ２０１６ | IO28: 表題１０ | IP28: スーパーリ－グ 第１０回大会 Ｊブロック ２０１６ | IQ28: 表題１０ | IR28: スーパーリ－グ 第１０回大会 Ｊブロック ２０１６ | IS28: 表題１０ | IT28: スーパーリ－グ 第１０回大会 Ｊブロック ２０１６ | IU28: 表題１０ | IV28: スーパーリ－グ 第１０回大会 Ｊブロック ２０１６
A30: 表題１１ | B30: スーパーリ－グ 第１４回大会 Ｍブロック ２０２０ | C30: 表題１１ | D30: スーパーリ－グ 第１０回大会 Ｋブロック ２０１６ | E30: 表題１１ | F30: スーパーリ－グ 第１０回大会 Ｋブロック ２０１６ | G30: 表題１１ | H30: スーパーリ－グ 第１０回大会 Ｋブロック ２０１６ | I30: 表題１１ | J30: スーパーリ－グ 第１０回大会 Ｋブロック ２０１６ | K30: 表題１１ | L30: スーパーリ－グ 第１０回大会 Ｋブロック ２０１６ | M30: 表題１１ | N30: スーパーリ－グ 第１０回大会 Ｋブロック ２０１６ | O30: 表題１１ | P30: スーパーリ－グ 第１０回大会 Ｋブロック ２０１６ | Q30: 表題１１ | R30: スーパーリ－グ 第１０回大会 Ｋブロック ２０１６ | S30: 表題１１ | T30: スーパーリ－グ 第１０回大会 Ｋブロック ２０１６ | U30: 表題１１ | V30: スーパーリ－グ 第１０回大会 Ｋブロック ２０１６ | W30: 表題１１ | X30: スーパーリ－グ 第１０回大会 Ｋブロック ２０１６ | Y30: 表題１１ | Z30: スーパーリ－グ 第１０回大会 Ｋブロック ２０１６ | AA30: 表題１１ | AB30: スーパーリ－グ 第１０回大会 Ｋブロック ２０１６ | AC30: 表題１１ | AD30: スーパーリ－グ 第１０回大会 Ｋブロック ２０１６ | AE30: 表題１１ | AF30: スーパーリ－グ 第１０回大会 Ｋブロック ２０１６ | AG30: 表題１１ | AH30: スーパーリ－グ 第１０回大会 Ｋブロック ２０１６ | AI30: 表題１１ | AJ30: スーパーリ－グ 第１０回大会 Ｋブロック ２０１６ | AK30: 表題１１ | AL30: スーパーリ－グ 第１０回大会 Ｋブロック ２０１６ | AM30: 表題１１ | AN30: スーパーリ－グ 第１０回大会 Ｋブロック ２０１６ | AO30: 表題１１ | AP30: スーパーリ－グ 第１０回大会 Ｋブロック ２０１６ | AQ30: 表題１１ | AR30: スーパーリ－グ 第１０回大会 Ｋブロック ２０１６ | AS30: 表題１１ | AT30: スーパーリ－グ 第１０回大会 Ｋブロック ２０１６ | AU30: 表題１１ | AV30: スーパーリ－グ 第１０回大会 Ｋブロック ２０１６ | AW30: 表題１１ | AX30: スーパーリ－グ 第１０回大会 Ｋブロック ２０１６ | AY30: 表題１１ | AZ30: スーパーリ－グ 第１０回大会 Ｋブロック ２０１６ | BA30: 表題１１ | BB30: スーパーリ－グ 第１０回大会 Ｋブロック ２０１６ | BC30: 表題１１ | BD30: スーパーリ－グ 第１０回大会 Ｋブロック ２０１６ | BE30: 表題１１ | BF30: スーパーリ－グ 第１０回大会 Ｋブロック ２０１６ | BG30: 表題１１ | BH30: スーパーリ－グ 第１０回大会 Ｋブロック ２０１６ | BI30: 表題１１ | BJ30: スーパーリ－グ 第１０回大会 Ｋブロック ２０１６ | BK30: 表題１１ | BL30: スーパーリ－グ 第１０回大会 Ｋブロック ２０１６ | BM30: 表題１１ | BN30: スーパーリ－グ 第１０回大会 Ｋブロック ２０１６ | BO30: 表題１１ | BP30: スーパーリ－グ 第１０回大会 Ｋブロック ２０１６ | BQ30: 表題１１ | BR30: スーパーリ－グ 第１０回大会 Ｋブロック ２０１６ | BS30: 表題１１ | BT30: スーパーリ－グ 第１０回大会 Ｋブロック ２０１６ | BU30: 表題１１ | BV30: スーパーリ－グ 第１０回大会 Ｋブロック ２０１６ | BW30: 表題１１ | BX30: スーパーリ－グ 第１０回大会 Ｋブロック ２０１６ | BY30: 表題１１ | BZ30: スーパーリ－グ 第１０回大会 Ｋブロック ２０１６ | CA30: 表題１１ | CB30: スーパーリ－グ 第１０回大会 Ｋブロック ２０１６ | CC30: 表題１１ | CD30: スーパーリ－グ 第１０回大会 Ｋブロック ２０１６ | CE30: 表題１１ | CF30: スーパーリ－グ 第１０回大会 Ｋブロック ２０１６ | CG30: 表題１１ | CH30: スーパーリ－グ 第１０回大会 Ｋブロック ２０１６ | CI30: 表題１１ | CJ30: スーパーリ－グ 第１０回大会 Ｋブロック ２０１６ | CK30: 表題１１ | CL30: スーパーリ－グ 第１０回大会 Ｋブロック ２０１６ | CM30: 表題１１ | CN30: スーパーリ－グ 第１０回大会 Ｋブロック ２０１６ | CO30: 表題１１ | CP30: スーパーリ－グ 第１０回大会 Ｋブロック ２０１６ | CQ30: 表題１１ | CR30: スーパーリ－グ 第１０回大会 Ｋブロック ２０１６ | CS30: 表題１１ | CT30: スーパーリ－グ 第１０回大会 Ｋブロック ２０１６ | CU30: 表題１１ | CV30: スーパーリ－グ 第１０回大会 Ｋブロック ２０１６ | CW30: 表題１１ | CX30: スーパーリ－グ 第１０回大会 Ｋブロック ２０１６ | CY30: 表題１１ | CZ30: スーパーリ－グ 第１０回大会 Ｋブロック ２０１６ | DA30: 表題１１ | DB30: スーパーリ－グ 第１０回大会 Ｋブロック ２０１６ | DC30: 表題１１ | DD30: スーパーリ－グ 第１０回大会 Ｋブロック ２０１６ | DE30: 表題１１ | DF30: スーパーリ－グ 第１０回大会 Ｋブロック ２０１６ | DG30: 表題１１ | DH30: スーパーリ－グ 第１０回大会 Ｋブロック ２０１６ | DI30: 表題１１ | DJ30: スーパーリ－グ 第１０回大会 Ｋブロック ２０１６ | DK30: 表題１１ | DL30: スーパーリ－グ 第１０回大会 Ｋブロック ２０１６ | DM30: 表題１１ | DN30: スーパーリ－グ 第１０回大会 Ｋブロック ２０１６ | DO30: 表題１１ | DP30: スーパーリ－グ 第１０回大会 Ｋブロック ２０１６ | DQ30: 表題１１ | DR30: スーパーリ－グ 第１０回大会 Ｋブロック ２０１６ | DS30: 表題１１ | DT30: スーパーリ－グ 第１０回大会 Ｋブロック ２０１６ | DU30: 表題１１ | DV30: スーパーリ－グ 第１０回大会 Ｋブロック ２０１６ | DW30: 表題１１ | DX30: スーパーリ－グ 第１０回大会 Ｋブロック ２０１６ | DY30: 表題１１ | DZ30: スーパーリ－グ 第１０回大会 Ｋブロック ２０１６ | EA30: 表題１１ | EB30: スーパーリ－グ 第１０回大会 Ｋブロック ２０１６ | EC30: 表題１１ | ED30: スーパーリ－グ 第１０回大会 Ｋブロック ２０１６ | EE30: 表題１１ | EF30: スーパーリ－グ 第１０回大会 Ｋブロック ２０１６ | EG30: 表題１１ | EH30: スーパーリ－グ 第１０回大会 Ｋブロック ２０１６ | EI30: 表題１１ | EJ30: スーパーリ－グ 第１０回大会 Ｋブロック ２０１６ | EK30: 表題１１ | EL30: スーパーリ－グ 第１０回大会 Ｋブロック ２０１６ | EM30: 表題１１ | EN30: スーパーリ－グ 第１０回大会 Ｋブロック ２０１６ | EO30: 表題１１ | EP30: スーパーリ－グ 第１０回大会 Ｋブロック ２０１６ | EQ30: 表題１１ | ER30: スーパーリ－グ 第１０回大会 Ｋブロック ２０１６ | ES30: 表題１１ | ET30: スーパーリ－グ 第１０回大会 Ｋブロック ２０１６ | EU30: 表題１１ | EV30: スーパーリ－グ 第１０回大会 Ｋブロック ２０１６ | EW30: 表題１１ | EX30: スーパーリ－グ 第１０回大会 Ｋブロック ２０１６ | EY30: 表題１１ | EZ30: スーパーリ－グ 第１０回大会 Ｋブロック ２０１６ | FA30: 表題１１ | FB30: スーパーリ－グ 第１０回大会 Ｋブロック ２０１６ | FC30: 表題１１ | FD30: スーパーリ－グ 第１０回大会 Ｋブロック ２０１６ | FE30: 表題１１ | FF30: スーパーリ－グ 第１０回大会 Ｋブロック ２０１６ | FG30: 表題１１ | FH30: スーパーリ－グ 第１０回大会 Ｋブロック ２０１６ | FI30: 表題１１ | FJ30: スーパーリ－グ 第１０回大会 Ｋブロック ２０１６ | FK30: 表題１１ | FL30: スーパーリ－グ 第１０回大会 Ｋブロック ２０１６ | FM30: 表題１１ | FN30: スーパーリ－グ 第１０回大会 Ｋブロック ２０１６ | FO30: 表題１１ | FP30: スーパーリ－グ 第１０回大会 Ｋブロック ２０１６ | FQ30: 表題１１ | FR30: スーパーリ－グ 第１０回大会 Ｋブロック ２０１６ | FS30: 表題１１ | FT30: スーパーリ－グ 第１０回大会 Ｋブロック ２０１６ | FU30: 表題１１ | FV30: スーパーリ－グ 第１０回大会 Ｋブロック ２０１６ | FW30: 表題１１ | FX30: スーパーリ－グ 第１０回大会 Ｋブロック ２０１６ | FY30: 表題１１ | FZ30: スーパーリ－グ 第１０回大会 Ｋブロック ２０１６ | GA30: 表題１１ | GB30: スーパーリ－グ 第１０回大会 Ｋブロック ２０１６ | GC30: 表題１１ | GD30: スーパーリ－グ 第１０回大会 Ｋブロック ２０１６ | GE30: 表題１１ | GF30: スーパーリ－グ 第１０回大会 Ｋブロック ２０１６ | GG30: 表題１１ | GH30: スーパーリ－グ 第１０回大会 Ｋブロック ２０１６ | GI30: 表題１１ | GJ30: スーパーリ－グ 第１０回大会 Ｋブロック ２０１６ | GK30: 表題１１ | GL30: スーパーリ－グ 第１０回大会 Ｋブロック ２０１６ | GM30: 表題１１ | GN30: スーパーリ－グ 第１０回大会 Ｋブロック ２０１６ | GO30: 表題１１ | GP30: スーパーリ－グ 第１０回大会 Ｋブロック ２０１６ | GQ30: 表題１１ | GR30: スーパーリ－グ 第１０回大会 Ｋブロック ２０１６ | GS30: 表題１１ | GT30: スーパーリ－グ 第１０回大会 Ｋブロック ２０１６ | GU30: 表題１１ | GV30: スーパーリ－グ 第１０回大会 Ｋブロック ２０１６ | GW30: 表題１１ | GX30: スーパーリ－グ 第１０回大会 Ｋブロック ２０１６ | GY30: 表題１１ | GZ30: スーパーリ－グ 第１０回大会 Ｋブロック ２０１６ | HA30: 表題１１ | HB30: スーパーリ－グ 第１０回大会 Ｋブロック ２０１６ | HC30: 表題１１ | HD30: スーパーリ－グ 第１０回大会 Ｋブロック ２０１６ | HE30: 表題１１ | HF30: スーパーリ－グ 第１０回大会 Ｋブロック ２０１６ | HG30: 表題１１ | HH30: スーパーリ－グ 第１０回大会 Ｋブロック ２０１６ | HI30: 表題１１ | HJ30: スーパーリ－グ 第１０回大会 Ｋブロック ２０１６ | HK30: 表題１１ | HL30: スーパーリ－グ 第１０回大会 Ｋブロック ２０１６ | HM30: 表題１１ | HN30: スーパーリ－グ 第１０回大会 Ｋブロック ２０１６ | HO30: 表題１１ | HP30: スーパーリ－グ 第１０回大会 Ｋブロック ２０１６ | HQ30: 表題１１ | HR30: スーパーリ－グ 第１０回大会 Ｋブロック ２０１６ | HS30: 表題１１ | HT30: スーパーリ－グ 第１０回大会 Ｋブロック ２０１６ | HU30: 表題１１ | HV30: スーパーリ－グ 第１０回大会 Ｋブロック ２０１６ | HW30: 表題１１ | HX30: スーパーリ－グ 第１０回大会 Ｋブロック ２０１６ | HY30: 表題１１ | HZ30: スーパーリ－グ 第１０回大会 Ｋブロック ２０１６ | IA30: 表題１１ | IB30: スーパーリ－グ 第１０回大会 Ｋブロック ２０１６ | IC30: 表題１１ | ID30: スーパーリ－グ 第１０回大会 Ｋブロック ２０１６ | IE30: 表題１１ | IF30: スーパーリ－グ 第１０回大会 Ｋブロック ２０１６ | IG30: 表題１１ | IH30: スーパーリ－グ 第１０回大会 Ｋブロック ２０１６ | II30: 表題１１ | IJ30: スーパーリ－グ 第１０回大会 Ｋブロック ２０１６ | IK30: 表題１１ | IL30: スーパーリ－グ 第１０回大会 Ｋブロック ２０１６ | IM30: 表題１１ | IN30: スーパーリ－グ 第１０回大会 Ｋブロック ２０１６ | IO30: 表題１１ | IP30: スーパーリ－グ 第１０回大会 Ｋブロック ２０１６ | IQ30: 表題１１ | IR30: スーパーリ－グ 第１０回大会 Ｋブロック ２０１６ | IS30: 表題１１ | IT30: スーパーリ－グ 第１０回大会 Ｋブロック ２０１６ | IU30: 表題１１ | IV30: スーパーリ－グ 第１０回大会 Ｋブロック ２０１６
A32: TM表題 | B32: 第１３回 スーパーリ－グ決勝トーナメント表 | C32: TM表題 | D32: 第１０回 スーパーリ－グ決勝トーナメント表 | E32: TM表題 | F32: 第１０回 スーパーリ－グ決勝トーナメント表 | G32: TM表題 | H32: 第１０回 スーパーリ－グ決勝トーナメント表 | I32: TM表題 | J32: 第１０回 スーパーリ－グ決勝トーナメント表 | K32: TM表題 | L32: 第１０回 スーパーリ－グ決勝トーナメント表 | M32: TM表題 | N32: 第１０回 スーパーリ－グ決勝トーナメント表 | O32: TM表題 | P32: 第１０回 スーパーリ－グ決勝トーナメント表 | Q32: TM表題 | R32: 第１０回 スーパーリ－グ決勝トーナメント表 | S32: TM表題 | T32: 第１０回 スーパーリ－グ決勝トーナメント表 | U32: TM表題 | V32: 第１０回 スーパーリ－グ決勝トーナメント表 | W32: TM表題 | X32: 第１０回 スーパーリ－グ決勝トーナメント表 | Y32: TM表題 | Z32: 第１０回 スーパーリ－グ決勝トーナメント表 | AA32: TM表題 | AB32: 第１０回 スーパーリ－グ決勝トーナメント表 | AC32: TM表題 | AD32: 第１０回 スーパーリ－グ決勝トーナメント表 | AE32: TM表題 | AF32: 第１０回 スーパーリ－グ決勝トーナメント表 | AG32: TM表題 | AH32: 第１０回 スーパーリ－グ決勝トーナメント表 | AI32: TM表題 | AJ32: 第１０回 スーパーリ－グ決勝トーナメント表 | AK32: TM表題 | AL32: 第１０回 スーパーリ－グ決勝トーナメント表 | AM32: TM表題 | AN32: 第１０回 スーパーリ－グ決勝トーナメント表 | AO32: TM表題 | AP32: 第１０回 スーパーリ－グ決勝トーナメント表 | AQ32: TM表題 | AR32: 第１０回 スーパーリ－グ決勝トーナメント表 | AS32: TM表題 | AT32: 第１０回 スーパーリ－グ決勝トーナメント表 | AU32: TM表題 | AV32: 第１０回 スーパーリ－グ決勝トーナメント表 | AW32: TM表題 | AX32: 第１０回 スーパーリ－グ決勝トーナメント表 | AY32: TM表題 | AZ32: 第１０回 スーパーリ－グ決勝トーナメント表 | BA32: TM表題 | BB32: 第１０回 スーパーリ－グ決勝トーナメント表 | BC32: TM表題 | BD32: 第１０回 スーパーリ－グ決勝トーナメント表 | BE32: TM表題 | BF32: 第１０回 スーパーリ－グ決勝トーナメント表 | BG32: TM表題 | BH32: 第１０回 スーパーリ－グ決勝トーナメント表 | BI32: TM表題 | BJ32: 第１０回 スーパーリ－グ決勝トーナメント表 | BK32: TM表題 | BL32: 第１０回 スーパーリ－グ決勝トーナメント表 | BM32: TM表題 | BN32: 第１０回 スーパーリ－グ決勝トーナメント表 | BO32: TM表題 | BP32: 第１０回 スーパーリ－グ決勝トーナメント表 | BQ32: TM表題 | BR32: 第１０回 スーパーリ－グ決勝トーナメント表 | BS32: TM表題 | BT32: 第１０回 スーパーリ－グ決勝トーナメント表 | BU32: TM表題 | BV32: 第１０回 スーパーリ－グ決勝トーナメント表 | BW32: TM表題 | BX32: 第１０回 スーパーリ－グ決勝トーナメント表 | BY32: TM表題 | BZ32: 第１０回 スーパーリ－グ決勝トーナメント表 | CA32: TM表題 | CB32: 第１０回 スーパーリ－グ決勝トーナメント表 | CC32: TM表題 | CD32: 第１０回 スーパーリ－グ決勝トーナメント表 | CE32: TM表題 | CF32: 第１０回 スーパーリ－グ決勝トーナメント表 | CG32: TM表題 | CH32: 第１０回 スーパーリ－グ決勝トーナメント表 | CI32: TM表題 | CJ32: 第１０回 スーパーリ－グ決勝トーナメント表 | CK32: TM表題 | CL32: 第１０回 スーパーリ－グ決勝トーナメント表 | CM32: TM表題 | CN32: 第１０回 スーパーリ－グ決勝トーナメント表 | CO32: TM表題 | CP32: 第１０回 スーパーリ－グ決勝トーナメント表 | CQ32: TM表題 | CR32: 第１０回 スーパーリ－グ決勝トーナメント表 | CS32: TM表題 | CT32: 第１０回 スーパーリ－グ決勝トーナメント表 | CU32: TM表題 | CV32: 第１０回 スーパーリ－グ決勝トーナメント表 | CW32: TM表題 | CX32: 第１０回 スーパーリ－グ決勝トーナメント表 | CY32: TM表題 | CZ32: 第１０回 スーパーリ－グ決勝トーナメント表 | DA32: TM表題 | DB32: 第１０回 スーパーリ－グ決勝トーナメント表 | DC32: TM表題 | DD32: 第１０回 スーパーリ－グ決勝トーナメント表 | DE32: TM表題 | DF32: 第１０回 スーパーリ－グ決勝トーナメント表 | DG32: TM表題 | DH32: 第１０回 スーパーリ－グ決勝トーナメント表 | DI32: TM表題 | DJ32: 第１０回 スーパーリ－グ決勝トーナメント表 | DK32: TM表題 | DL32: 第１０回 スーパーリ－グ決勝トーナメント表 | DM32: TM表題 | DN32: 第１０回 スーパーリ－グ決勝トーナメント表 | DO32: TM表題 | DP32: 第１０回 スーパーリ－グ決勝トーナメント表 | DQ32: TM表題 | DR32: 第１０回 スーパーリ－グ決勝トーナメント表 | DS32: TM表題 | DT32: 第１０回 スーパーリ－グ決勝トーナメント表 | DU32: TM表題 | DV32: 第１０回 スーパーリ－グ決勝トーナメント表 | DW32: TM表題 | DX32: 第１０回 スーパーリ－グ決勝トーナメント表 | DY32: TM表題 | DZ32: 第１０回 スーパーリ－グ決勝トーナメント表 | EA32: TM表題 | EB32: 第１０回 スーパーリ－グ決勝トーナメント表 | EC32: TM表題 | ED32: 第１０回 スーパーリ－グ決勝トーナメント表 | EE32: TM表題 | EF32: 第１０回 スーパーリ－グ決勝トーナメント表 | EG32: TM表題 | EH32: 第１０回 スーパーリ－グ決勝トーナメント表 | EI32: TM表題 | EJ32: 第１０回 スーパーリ－グ決勝トーナメント表 | EK32: TM表題 | EL32: 第１０回 スーパーリ－グ決勝トーナメント表 | EM32: TM表題 | EN32: 第１０回 スーパーリ－グ決勝トーナメント表 | EO32: TM表題 | EP32: 第１０回 スーパーリ－グ決勝トーナメント表 | EQ32: TM表題 | ER32: 第１０回 スーパーリ－グ決勝トーナメント表 | ES32: TM表題 | ET32: 第１０回 スーパーリ－グ決勝トーナメント表 | EU32: TM表題 | EV32: 第１０回 スーパーリ－グ決勝トーナメント表 | EW32: TM表題 | EX32: 第１０回 スーパーリ－グ決勝トーナメント表 | EY32: TM表題 | EZ32: 第１０回 スーパーリ－グ決勝トーナメント表 | FA32: TM表題 | FB32: 第１０回 スーパーリ－グ決勝トーナメント表 | FC32: TM表題 | FD32: 第１０回 スーパーリ－グ決勝トーナメント表 | FE32: TM表題 | FF32: 第１０回 スーパーリ－グ決勝トーナメント表 | FG32: TM表題 | FH32: 第１０回 スーパーリ－グ決勝トーナメント表 | FI32: TM表題 | FJ32: 第１０回 スーパーリ－グ決勝トーナメント表 | FK32: TM表題 | FL32: 第１０回 スーパーリ－グ決勝トーナメント表 | FM32: TM表題 | FN32: 第１０回 スーパーリ－グ決勝トーナメント表 | FO32: TM表題 | FP32: 第１０回 スーパーリ－グ決勝トーナメント表 | FQ32: TM表題 | FR32: 第１０回 スーパーリ－グ決勝トーナメント表 | FS32: TM表題 | FT32: 第１０回 スーパーリ－グ決勝トーナメント表 | FU32: TM表題 | FV32: 第１０回 スーパーリ－グ決勝トーナメント表 | FW32: TM表題 | FX32: 第１０回 スーパーリ－グ決勝トーナメント表 | FY32: TM表題 | FZ32: 第１０回 スーパーリ－グ決勝トーナメント表 | GA32: TM表題 | GB32: 第１０回 スーパーリ－グ決勝トーナメント表 | GC32: TM表題 | GD32: 第１０回 スーパーリ－グ決勝トーナメント表 | GE32: TM表題 | GF32: 第１０回 スーパーリ－グ決勝トーナメント表 | GG32: TM表題 | GH32: 第１０回 スーパーリ－グ決勝トーナメント表 | GI32: TM表題 | GJ32: 第１０回 スーパーリ－グ決勝トーナメント表 | GK32: TM表題 | GL32: 第１０回 スーパーリ－グ決勝トーナメント表 | GM32: TM表題 | GN32: 第１０回 スーパーリ－グ決勝トーナメント表 | GO32: TM表題 | GP32: 第１０回 スーパーリ－グ決勝トーナメント表 | GQ32: TM表題 | GR32: 第１０回 スーパーリ－グ決勝トーナメント表 | GS32: TM表題 | GT32: 第１０回 スーパーリ－グ決勝トーナメント表 | GU32: TM表題 | GV32: 第１０回 スーパーリ－グ決勝トーナメント表 | GW32: TM表題 | GX32: 第１０回 スーパーリ－グ決勝トーナメント表 | GY32: TM表題 | GZ32: 第１０回 スーパーリ－グ決勝トーナメント表 | HA32: TM表題 | HB32: 第１０回 スーパーリ－グ決勝トーナメント表 | HC32: TM表題 | HD32: 第１０回 スーパーリ－グ決勝トーナメント表 | HE32: TM表題 | HF32: 第１０回 スーパーリ－グ決勝トーナメント表 | HG32: TM表題 | HH32: 第１０回 スーパーリ－グ決勝トーナメント表 | HI32: TM表題 | HJ32: 第１０回 スーパーリ－グ決勝トーナメント表 | HK32: TM表題 | HL32: 第１０回 スーパーリ－グ決勝トーナメント表 | HM32: TM表題 | HN32: 第１０回 スーパーリ－グ決勝トーナメント表 | HO32: TM表題 | HP32: 第１０回 スーパーリ－グ決勝トーナメント表 | HQ32: TM表題 | HR32: 第１０回 スーパーリ－グ決勝トーナメント表 | HS32: TM表題 | HT32: 第１０回 スーパーリ－グ決勝トーナメント表 | HU32: TM表題 | HV32: 第１０回 スーパーリ－グ決勝トーナメント表 | HW32: TM表題 | HX32: 第１０回 スーパーリ－グ決勝トーナメント表 | HY32: TM表題 | HZ32: 第１０回 スーパーリ－グ決勝トーナメント表 | IA32: TM表題 | IB32: 第１０回 スーパーリ－グ決勝トーナメント表 | IC32: TM表題 | ID32: 第１０回 スーパーリ－グ決勝トーナメント表 | IE32: TM表題 | IF32: 第１０回 スーパーリ－グ決勝トーナメント表 | IG32: TM表題 | IH32: 第１０回 スーパーリ－グ決勝トーナメント表 | II32: TM表題 | IJ32: 第１０回 スーパーリ－グ決勝トーナメント表 | IK32: TM表題 | IL32: 第１０回 スーパーリ－グ決勝トーナメント表 | IM32: TM表題 | IN32: 第１０回 スーパーリ－グ決勝トーナメント表 | IO32: TM表題 | IP32: 第１０回 スーパーリ－グ決勝トーナメント表 | IQ32: TM表題 | IR32: 第１０回 スーパーリ－グ決勝トーナメント表 | IS32: TM表題 | IT32: 第１０回 スーパーリ－グ決勝トーナメント表 | IU32: TM表題 | IV32: 第１０回 スーパーリ－グ決勝トーナメント表
A34: TM表題 | B34: 第１３回 チャレンジトーナメント表

Sheet データ２
B1: Aブロック長
A2: 1 | B2: 葛飾アニマルズ | D2: 葛飾アニマルズ | E2: A | F2: 葛飾区
A4: 2 | B4: 桃五少年野球クラブ | D4: カバラホークス | E4: B | F4: 足立区
A6: 3 | B6: 山野Ｒイーグルス | D6: 八潮ドリームキッズ | E6: C | F6: 品川区
A8: 4 | B8: 港南メッツ | D8: ゼットタイガー | E8: D | F8: 大田区
A10: 5 | B10: ゴッドイーグルス | D10: レッドサンズ | E10: E | F10: 文京区
A12: 6 | B12: 南篠崎ランチャーズ | E12: F | F12: 北区
A14: 7 | B14: 西千タイガース | D14: 高島エイト | E14: G | F14: 板橋区
A16: 8 | B16: 堤若草 | D16: 有馬スワローズ | E16: H | F16: 中央区
A18: 9 | B18: 晴海アポローズ | E18: I | F18: 江戸川区
A20: 10 | B20: カバラホークス | D20: 西田野球クラブ | E20: J | F20: 杉並区
A22: 11 | B22: 潮見パワーズ | D22: 南千住ペガサス | E22: K | F22: 荒川区
A24: 12 | B24: 目黒ペガサス | E24: L | F24: 江東区城
D25: ●AF以外を入れる
A26: 13 | B26: 高輪台ファイターズ | F26: 葛飾区
A28: 14 | B28: 礫川 | F28: 葛飾区
A30: 15 | B30: 金町ジャイアンツ | F30: 葛飾区
A32: 16 | B32: 馬込ジャガーズ | F32: 北区
A34: 17 | B34: 淀四ライオンズ | F34: 北区
A36: 18 | B36: 上篠崎ムスタングクラブ | F36: 北区
D37: ◎AFも入れる
A38: 19 | B38: 八潮ドリームキッズ | F38: 渋谷区
A40: 20 | B40: オール麻布 | F40: 渋谷区
A42: 21 | B42: 出雲ライオンズ | F42: 千代田区
A44: 22 | B44: マッハブレーブス | F44: 千代田区
A46: 23 | B46: フェニックス | F46: 墨田区
A48: 24 | B48: 江東ジョーズ | F48: 墨田区
D49: ●B以外を入れる
A50: 25 | B50: 目黒インパルス | F50: 足立区
A52: 26 | B52: しらさぎ | F52: 足立区
A54: 27 | B54: トゥールスジュニア | F54: 足立区
A56: 28 | B56: ゼットタイガー | F56: 足立区
A58: 29 | B58: 東山エイターズ | F58: 足立区
D59: ◎Bも入れる
A60: 30 | B60: 落一アポロ | F60: 港区
A62: 31 | B62: 本一色イーグルス | F62: 港区
A64: 32 | B64: 元加賀 | F64: 港区
A66: 33 | B66: 番町エンジェルス | F66: 港区
A68: 34 | B68: 本村クラブ | F68: 港区
A70: 35 | B70: 烏山ウイング | F70: 港区
A72: 36 | B72: 品川Ｂレーシング | F72: 港区
D73: ●D以外を入れる
A74: 37 | B74: レッドサンズ | F74: 大田区
A76: 38 | B76: 月島ライオンズ | F76: 大田区
A78: 39 | B78: 松島ファルコンズ | F78: 大田区
A80: 40 | B80: ブラザースクラブ | F80: 大田区
A82: 41 | B82: コンバッツ | F82: 大田区
A84: 42 | B84: メガドリームス | D84: 球友ジュニアーズ | F84: 大田区
D85: ◎Dも入れる
A86: 43 | B86: 七北クラブ | F86: 世田谷区
A88: 44 | B88: レッドファイヤーズ | F88: 世田谷区
A90: 45 | B90: サンジュニア | F90: 世田谷区
A92: 46 | B92: ブルースカイズ | F92: 世田谷区
A94: 47 | B94: 高輪クラブ | F94: 世田谷区
A96: 48 | B96: 球友ジュニアーズ | F96: 中野区
D97: ●CE以外を入れる
A98: 49 | B98: 麹町ドリームス | F98: 文京区
A100: 50 | B100: 東陽フェニックス | F100: 文京区
A102: 51 | B102: 荒川コンドル | F102: 文京区
A104: 52 | B104: 御殿山ファイターズ | F104: 文京区
A106: 53 | B106: 駒込ベアーズ | F106: 文京区
A108: 54 | B108: 勝どきDナインホープ | F108: 品川区
A110: 55 | B110: 高島エイト | F110: 品川区
A112: 56 | B112: 渋谷レッドソックス | F112: 品川区
A114: 57 | B114: 北原少年野球クラブ | F114: 品川区
D115: ◎CEも入れる
A116: 58 | B116: 興宮ファイターズ | F116: 練馬区
A118: 59 | B118: フレール | F118: 台東区
A120: 60 | B120: 東伊興シャインズ | F120: 台東区
D121: ●H以外を入れる
A122: 61 | B122: 中目黒イーグルス | F122: 中央区
A124: 62 | B124: 大島タイガース | F124: 中央区
A126: 63 | B126: 市ヶ谷チーターズ | F126: 中央区
A128: 64 | B128: 有馬スワローズ | F128: 中央区
A130: 65 | B130: 越中島ブレーブス | F130: 中央区
A132: 66 | B132: 高井戸東少年野球 | F132: 中央区
D133: ◎Hも入れる
A134: 67 | B134: レッドシャークス | F134: 目黒区
A136: 68 | B136: 不動パイレーツ | F136: 目黒区
A138: 69 | B138: ナインスターズ | F138: 目黒区
A140: 70 | B140: 墨田スターズ | F140: 目黒区
A142: 71 | B142: 新田ファイヤーズ | F142: 目黒区
A144: 72 | B144: 品川レインボーズ | F144: 目黒区
D145: ●I以外を入れる
A146: 73 | B146: 大雲寺スターズ | F146: 江戸川区
A148: 74 | B148: 東雲メッツ | F148: 江戸川区
A150: 75 | B150: 亀戸連合 | F150: 江戸川区
A152: 76 | B152: 池雪ジュニアＳ | F152: 江戸川区
A154: 77 | B154: エンジェルス | F154: 江戸川区
A156: 78 | B156: ヤングホークス | F156: 江戸川区
A158: 79 | B158: 西伊興若潮ジュニア | F158: 江戸川区
A160: 80 | B160: 旗の台クラブ | F160: 江戸川区
A162: 81 | B162: 城北メッツ | F162: 江戸川区
D163: ◎Iも入れる
A164: 82 | B164: 西田野球クラブ | F164: 豊島区
A166: 83 | B166: 茗荷谷クラブ | F166: 豊島区
A168: 84 | B168: 日本橋ファイターズ | F168: 江東区
A170: 85 | B170: ニュー愛宕 | F170: 杉並区
A172: 86 | B172: ジャパンキングス | F172: 杉並区
A174: 87 | B174: 用賀ベアーズ | F174: 杉並区
A176: 88 | B176: 新宿ドリーム | F176: 荒川区
A178: 89 | B178: 葛西ファイターズ | F178: 荒川区
A180: 90 | B180: ブラックキラーズ | F180: 荒川区
A182: 91 | B182: 南千住ペガサス | F182: 荒川区
D183: ◎JKも入れる
A184: 92 | B184: 東王ジュニア | F184: 新宿区
A186: 93 | B186: 落合コメッツ | F186: 新宿区
A188: 94 | B188: 中央フェニックス | F188: 新宿区
A190: 95 | B190: リトルジャイアンツ | F190: 新宿区
A192: 96 | B192: 雷サンダース | F192: 新宿区
D193: ●Ｌ以外を入れる
A194: 97 | B194: 菊坂ファイヤーズ | F194: 江東区
A196: 98 | B196: 深川ホークス | F196: 江東区
D197: ◎Ｌも入れる
A198: 99 | B198: 元芝ハヤブサ | F198: 江東区
A200: 100 | B200: 大島中央 | F200: 江東区
A202: 101 | B202: 大塚スネイクス | F202: 江東区
A204: 102 | B204: 深川ジャイアンツ | F204: 江東区
A206: 103 | B206: 鎌倉ヴィクトリー | F206: 江東区
A208: 104 | B208: 麻布キッズ | F208: 江東区
A210: 105 | B210: 砧南球友 | F210: 江東区
A212: 106 | B212: 久我山イーグルス | F212: 江東区
A214: 107 | B214: 文京パワーズ | F214: 江東区
A216: 108 | B216: 中央バンディーズ | F216: 江東区

Sheet 抽選順
B1: A | D1: B | F1: C | H1: D | J1: E | L1: F
B2: 葛飾アニマルズ | C2: 葛飾区 | D2: カバラホークス | E2: 足立区 | F2: 八潮ドリームキッズ | G2: 品川区 | H2: ゼットタイガー | I2: 大田区 | J2: レッドサンズ | K2: 文京区 | L2: ブルースカイズ | M2: 北区
B4: 金町ジャイアンツ | C4: AFx | D4: 西伊興若潮ジュニア | E4: Bx | H4: 池雪ジュニアＳ | I4: Dx | J4: 菊坂ファイヤーズ | K4: CEx
B5: 鎌倉ヴィクトリー | C5: AFx | D5: ブラックキラーズ | E5: Bx | H5: 出雲ライオンズ | I5: Dx | J5: 文京パワーズ | K5: CEx
B6: リトルジャイアンツ | C6: AFx | D6: レッドファイヤーズ | E6: Bx | H6: 馬込ジャガーズ | I6: Dx | J6: 茗荷谷クラブ | K6: CEx
B7: 城北メッツ | C7: AFx | D7: 新田ファイヤーズ | E7: Bx | H7: 球友ジュニアーズ | I7: Dx | J7: 礫川 | K7: CEx
B8: マッハブレーブス | C8: AFx | D8: 東伊興シャインズ | E8: Bx | H8: フレール | I8: Dx | J8: 西千タイガース | K8: CEx
B9: メガドリームス | C9: AFx | D9: オール麻布 | H9: 球友ジュニアーズ | I9: Dx | J9: 品川レインボーズ | K9: CEx
B10: 渋谷レッドソックス | D10: 高輪クラブ | H10: ナインスターズ | J10: 御殿山ファイターズ | K10: CEx
B11: ジャパンキングス | D11: 高輪台ファイターズ | H11: 烏山ウイング | J11: 品川Ｂレーシング | K11: CEx
B12: 番町エンジェルス | D12: 本村クラブ | H12: 砧南球友 | J12: 旗の台クラブ | K12: CEx
B13: 麹町ドリームス | D13: 元芝ハヤブサ | H13: 用賀ベアーズ | J13: 北原少年野球クラブ
B14: 墨田スターズ | D14: 港南メッツ | H14: 山野Ｒイーグルス | J14: サンジュニア
B15: 堤若草 | D15: 麻布キッズ | H15: コンバッツ | J15: フェニックス
B18: G | D18: H | F18: I | H18: J | J18: K | L18: L
B19: 高島エイト | C19: 板橋区 | D19: 有馬スワローズ | E19: 中央区 | F19: 大雲寺スターズ | G19: 江戸川区 | H19: 西田野球クラブ | I19: 杉並区 | J19: 南千住ペガサス | K19: 荒川区 | L19: 大島中央 | M19: 江東区
D21: 勝どきDナインホープ | E21: Hx | F21: 葛西ファイターズ | G21: Ix | H21: 久我山イーグルス | I21: JKx | L21: 大島タイガース | M21: Lx
D22: 中央バンディーズ | E22: Hx | F22: 雷サンダース | G22: Ix | H22: 高井戸東少年野球 | I22: JKx | L22: ニュー愛宕 | M22: Lx
D23: 中央フェニックス | E23: Hx | F23: しらさぎ | G23: Ix | H23: 桃五少年野球クラブ | I23: JKx | L23: 越中島ブレーブス
D24: 月島ライオンズ | E24: Hx | F24: 本一色イーグルス | G24: Ix | H24: ブラザースクラブ | I24: JKx | L24: 深川ジャイアンツ
D25: 日本橋ファイターズ | E25: Hx | F25: 南篠崎ランチャーズ | G25: Ix | H25: 荒川コンドル | I25: JKx | L25: 潮見パワーズ
D26: 晴海アポローズ | E26: Hx | F26: レッドシャークス | G26: Ix | H26: エンジェルス | I26: JKx | L26: 元加賀
D27: 中目黒イーグルス | F27: 松島ファルコンズ | G27: Ix | H27: トゥールスジュニア | I27: JKx | L27: 東雲メッツ
D28: 東山エイターズ | F28: 上篠崎ムスタングクラブ | G28: Ix | H28: 淀四ライオンズ | L28: 東陽フェニックス
D29: 目黒ペガサス | F29: 興宮ファイターズ | G29: Ix | H29: 落一アポロ | L29: ゴッドイーグルス | M29: Lx
D30: ヤングホークス | F30: 大塚スネイクス | H30: 落合コメッツ | L30: 東王ジュニア
D31: 目黒インパルス | F31: 駒込ベアーズ | H31: 新宿ドリーム | L31: 江東ジョーズ
D32: 不動パイレーツ | F32: 亀戸浅間 | H32: 市ヶ谷チーターズ | L32: 七北クラブ
